Directorate,Department,Expenditure Type,Ref.Doc.1,Vendor Name,Expenditure Amount (exc VAT),Payment Date
Assurance,Assurance,Advertising,60014933,LONDON LETTERBOX MARKETING,"4,556.25",18/03/2015
Assurance,Assurance,Other Services,10012026,ELECTORAL REFORM SERVICES,"10,385.15",02/03/2015
Assurance,Assurance,Postage,10012074,ROYAL MAIL GROUP LIMITED,907.97,12/03/2015
Assurance,Assurance,Rents,60016234,ARTS DEPOT PRODUCTIONS LTD,903.5,25/03/2015
Assurance,Assurance Management,Training,60002457,PREMIER PEOPLE SOLUTIONS LTD,644,03/03/2015
Assurance,Assurance Management,Training,60010166,PREMIER PEOPLE SOLUTIONS LTD,"1,350.00",02/03/2015
Assurance,Internal Audit & CAFT,Advertising,10012030,TMP (UK) LTD,"1,460.00",03/03/2015
Assurance,Internal Audit & CAFT,Other Services,60011978,REDACTED - PERSONAL DATA,670,05/03/2015
Assurance,Internal Audit & CAFT,Other Services,60014475,REDACTED - PERSONAL DATA,"1,025.00",10/03/2015
Assurance,Internal Audit & CAFT,Professional Services,60012052,PRICEWATERHOUSE COOPERS,"36,580.00",04/03/2015
Assurance,Internal Audit & CAFT,Subscriptions,60016616,CALL CREDIT LTD,"18,000.00",25/03/2015
Assurance,Internal Audit & CAFT,Subscriptions,60011836,INTEC FOR BUSINESS LIMITED,261.3,04/03/2015
Assurance,Internal Audit & CAFT,Subscriptions,60012348,INTEC FOR BUSINESS LIMITED,"9,242.41",30/03/2015
Assurance,Internal Audit & CAFT,Subscriptions,20017575,LONDON BOROUGHS' FRAUD INVESTIGATORS GROUP,600,06/03/2015
Central Expenses,Central Expenses,Audit Fee,60014126,GRANT THORNTON UK LLP,"4,828.50",18/03/2015
Central Expenses,Central Expenses,Audit Fee,60014528,GRANT THORNTON UK LLP,"31,597.00",27/03/2015
Central Expenses,Central Expenses,Insurance Claims,20017717,ACCIDENT ADVICE SOLICITORS,"3,500.00",09/03/2015
Central Expenses,Central Expenses,Insurance Claims,20017718,ACCIDENT ADVICE SOLICITORS,"2,099.00",09/03/2015
Central Expenses,Central Expenses,Insurance Claims,20018104,ALBANY ASSISTANCE LTD,"3,873.66",20/03/2015
Central Expenses,Central Expenses,Insurance Claims,20017479,ALLWEIS & CO SOLICITORS,600,03/03/2015
Central Expenses,Central Expenses,Insurance Claims,20017758,BERRYMANS LACE MAWER LLP,"3,210.30",10/03/2015
Central Expenses,Central Expenses,Insurance Claims,60011144,BROWNE JACOBSON SOLS.,350,24/03/2015
Central Expenses,Central Expenses,Insurance Claims,60011831,BROWNE JACOBSON SOLS.,"3,592.50",24/03/2015
Central Expenses,Central Expenses,Insurance Claims,20017561,CLARKE BARNES SOLICITORS,629,05/03/2015
Central Expenses,Central Expenses,Insurance Claims,60012501,CLYDE & CO LLP,960,10/03/2015
Central Expenses,Central Expenses,Insurance Claims,20017564,DAS LAW,"10,000.00",06/03/2015
Central Expenses,Central Expenses,Insurance Claims,20017568,DEPARTMENT FOR WORK & PENSIONS,816,06/03/2015
Central Expenses,Central Expenses,Insurance Claims,20018391,DRIVERS AND NORRIS,779.77,25/03/2015
Central Expenses,Central Expenses,Insurance Claims,20017980,IRWIN MITCHELL LLP,"15,000.00",13/03/2015
Central Expenses,Central Expenses,Insurance Claims,20018294,IRWIN MITCHELL LLP,"1,134.00",24/03/2015
Central Expenses,Central Expenses,Insurance Claims,20018720,JOBE TRANSPORT LTD,387,31/03/2015
Central Expenses,Central Expenses,Insurance Claims,60015654,JOHNSON AUSTIN PARTNERSHIP LLP,455,23/03/2015
Central Expenses,Central Expenses,Insurance Claims,60008535,KENNEDYS,"1,314.00",24/03/2015
Central Expenses,Central Expenses,Insurance Claims,60009861,KENNEDYS,"6,848.00",02/03/2015
Central Expenses,Central Expenses,Insurance Claims,20018715,LINFIELD CLOSE LTD,"3,612.00",31/03/2015
Central Expenses,Central Expenses,Insurance Claims,20017722,MARTYN GERRARD,"2,066.00",10/03/2015
Central Expenses,Central Expenses,Insurance Claims,20017529,ROYAL & SUN ALLIANCE,358.37,06/03/2015
Central Expenses,Central Expenses,Insurance Claims,20018065,ROYAL & SUN ALLIANCE,909.14,20/03/2015
Central Expenses,Central Expenses,Insurance Claims,20017981,RUBICON LAW,"11,000.00",13/03/2015
Central Expenses,Central Expenses,Insurance Claims,20018094,SILVERBECK RYMER SOLICITORS,600,19/03/2015
Central Expenses,Central Expenses,Insurance Claims,20018095,SILVERBECK RYMER SOLICITORS,720,19/03/2015
Central Expenses,Central Expenses,Insurance Claims,20017562,TESCO UNDERWRITING LTD,"11,108.59",06/03/2015
Central Expenses,Central Expenses,Insurance Claims,60004385,WEIGHTMANS LLP,600,16/03/2015
Central Expenses,Central Expenses,Insurance Claims,60011037,WEIGHTMANS LLP,800,24/03/2015
Central Expenses,Central Expenses,Insurance Claims,60011152,WEIGHTMANS LLP,275.5,16/03/2015
Central Expenses,Central Expenses,Insurance Claims,60011586,WEIGHTMANS LLP,920,16/03/2015
Central Expenses,Central Expenses,Insurance Claims,60012462,WEIGHTMANS LLP,962.5,11/03/2015
Central Expenses,Central Expenses,Insurance Claims,60012465,WEIGHTMANS LLP,"1,265.00",24/03/2015
Central Expenses,Central Expenses,Insurance Claims,60012565,WEIGHTMANS LLP,662.5,13/03/2015
Central Expenses,Central Expenses,Insurance Claims,60012591,WEIGHTMANS LLP,"1,787.50",13/03/2015
Central Expenses,Central Expenses,Insurance Claims,60012607,WEIGHTMANS LLP,475,13/03/2015
Central Expenses,Central Expenses,Insurance Claims,60013242,WEIGHTMANS LLP,"1,000.00",16/03/2015
Central Expenses,Central Expenses,Insurance Claims,60015288,WEIGHTMANS LLP,262.5,13/03/2015
Central Expenses,Central Expenses,Insurance Claims,20017478,WILLIAM GRAHAM LAW,720,03/03/2015
Central Expenses,Central Expenses,Other Establishments - Third P,60011623,CITY OF LONDON,"207,092.00",06/03/2015
Central Expenses,Central Expenses,Other Establishments - Third P,EBX0050512,LEE VALLEY REGIONAL PARK AUTH.,"33,699.99",19/03/2015
Central Expenses,Central Expenses,Other Establishments - Third P,EBX0048747,LONDON PENSIONS FUND AUTHORITY,"50,280.90",09/03/2015
Central Expenses,Central Expenses,Other Establishments - Third P,EBX0047820,TRANSPORT TRADING LIMITED,"3,784,647.00",03/03/2015
Central Expenses,Central Expenses,Printing-Contract,10012085,G & H SHEET FED LIMITED,389.7,13/03/2015
Commercial,Customer Support Group,Building Repairs & Maintenance,60015848,AJS LTD,305.25,18/03/2015
Commercial,Customer Support Group,Building Repairs & Maintenance,60016430,AJS LTD,"1,387.50",24/03/2015
Commercial,Customer Support Group,Building Repairs & Maintenance,60016507,AJS LTD,544.5,25/03/2015
Commercial,Customer Support Group,Building Repairs & Maintenance,60016529,AJS LTD,858,25/03/2015
Commercial,Customer Support Group,Building Repairs & Maintenance,60016538,AJS LTD,305.25,27/03/2015
Commercial,Customer Support Group,Building Repairs & Maintenance,60016539,AJS LTD,280.5,25/03/2015
Commercial,Customer Support Group,Building Repairs & Maintenance,60016572,AJS LTD,"1,500.00",27/03/2015
Commercial,Customer Support Group,Building Repairs & Maintenance,60016613,AJS LTD,346.5,25/03/2015
Commercial,Customer Support Group,Building Repairs & Maintenance,60016649,AJS LTD,313.5,25/03/2015
Commercial,Customer Support Group,Building Repairs & Maintenance,60016671,AJS LTD,280.5,26/03/2015
Commercial,Customer Support Group,Building Repairs & Maintenance,60016677,AJS LTD,312.5,30/03/2015
Commercial,Customer Support Group,Building Repairs & Maintenance,60016712,AJS LTD,891,26/03/2015
Commercial,Customer Support Group,Building Repairs & Maintenance,60016725,AJS LTD,341.66,27/03/2015
Commercial,Customer Support Group,Building Repairs & Maintenance,60016772,AJS LTD,313.5,26/03/2015
Commercial,Customer Support Group,Building Repairs & Maintenance,60016822,AJS LTD,321.75,26/03/2015
Commercial,Customer Support Group,Building Repairs & Maintenance,60016823,AJS LTD,312.5,30/03/2015
Commercial,Customer Support Group,Building Repairs & Maintenance,60016885,AJS LTD,321.75,26/03/2015
Commercial,Customer Support Group,Building Repairs & Maintenance,60013234,BRITISH GAS BUSINESS,269.59,02/03/2015
Commercial,Customer Support Group,Building Repairs & Maintenance,60011370,DOORWAY-MAINTENANCE CO.,250,11/03/2015
Commercial,Customer Support Group,Building Repairs & Maintenance,60012596,DOORWAY-MAINTENANCE CO.,"2,340.00",11/03/2015
Commercial,Customer Support Group,Building Repairs & Maintenance,60015225,EARLSWOOD INDUSTRIAL SVCS LTD,967,27/03/2015
Commercial,Customer Support Group,Building Repairs & Maintenance,60015804,EARLSWOOD INDUSTRIAL SVCS LTD,399,27/03/2015
Commercial,Customer Support Group,Building Repairs & Maintenance,60014688,EDF ENERGY CUSTOMER FIELD SERVICES,"4,528.62",24/03/2015
Commercial,Customer Support Group,Building Repairs & Maintenance,60003594,FRONTIER-PITTS LTD,393,19/03/2015
Commercial,Customer Support Group,Building Repairs & Maintenance,60011830,LIFT & ENGINEERING SERVICES LTD,464,02/03/2015
Commercial,Customer Support Group,Building Repairs & Maintenance,60010417,OAKRAY LIMITED,484.81,23/03/2015
Commercial,Customer Support Group,Building Repairs & Maintenance,60011067,OAKRAY LIMITED,308.15,23/03/2015
Commercial,Customer Support Group,Building Repairs & Maintenance,60014877,OAKRAY LIMITED,384.22,11/03/2015
Commercial,Customer Support Group,Building Repairs & Maintenance,60015378,OAKRAY LIMITED,597,27/03/2015
Commercial,Customer Support Group,Building Repairs & Maintenance,60015404,OAKRAY LIMITED,348,27/03/2015
Commercial,Customer Support Group,Building Repairs & Maintenance,60015413,OAKRAY LIMITED,300,27/03/2015
Commercial,Customer Support Group,Building Repairs & Maintenance,60015420,OAKRAY LIMITED,348,27/03/2015
Commercial,Customer Support Group,Building Repairs & Maintenance,60015424,OAKRAY LIMITED,348,27/03/2015
Commercial,Customer Support Group,Building Repairs & Maintenance,60015430,OAKRAY LIMITED,348.75,27/03/2015
Commercial,Customer Support Group,Building Repairs & Maintenance,60015460,OAKRAY LIMITED,648.75,27/03/2015
Commercial,Customer Support Group,Building Repairs & Maintenance,60015471,OAKRAY LIMITED,348,27/03/2015
Commercial,Customer Support Group,Building Repairs & Maintenance,60015499,OAKRAY LIMITED,348,27/03/2015
Commercial,Customer Support Group,Building Repairs & Maintenance,60015511,OAKRAY LIMITED,348,27/03/2015
Commercial,Customer Support Group,Building Repairs & Maintenance,60015526,OAKRAY LIMITED,323.25,27/03/2015
Commercial,Customer Support Group,Building Repairs & Maintenance,60015547,OAKRAY LIMITED,348,27/03/2015
Commercial,Customer Support Group,Building Repairs & Maintenance,60015550,OAKRAY LIMITED,525,27/03/2015
Commercial,Customer Support Group,Building Repairs & Maintenance,60015551,OAKRAY LIMITED,472.5,27/03/2015
Commercial,Customer Support Group,Building Repairs & Maintenance,60015569,OAKRAY LIMITED,348,27/03/2015
Commercial,Customer Support Group,Building Repairs & Maintenance,60015572,OAKRAY LIMITED,348,27/03/2015
Commercial,Customer Support Group,Building Repairs & Maintenance,60015580,OAKRAY LIMITED,348,27/03/2015
Commercial,Customer Support Group,Building Repairs & Maintenance,60015584,OAKRAY LIMITED,348,27/03/2015
Commercial,Customer Support Group,Building Repairs & Maintenance,60015585,OAKRAY LIMITED,681.75,27/03/2015
Commercial,Customer Support Group,Building Repairs & Maintenance,60015751,OAKRAY LIMITED,282.86,18/03/2015
Commercial,Customer Support Group,Building Repairs & Maintenance,60015820,OAKRAY LIMITED,308.15,18/03/2015
Commercial,Customer Support Group,Building Repairs & Maintenance,60005804,RGE SERVICES,273.72,03/03/2015
Commercial,Customer Support Group,Building Repairs & Maintenance,60010896,RGE SERVICES,394.95,03/03/2015
Commercial,Customer Support Group,Building Repairs & Maintenance,60010959,RGE SERVICES,570,30/03/2015
Commercial,Customer Support Group,Building Repairs & Maintenance,60010961,RGE SERVICES,684,19/03/2015
Commercial,Customer Support Group,Building Repairs & Maintenance,60011614,RGE SERVICES,475.21,04/03/2015
Commercial,Customer Support Group,Building Repairs & Maintenance,60011631,RGE SERVICES,"1,185.72",02/03/2015
Commercial,Customer Support Group,Building Repairs & Maintenance,60011638,RGE SERVICES,507.75,02/03/2015
Commercial,Customer Support Group,Building Repairs & Maintenance,60011642,RGE SERVICES,523.85,02/03/2015
Commercial,Customer Support Group,Building Repairs & Maintenance,60011664,RGE SERVICES,"2,877.82",03/03/2015
Commercial,Customer Support Group,Building Repairs & Maintenance,60011703,RGE SERVICES,766.13,30/03/2015
Commercial,Customer Support Group,Building Repairs & Maintenance,60011729,RGE SERVICES,482.6,04/03/2015
Commercial,Customer Support Group,Building Repairs & Maintenance,60011743,RGE SERVICES,790.95,04/03/2015
Commercial,Customer Support Group,Building Repairs & Maintenance,60011748,RGE SERVICES,"1,584.00",02/03/2015
Commercial,Customer Support Group,Building Repairs & Maintenance,60011750,RGE SERVICES,265.01,04/03/2015
Commercial,Customer Support Group,Building Repairs & Maintenance,60011765,RGE SERVICES,376.44,04/03/2015
Commercial,Customer Support Group,Building Repairs & Maintenance,60011777,RGE SERVICES,456,04/03/2015
Commercial,Customer Support Group,Building Repairs & Maintenance,60011814,RGE SERVICES,"1,101.35",04/03/2015
Commercial,Customer Support Group,Building Repairs & Maintenance,60011850,RGE SERVICES,701.6,04/03/2015
Commercial,Customer Support Group,Building Repairs & Maintenance,60014020,RGE SERVICES,516.83,27/03/2015
Commercial,Customer Support Group,Building Repairs & Maintenance,60014043,RGE SERVICES,858.8,27/03/2015
Commercial,Customer Support Group,Building Repairs & Maintenance,60014044,RGE SERVICES,440.8,31/03/2015
Commercial,Customer Support Group,Building Repairs & Maintenance,60014046,RGE SERVICES,513.73,24/03/2015
Commercial,Customer Support Group,Building Repairs & Maintenance,60014052,RGE SERVICES,375.5,24/03/2015
Commercial,Customer Support Group,Building Repairs & Maintenance,60014062,RGE SERVICES,690.65,27/03/2015
Commercial,Customer Support Group,Building Repairs & Maintenance,60014065,RGE SERVICES,511.29,27/03/2015
Commercial,Customer Support Group,Building Repairs & Maintenance,60014092,RGE SERVICES,486.3,31/03/2015
Commercial,Customer Support Group,Building Repairs & Maintenance,60014107,RGE SERVICES,461.7,27/03/2015
Commercial,Customer Support Group,Building Repairs & Maintenance,60014110,RGE SERVICES,317.3,27/03/2015
Commercial,Customer Support Group,Building Repairs & Maintenance,60014141,RGE SERVICES,834.18,24/03/2015
Commercial,Customer Support Group,Building Repairs & Maintenance,60014433,RGE SERVICES,287.85,30/03/2015
Commercial,Customer Support Group,Building Repairs & Maintenance,60014491,RGE SERVICES,331.45,30/03/2015
Commercial,Customer Support Group,Building Repairs & Maintenance,60014493,RGE SERVICES,432.15,30/03/2015
Commercial,Customer Support Group,Building Repairs & Maintenance,60014644,RGE SERVICES,"1,204.25",30/03/2015
Commercial,Customer Support Group,Building Repairs & Maintenance,60014672,RGE SERVICES,263.15,30/03/2015
Commercial,Customer Support Group,Building Repairs & Maintenance,60012662,S W BRUCE & CO LTD,"1,314.75",12/03/2015
Commercial,Customer Support Group,Building Repairs & Maintenance,60012801,S W BRUCE & CO LTD,770.5,16/03/2015
Commercial,Customer Support Group,Building Repairs & Maintenance,60012859,S W BRUCE & CO LTD,517.5,16/03/2015
Commercial,Customer Support Group,Building Repairs & Maintenance,60013010,S W BRUCE & CO LTD,"5,830.50",10/03/2015
Commercial,Customer Support Group,Building Repairs & Maintenance,60013016,S W BRUCE & CO LTD,830,10/03/2015
Commercial,Customer Support Group,Building Repairs & Maintenance,60013048,S W BRUCE & CO LTD,759.25,18/03/2015
Commercial,Customer Support Group,Building Repairs & Maintenance,60013094,S W BRUCE & CO LTD,481.16,18/03/2015
Commercial,Customer Support Group,Building Repairs & Maintenance,60013096,S W BRUCE & CO LTD,300.45,10/03/2015
Commercial,Customer Support Group,Building Repairs & Maintenance,60013098,S W BRUCE & CO LTD,793.25,18/03/2015
Commercial,Customer Support Group,Building Repairs & Maintenance,60013133,S W BRUCE & CO LTD,"3,188.69",10/03/2015
Commercial,Customer Support Group,Building Repairs & Maintenance,60013148,S W BRUCE & CO LTD,571.05,18/03/2015
Commercial,Customer Support Group,Building Repairs & Maintenance,60013152,S W BRUCE & CO LTD,"6,603.32",10/03/2015
Commercial,Customer Support Group,Building Repairs & Maintenance,60013169,S W BRUCE & CO LTD,546.15,10/03/2015
Commercial,Customer Support Group,Building Repairs & Maintenance,60013178,S W BRUCE & CO LTD,643.11,18/03/2015
Commercial,Customer Support Group,Building Repairs & Maintenance,60013183,S W BRUCE & CO LTD,369.11,18/03/2015
Commercial,Customer Support Group,Building Repairs & Maintenance,60013724,S W BRUCE & CO LTD,350,25/03/2015
Commercial,Customer Support Group,Building Repairs & Maintenance,60013829,S W BRUCE & CO LTD,"1,547.20",25/03/2015
Commercial,Customer Support Group,Building Repairs & Maintenance,60014577,SECOM PLC,"1,146.32",10/03/2015
Commercial,Customer Support Group,Building Repairs & Maintenance,60014669,SECOM PLC,"1,166.02",10/03/2015
Commercial,Customer Support Group,Building Repairs & Maintenance,60014719,SECOM PLC,346,10/03/2015
Commercial,Customer Support Group,Building Repairs & Maintenance,60013135,UNITED FORKTRUCKS (1992) LTD,542.7,23/03/2015
Commercial,Customer Support Group,Cleaning and domestic material,10011913,CHURCHILL CONTRACT SERVICES,-411.09,17/03/2015
Commercial,Customer Support Group,Cleaning and domestic material,10011914,CHURCHILL CONTRACT SERVICES,-411.09,17/03/2015
Commercial,Customer Support Group,Cleaning and domestic material,10011916,CHURCHILL CONTRACT SERVICES,-981.36,17/03/2015
Commercial,Customer Support Group,Cleaning and domestic material,10011917,CHURCHILL CONTRACT SERVICES,-981.36,17/03/2015
Commercial,Customer Support Group,Cleaning and domestic material,60011426,CHURCHILL CONTRACT SERVICES,367.88,26/03/2015
Commercial,Customer Support Group,Cleaning and domestic material,60011432,CHURCHILL CONTRACT SERVICES,647.01,23/03/2015
Commercial,Customer Support Group,Cleaning and domestic material,60011440,CHURCHILL CONTRACT SERVICES,598.72,23/03/2015
Commercial,Customer Support Group,Cleaning and domestic material,60011460,CHURCHILL CONTRACT SERVICES,367.88,23/03/2015
Commercial,Customer Support Group,Cleaning and domestic material,60011464,CHURCHILL CONTRACT SERVICES,"3,458.58",23/03/2015
Commercial,Customer Support Group,Cleaning and domestic material,60011469,CHURCHILL CONTRACT SERVICES,"1,627.48",17/03/2015
Commercial,Customer Support Group,Cleaning and domestic material,60011539,CHURCHILL CONTRACT SERVICES,607.85,23/03/2015
Commercial,Customer Support Group,Cleaning and domestic material,60011550,CHURCHILL CONTRACT SERVICES,456.79,23/03/2015
Commercial,Customer Support Group,Cleaning and domestic material,60011585,CHURCHILL CONTRACT SERVICES,313.51,23/03/2015
Commercial,Customer Support Group,Cleaning and domestic material,60011589,CHURCHILL CONTRACT SERVICES,286.43,23/03/2015
Commercial,Customer Support Group,Cleaning and domestic material,60014322,CHURCHILL CONTRACT SERVICES,"7,809.56",30/03/2015
Commercial,Customer Support Group,Cleaning and domestic material,60014324,CHURCHILL CONTRACT SERVICES,440.98,30/03/2015
Commercial,Customer Support Group,Cleaning and domestic material,60014326,CHURCHILL CONTRACT SERVICES,"8,132.77",30/03/2015
Commercial,Customer Support Group,Cleaning and domestic material,60014327,CHURCHILL CONTRACT SERVICES,475.72,30/03/2015
Commercial,Customer Support Group,Cleaning and domestic material,60014336,CHURCHILL CONTRACT SERVICES,367.88,30/03/2015
Commercial,Customer Support Group,Cleaning and domestic material,60014337,CHURCHILL CONTRACT SERVICES,367.88,30/03/2015
Commercial,Customer Support Group,Cleaning and domestic material,60014357,CHURCHILL CONTRACT SERVICES,367.88,30/03/2015
Commercial,Customer Support Group,Cleaning and domestic material,60014361,CHURCHILL CONTRACT SERVICES,"1,527.49",30/03/2015
Commercial,Customer Support Group,Cleaning and domestic material,60014363,CHURCHILL CONTRACT SERVICES,417.21,30/03/2015
Commercial,Customer Support Group,Cleaning and domestic material,60014376,CHURCHILL CONTRACT SERVICES,367.88,30/03/2015
Commercial,Customer Support Group,Cleaning and domestic material,60014382,CHURCHILL CONTRACT SERVICES,276.52,30/03/2015
Commercial,Customer Support Group,Cleaning and domestic material,60014385,CHURCHILL CONTRACT SERVICES,313.51,30/03/2015
Commercial,Customer Support Group,Cleaning and domestic material,60014386,CHURCHILL CONTRACT SERVICES,570.36,30/03/2015
Commercial,Customer Support Group,Cleaning and domestic material,60014390,CHURCHILL CONTRACT SERVICES,367.88,30/03/2015
Commercial,Customer Support Group,Cleaning and domestic material,60014394,CHURCHILL CONTRACT SERVICES,"1,627.48",30/03/2015
Commercial,Customer Support Group,Cleaning and domestic material,60014396,CHURCHILL CONTRACT SERVICES,598.72,30/03/2015
Commercial,Customer Support Group,Cleaning and domestic material,60014408,CHURCHILL CONTRACT SERVICES,644.4,30/03/2015
Commercial,Customer Support Group,Cleaning and domestic material,60014414,CHURCHILL CONTRACT SERVICES,"1,103.65",30/03/2015
Commercial,Customer Support Group,Cleaning and domestic material,60014463,HERTFORDSHIRE COUNTY COUNCIL,501.7,12/03/2015
Commercial,Customer Support Group,Cleaning and domestic material,60014551,HERTFORDSHIRE COUNTY COUNCIL,"1,452.05",09/03/2015
Commercial,Customer Support Group,Cleaning and domestic material,60014781,HERTFORDSHIRE COUNTY COUNCIL,447.5,11/03/2015
Commercial,Customer Support Group,Cleaning and domestic material,60011506,HERTFORDSHIRE SUPPLIES   COUNTY CO,"1,212.39",17/03/2015
Commercial,Customer Support Group,Cleaning and domestic material,60011602,HERTFORDSHIRE SUPPLIES   COUNTY CO,"2,375.55",18/03/2015
Commercial,Customer Support Group,Consultants Fees,60016451,MOBILISE PUBLIC LTD,"7,175.00",24/03/2015
Commercial,Customer Support Group,CSG Services Contract Payment,10011998,CAPITA BUSINESS SERVICES LTD,"90,912.00",09/03/2015
Commercial,Customer Support Group,CSG Services Contract Payment,10011999,CAPITA BUSINESS SERVICES LTD,"91,793.19",09/03/2015
Commercial,Customer Support Group,CSG Services Contract Payment,10012031,CAPITA BUSINESS SERVICES LTD,"-94,286.00",09/03/2015
Commercial,Customer Support Group,CSG Services Contract Payment,10012093,CAPITA BUSINESS SERVICES LTD,"242,616.00",26/03/2015
Commercial,Customer Support Group,CSG Services Contract Payment,10012094,CAPITA BUSINESS SERVICES LTD,"26,163.02",26/03/2015
Commercial,Customer Support Group,CSG Services Contract Payment,10012095,CAPITA BUSINESS SERVICES LTD,968.01,26/03/2015
Commercial,Customer Support Group,CSG Services Contract Payment,10012096,CAPITA BUSINESS SERVICES LTD,"-19,233.00",24/03/2015
Commercial,Customer Support Group,CSG Services Contract Payment,10012097,CAPITA BUSINESS SERVICES LTD,"3,063,392.13",16/03/2015
Commercial,Customer Support Group,CSG Services Contract Payment,10012098,CAPITA BUSINESS SERVICES LTD,"-183,652.00",16/03/2015
Commercial,Customer Support Group,CSG Services Contract Payment,10012099,CAPITA BUSINESS SERVICES LTD,"-120,003.00",16/03/2015
Commercial,Customer Support Group,CSG Services Contract Payment,10012132,CAPITA BUSINESS SERVICES LTD,"15,410.25",30/03/2015
Commercial,Customer Support Group,CSG Services Contract Payment,10012133,CAPITA BUSINESS SERVICES LTD,"144,404.00",30/03/2015
Commercial,Customer Support Group,CSG Services Contract Payment,10012134,CAPITA BUSINESS SERVICES LTD,"666,664.92",30/03/2015
Commercial,Customer Support Group,CSG Services Contract Payment,10012135,CAPITA BUSINESS SERVICES LTD,"79,684.49",30/03/2015
Commercial,Customer Support Group,CSG Services Contract Payment,10012136,CAPITA BUSINESS SERVICES LTD,"54,992.14",24/03/2015
Commercial,Customer Support Group,Electricity,60001401,KENT COUNTY COUNCIL (KCS),-927.84,02/03/2015
Commercial,Customer Support Group,Electricity,60001424,KENT COUNTY COUNCIL (KCS),-556.72,02/03/2015
Commercial,Customer Support Group,Electricity,60001489,KENT COUNTY COUNCIL (KCS),-958.8,02/03/2015
Commercial,Customer Support Group,Electricity,60001536,KENT COUNTY COUNCIL (KCS),-958.8,02/03/2015
Commercial,Customer Support Group,Electricity,60012669,KENT COUNTY COUNCIL (KCS),"73,810.24",02/03/2015
Commercial,Customer Support Group,Electricity,60013285,KENT COUNTY COUNCIL (KCS),"6,623.22",03/03/2015
Commercial,Customer Support Group,Electricity,60013695,KENT COUNTY COUNCIL (KCS),"1,022.92",06/03/2015
Commercial,Customer Support Group,Electricity,60014200,KENT COUNTY COUNCIL (KCS),"9,082.28",05/03/2015
Commercial,Customer Support Group,Equipment and Materials Purcha,60002430,DAY PLANT HIRE CO LIMITED,550.62,10/03/2015
Commercial,Customer Support Group,Equipment and Materials Purcha,60002451,DAY PLANT HIRE CO LIMITED,322,10/03/2015
Commercial,Customer Support Group,Equipment and Materials Purcha,60007819,DAY PLANT HIRE CO LIMITED,383.78,10/03/2015
Commercial,Customer Support Group,Equipment and Materials Purcha,60010984,DAY PLANT HIRE CO LIMITED,483.88,10/03/2015
Commercial,Customer Support Group,Equipment and Materials Purcha,60011514,DAY PLANT HIRE CO LIMITED,667.42,10/03/2015
Commercial,Customer Support Group,Equipment and Materials Purcha,60013946,DAY PLANT HIRE CO LIMITED,266,04/03/2015
Commercial,Customer Support Group,Equipment and Materials Purcha,60014014,DAY PLANT HIRE CO LIMITED,450.52,04/03/2015
Commercial,Customer Support Group,Equipment and Materials Purcha,60014392,SM ELECTRICAL SERVICES,"1,180.00",23/03/2015
Commercial,Customer Support Group,Gas,60013387,COMER PROPERTY MANAGEMENT,"18,320.54",02/03/2015
Commercial,Customer Support Group,Gas,60013198,KENT COUNTY COUNCIL (KCS),"1,409.50",02/03/2015
Commercial,Customer Support Group,Gas,60013211,KENT COUNTY COUNCIL (KCS),"8,199.93",02/03/2015
Commercial,Customer Support Group,Gas,60013282,KENT COUNTY COUNCIL (KCS),"13,641.80",02/03/2015
Commercial,Customer Support Group,Gas,60016051,KENT COUNTY COUNCIL (KCS),"9,030.84",30/03/2015
Commercial,Customer Support Group,Grounds maintenance,60015853,THE HONEYWAGON CO.,941.75,27/03/2015
Commercial,Customer Support Group,Insurance-Premises,60017224,MIDDLESEX UNIVERSITY,"1,873.38",31/03/2015
Commercial,Customer Support Group,Operational Leases - Equipment,60009318,KONICA MINOLTA BUSINESS SOLUTIONS L,"1,791.00",26/03/2015
Commercial,Customer Support Group,Operational Leases - Equipment,60009649,KONICA MINOLTA BUSINESS SOLUTIONS L,"5,173.82",26/03/2015
Commercial,Customer Support Group,Operational Leases - Equipment,60013298,ROYAL MAIL GROUP LIMITED,"6,136.08",20/03/2015
Commercial,Customer Support Group,Operational Leases - Equipment,60015092,ROYAL MAIL GROUP LIMITED,"11,377.45",20/03/2015
Commercial,Customer Support Group,Operational Leases - Equipment,60012594,XEROX (UK) LTD,"2,938.70",17/03/2015
Commercial,Customer Support Group,Operational Leases - Equipment,60013189,XEROX (UK) LTD,"2,515.51",06/03/2015
Commercial,Customer Support Group,Other Services,60011900,BLUE 9 SECURITY LIMITED,"2,927.15",23/03/2015
Commercial,Customer Support Group,Other Services,60014389,BLUE 9 SECURITY LIMITED,"19,191.00",10/03/2015
Commercial,Customer Support Group,Other Services,60014409,BLUE 9 SECURITY LIMITED,"14,870.50",10/03/2015
Commercial,Customer Support Group,Other Services,60014574,BLUE 9 SECURITY LIMITED,333.5,10/03/2015
Commercial,Customer Support Group,Other Services,60014600,BLUE 9 SECURITY LIMITED,877.25,10/03/2015
Commercial,Customer Support Group,Other Services,60014625,BLUE 9 SECURITY LIMITED,"4,440.00",10/03/2015
Commercial,Customer Support Group,Other Services,20017380,NORWEL COMPUTER SERVICES LTD,"1,647.81",02/03/2015
Commercial,Customer Support Group,Other Services,20017799,RESULT SOFTWARE LTD,750,10/03/2015
Commercial,Customer Support Group,Other Services,20017800,RESULT SOFTWARE LTD,750,10/03/2015
Commercial,Customer Support Group,Other Services,20017801,RESULT SOFTWARE LTD,750,10/03/2015
Commercial,Customer Support Group,Postage,60012567,ROYAL MAIL GROUP LIMITED,"7,437.44",19/03/2015
Commercial,Customer Support Group,Postage,60012615,ROYAL MAIL GROUP LIMITED,"9,373.30",20/03/2015
Commercial,Customer Support Group,Postage,60014050,ROYAL MAIL GROUP LIMITED,"7,635.88",20/03/2015
Commercial,Customer Support Group,Postage,60014103,ROYAL MAIL GROUP LIMITED,313.19,20/03/2015
Commercial,Customer Support Group,Postage,60014160,ROYAL MAIL GROUP LIMITED,"11,213.34",20/03/2015
Commercial,Customer Support Group,Professional Services,60013929,MEGHRAJ PROPERTIES LTD,"17,630.19",26/03/2015
Commercial,Customer Support Group,Professional Services,20018097,ROSSENDALES (COLLECT) LTD,"1,406.38",26/03/2015
Commercial,Customer Support Group,Professional Services,20018198,ROSSENDALES (COLLECT) LTD,"1,665.87",24/03/2015
Commercial,Customer Support Group,Professional Services,20018200,ROSSENDALES (COLLECT) LTD,"1,133.91",24/03/2015
Commercial,Customer Support Group,Professional Services,20018202,ROSSENDALES (COLLECT) LTD,"1,144.46",24/03/2015
Commercial,Customer Support Group,Professional Services,20018204,ROSSENDALES (COLLECT) LTD,"1,012.37",24/03/2015
Commercial,Customer Support Group,Professional Services,20018206,ROSSENDALES (COLLECT) LTD,"1,560.39",24/03/2015
Commercial,Customer Support Group,Professional Services,20018208,ROSSENDALES (COLLECT) LTD,305.85,24/03/2015
Commercial,Customer Support Group,Professional Services,20018214,ROSSENDALES (COLLECT) LTD,"1,059.34",24/03/2015
Commercial,Customer Support Group,Professional Services,20018216,ROSSENDALES (COLLECT) LTD,"1,037.94",24/03/2015
Commercial,Customer Support Group,Professional Services,20018219,ROSSENDALES (COLLECT) LTD,"2,082.80",24/03/2015
Commercial,Customer Support Group,Professional Services,20018221,ROSSENDALES (COLLECT) LTD,307.04,24/03/2015
Commercial,Customer Support Group,Professional Services,20018223,ROSSENDALES (COLLECT) LTD,257.7,24/03/2015
Commercial,Customer Support Group,Rents,60017241,CANAL & RIVER TRUST,"2,000.00",31/03/2015
Commercial,Customer Support Group,Rents,60014329,DANCASTLE ASSOCIATES LIMITED,"186,250.00",10/03/2015
Commercial,Customer Support Group,Rents,10012113,RIDGELAND PROPERTIES LTD,"10,894.01",18/03/2015
Commercial,Customer Support Group,Rents,10012114,RIDGELAND PROPERTIES LTD,"12,000.00",18/03/2015
Commercial,Customer Support Group,Rents,10012115,RIDGELAND PROPERTIES LTD,"524,456.16",18/03/2015
Commercial,Customer Support Group,Rubbish Collection,60010096,G.B.HOLDINGS LTD,434.15,16/03/2015
Commercial,Customer Support Group,Service Charges,60016483,COMER PROPERTY MANAGEMENT,"99,796.79",27/03/2015
Commercial,Customer Support Group,Service Charges,60016533,COMER PROPERTY MANAGEMENT,"128,580.69",27/03/2015
Commercial,Customer Support Group,Subscriptions,60016665,LONDON ENERGY PROJECT,"7,750.00",31/03/2015
Commercial,Customer Support Group,Water Services,10012022,AFFINITY WATER LIMITED,705.94,02/03/2015
Commercial,Customer Support Group,Water Services,10012023,AFFINITY WATER LIMITED,689.2,02/03/2015
Commercial,Customer Support Group,Water Services,10012024,AFFINITY WATER LIMITED,622.19,02/03/2015
Commercial,Customer Support Group,Water Services,60004666,AFFINITY WATER LIMITED,550.16,02/03/2015
Commercial,Customer Support Group,Water Services,60012083,ANGEL SPRINGS LTD,368,23/03/2015
Commercial,Customer Support Group,Water Services,10011981,THAMES WATER UTILITIES LIMITED,386.77,04/03/2015
Commercial,HB LAW,Legal and Court Fees,10012083,LONDON BOROUGH OF HARROW,"109,332.91",13/03/2015
Commercial,HB LAW,Legal and Court Fees,10012156,LONDON BOROUGH OF HARROW,"191,858.45",31/03/2015
Commercial,HRA,Consultants Fees,60016838,KPMG FEES ACCOUNT,"3,500.00",26/03/2015
Commercial,HRA,Consultants Fees,60009751,P P C R ASSOCIATES LTD,564.02,13/03/2015
Commercial,HRA,Consultants Fees,60014636,P P C R ASSOCIATES LTD,"1,483.40",10/03/2015
Commercial,HRA,Consultants Fees,60012809,PRIORITY ESTATES PROJECT LTD,"1,920.87",11/03/2015
Commercial,HRA,Consultants Fees,60012076,THE BARNETGROUP LIMITED,"1,400.00",06/03/2015
Commercial,HRA,Consultants Fees,60012096,THE BARNETGROUP LIMITED,"70,031.00",06/03/2015
Commercial,HRA,Consultants Fees,60014601,THE BARNETGROUP LIMITED,699.44,17/03/2015
Commercial,HRA,Consultants Fees,60014639,THE BARNETGROUP LIMITED,"1,513.72",17/03/2015
Commercial,HRA,Consultants Fees,60014659,THE BARNETGROUP LIMITED,824.34,17/03/2015
Commercial,HRA,Consultants Fees,60014677,THE BARNETGROUP LIMITED,"1,426.39",17/03/2015
Commercial,HRA,Consultants Fees,60014721,THE BARNETGROUP LIMITED,"1,548.76",17/03/2015
Commercial,HRA,Consultants Fees,60014794,THE BARNETGROUP LIMITED,"1,047.96",11/03/2015
Commercial,HRA,Gas,60014783,THE BARNETGROUP LIMITED,"170,000.00",11/03/2015
Commercial,HRA,Legal and Court Fees,60015034,THE BARNETGROUP LIMITED,"40,950.00",12/03/2015
Commercial,HRA,Other Agencies - Third Party P,60016756,THE BARNETGROUP LIMITED,"126,711.00",26/03/2015
Commercial,Parking & Infrastructure,Equipment and Materials Purcha,60012771,COBURN SERVICES LTD,"1,113.00",05/03/2015
Commercial,Parking & Infrastructure,Equipment and Materials Purcha,60014179,COLAS LTD,"2,142.00",12/03/2015
Commercial,Parking & Infrastructure,Equipment and Materials Purcha,60015935,COLAS LTD,"1,836.00",30/03/2015
Commercial,Parking & Infrastructure,Equipment and Materials Purcha,10011986,COMPASS MINERALS,"2,025.73",09/03/2015
Commercial,Parking & Infrastructure,Equipment and Materials Purcha,10011987,COMPASS MINERALS,"2,022.37",05/03/2015
Commercial,Parking & Infrastructure,Equipment and Materials Purcha,10011988,COMPASS MINERALS,818.04,05/03/2015
Commercial,Parking & Infrastructure,Equipment and Materials Purcha,10011989,COMPASS MINERALS,"2,155.34",05/03/2015
Commercial,Parking & Infrastructure,Equipment and Materials Purcha,10011990,COMPASS MINERALS,"2,317.77",03/03/2015
Commercial,Parking & Infrastructure,Equipment and Materials Purcha,60015821,COMPASS MINERALS,"2,089.69",23/03/2015
Commercial,Parking & Infrastructure,Equipment and Materials Purcha,60015905,COMPASS MINERALS,"3,283.93",23/03/2015
Commercial,Parking & Infrastructure,Equipment and Materials Purcha,60015953,COMPASS MINERALS,"1,042.74",23/03/2015
Commercial,Parking & Infrastructure,Equipment and Materials Purcha,60014227,RENNICK UK LTD,756.8,05/03/2015
Commercial,Parking & Infrastructure,Equipment and Materials Purcha,60015127,RENNICK UK LTD,"3,200.00",18/03/2015
Commercial,Parking & Infrastructure,Equipment and Materials Purcha,60016172,RENNICK UK LTD,401.27,23/03/2015
Commercial,Parking & Infrastructure,Equipment and Materials Purcha,60012487,VAISALA LTD,"14,430.00",05/03/2015
Commercial,Parking & Infrastructure,Other Services,60014619,BARNET LIGHTING SERVICES LTD,"540,955.73",10/03/2015
Commercial,Parking & Infrastructure,Other Services,60015648,NSL LTD,"32,378.83",18/03/2015
Commercial,Parking & Infrastructure,Other Services,60015917,NSL LTD,650.55,23/03/2015
Commercial,Parking & Infrastructure,Other Services,60012341,PARKEON LIMITED,"7,375.00",04/03/2015
Commercial,Parking & Infrastructure,Other Services,60013949,PARKEON LIMITED,796.5,23/03/2015
Commercial,Parking & Infrastructure,Parking Permit Fees,20017931,HAMILTON CHASE ESTATE AGENTS,374.56,13/03/2015
Commercial,Parking & Infrastructure,Parking Permit Fees,20017938,YAD VASHEM UK,329,13/03/2015
Commercial,Parking & Infrastructure,Professional Services,60013703,NSL LTD,"20,576.62",03/03/2015
Commercial,Parking & Infrastructure,Professional Services,60015077,NSL LTD,"216,742.14",13/03/2015
Commercial,Parking & Infrastructure,Professional Services,60015593,NSL LTD,"42,153.55",17/03/2015
Commercial,Parking & Infrastructure,Software Licences & Support,60014338,NSL LTD,"3,357.00",06/03/2015
Commercial,Regional Enterprise,Advertising,60014180,TMP (UK) LTD,535.8,05/03/2015
Commercial,Regional Enterprise,Advertising,60015022,TMP (UK) LTD,439.69,12/03/2015
Commercial,Regional Enterprise,Advertising,60015348,TMP (UK) LTD,339.9,13/03/2015
Commercial,Regional Enterprise,Building Repairs & Maintenance,60017056,AMWELL CONSTRUCTION LTD,"3,681.00",30/03/2015
Commercial,Regional Enterprise,Consultants Fees,60014854,AECOM LIMITED,"2,950.00",11/03/2015
Commercial,Regional Enterprise,Consultants Fees,60012039,EVERSHEDS LLP,"42,662.50",24/03/2015
Commercial,Regional Enterprise,Consultants Fees,60012095,EVERSHEDS LLP,"12,555.50",24/03/2015
Commercial,Regional Enterprise,Consultants Fees,60014790,GVA GRIMLEY LTD,"3,920.00",17/03/2015
Commercial,Regional Enterprise,Consultants Fees,60014803,GVA GRIMLEY LTD,"11,820.00",17/03/2015
Commercial,Regional Enterprise,Consultants Fees,60016358,LONDON BOROUGH OF CAMDEN,"15,447.00",31/03/2015
Commercial,Regional Enterprise,Consultants Fees,60014642,NORTH LONDON ESTATE PARTNERSHIPS LTD,"4,375.00",17/03/2015
Commercial,Regional Enterprise,Consultants Fees,60014654,NORTH LONDON ESTATE PARTNERSHIPS LTD,"8,962.50",17/03/2015
Commercial,Regional Enterprise,Consultants Fees,60009755,PRIORITY ESTATES PROJECT LTD,"2,514.60",31/03/2015
Commercial,Regional Enterprise,Consultants Fees,60011343,THE BARNETGROUP LIMITED,920,04/03/2015
Commercial,Regional Enterprise,Consultants Fees,60015501,WRAGGE LAWRENCE GRAHAM & CO LLP,"32,784.48",18/03/2015
Commercial,Regional Enterprise,Consultants Fees,60016840,WRAGGE LAWRENCE GRAHAM & CO LLP,"64,826.32",27/03/2015
Commercial,Regional Enterprise,Equipment and Materials Purcha,60011270,FITZPATRICK WOOLMER DESIGN &,"1,860.26",20/03/2015
Commercial,Regional Enterprise,Grant Payments,20018385,AMWELL CONSTRUCTION LTD,626.11,25/03/2015
Commercial,Regional Enterprise,Grant Payments,20017968,DP BUILDERS DISABLED ADAPTATIONS,"5,244.75",16/03/2015
Commercial,Regional Enterprise,Grant Payments,20018083,GREEN GARDEN,300,19/03/2015
Commercial,Regional Enterprise,Grant Payments,20017703,MCP PROPERTY SERVICES LTD,"5,940.00",09/03/2015
Commercial,Regional Enterprise,Grant Payments,60017081,R&B DECORATORS AND REFURBISHMENT,"2,728.00",30/03/2015
Commercial,Regional Enterprise,Grant Payments,20017565,REDACTED - PERSONAL DATA,346.8,05/03/2015
Commercial,Regional Enterprise,Grant Payments,20017696,REDACTED - PERSONAL DATA,"4,320.00",09/03/2015
Commercial,Regional Enterprise,Grant Payments,20018467,REDACTED - PERSONAL DATA,"4,095.00",26/03/2015
Commercial,Regional Enterprise,Legal and Court Fees,20017473,REDACTED - PERSONAL DATA,500,03/03/2015
Commercial,Regional Enterprise,Other Services,60009122,CONWAY AECOM LTD,"1,260.00",16/03/2015
Commercial,Regional Enterprise,Other Services,60009813,CONWAY AECOM LTD,"5,000.00",16/03/2015
Commercial,Regional Enterprise,Other Services,60010900,CONWAY AECOM LTD,"15,000.00",16/03/2015
Commercial,Regional Enterprise,Other Services,60011107,CONWAY AECOM LTD,"4,877.99",16/03/2015
Commercial,Regional Enterprise,Other Services,60011125,CONWAY AECOM LTD,854.55,16/03/2015
Commercial,Regional Enterprise,Other Services,60011136,CONWAY AECOM LTD,"1,012.80",16/03/2015
Commercial,Regional Enterprise,Other Services,60011208,CONWAY AECOM LTD,937.5,16/03/2015
Commercial,Regional Enterprise,Other Services,60011863,CONWAY AECOM LTD,"3,833.79",16/03/2015
Commercial,Regional Enterprise,Other Services,60011918,CONWAY AECOM LTD,"1,012.50",17/03/2015
Commercial,Regional Enterprise,Other Services,60012564,CONWAY AECOM LTD,"7,928.08",16/03/2015
Commercial,Regional Enterprise,Other Services,60013583,CONWAY AECOM LTD,"23,500.00",17/03/2015
Commercial,Regional Enterprise,Other Services,60013597,CONWAY AECOM LTD,877.3,17/03/2015
Commercial,Regional Enterprise,Other Services,60013669,CONWAY AECOM LTD,"3,257.65",17/03/2015
Commercial,Regional Enterprise,Other Services,60014183,CONWAY AECOM LTD,864,05/03/2015
Commercial,Regional Enterprise,Other Services,60014730,CONWAY AECOM LTD,569.7,24/03/2015
Commercial,Regional Enterprise,Other Services,60014751,CONWAY AECOM LTD,654.1,24/03/2015
Commercial,Regional Enterprise,Other Services,60014754,CONWAY AECOM LTD,720,11/03/2015
Commercial,Regional Enterprise,Other Services,60014763,CONWAY AECOM LTD,727.95,23/03/2015
Commercial,Regional Enterprise,Other Services,60014766,CONWAY AECOM LTD,873.54,23/03/2015
Commercial,Regional Enterprise,Other Services,60014785,CONWAY AECOM LTD,892.53,24/03/2015
Commercial,Regional Enterprise,Other Services,60014789,CONWAY AECOM LTD,"13,641.15",16/03/2015
Commercial,Regional Enterprise,Other Services,60014795,CONWAY AECOM LTD,727.95,24/03/2015
Commercial,Regional Enterprise,Other Services,60014800,CONWAY AECOM LTD,974.82,24/03/2015
Commercial,Regional Enterprise,Other Services,60014809,CONWAY AECOM LTD,"1,006.47",24/03/2015
Commercial,Regional Enterprise,Other Services,60014821,CONWAY AECOM LTD,"3,459.48",16/03/2015
Commercial,Regional Enterprise,Other Services,60014840,CONWAY AECOM LTD,"1,215.36",24/03/2015
Commercial,Regional Enterprise,Other Services,60014842,CONWAY AECOM LTD,680.48,24/03/2015
Commercial,Regional Enterprise,Other Services,60014850,CONWAY AECOM LTD,949.5,24/03/2015
Commercial,Regional Enterprise,Other Services,60014878,CONWAY AECOM LTD,263.75,23/03/2015
Commercial,Regional Enterprise,Other Services,60014886,CONWAY AECOM LTD,"2,263.95",11/03/2015
Commercial,Regional Enterprise,Other Services,60014892,CONWAY AECOM LTD,355.44,11/03/2015
Commercial,Regional Enterprise,Other Services,60014896,CONWAY AECOM LTD,974.82,23/03/2015
Commercial,Regional Enterprise,Other Services,60015003,CONWAY AECOM LTD,"10,000.00",25/03/2015
Commercial,Regional Enterprise,Other Services,60015098,CONWAY AECOM LTD,"5,000.00",16/03/2015
Commercial,Regional Enterprise,Other Services,60015158,CONWAY AECOM LTD,486,27/03/2015
Commercial,Regional Enterprise,Other Services,60015161,CONWAY AECOM LTD,522,27/03/2015
Commercial,Regional Enterprise,Other Services,60015308,CONWAY AECOM LTD,"1,218.00",27/03/2015
Commercial,Regional Enterprise,Other Services,60015605,CONWAY AECOM LTD,720,17/03/2015
Commercial,Regional Enterprise,Other Services,60015641,CONWAY AECOM LTD,"1,020.00",17/03/2015
Commercial,Regional Enterprise,Other Services,60015675,CONWAY AECOM LTD,810,23/03/2015
Commercial,Regional Enterprise,Other Services,60015689,CONWAY AECOM LTD,"1,440.00",17/03/2015
Commercial,Regional Enterprise,Other Services,60015734,CONWAY AECOM LTD,638.75,17/03/2015
Commercial,Regional Enterprise,Other Services,60016161,CONWAY AECOM LTD,"3,855.57",27/03/2015
Commercial,Regional Enterprise,Other Services,60016169,CONWAY AECOM LTD,402.18,23/03/2015
Commercial,Regional Enterprise,Other Services,60016175,CONWAY AECOM LTD,994.8,23/03/2015
Commercial,Regional Enterprise,Other Services,60016189,CONWAY AECOM LTD,"1,456.62",23/03/2015
Commercial,Regional Enterprise,Other Services,60016192,CONWAY AECOM LTD,307.38,23/03/2015
Commercial,Regional Enterprise,Other Services,60016206,CONWAY AECOM LTD,"1,596.67",27/03/2015
Commercial,Regional Enterprise,Other Services,60016216,CONWAY AECOM LTD,268.12,23/03/2015
Commercial,Regional Enterprise,Other Services,60016218,CONWAY AECOM LTD,"3,833.78",27/03/2015
Commercial,Regional Enterprise,Other Services,60016227,CONWAY AECOM LTD,"2,426.12",27/03/2015
Commercial,Regional Enterprise,Other Services,60016261,CONWAY AECOM LTD,402.18,23/03/2015
Commercial,Regional Enterprise,Other Services,60016270,CONWAY AECOM LTD,"4,263.98",27/03/2015
Commercial,Regional Enterprise,Other Services,60016281,CONWAY AECOM LTD,355.44,23/03/2015
Commercial,Regional Enterprise,Other Services,60016323,CONWAY AECOM LTD,"6,295.49",27/03/2015
Commercial,Regional Enterprise,Other Services,60016352,CONWAY AECOM LTD,"4,069.41",27/03/2015
Commercial,Regional Enterprise,Other Services,60016314,GEOPLACE LLP,450,23/03/2015
Commercial,Regional Enterprise,Professional Services,10012092,RE (REGIONAL ENTERPRISE) LIMITED,"8,635.77",19/03/2015
Commercial,Regional Enterprise,RE Services Contract Payment,10012014,RE (REGIONAL ENTERPRISE) LIMITED,"1,916.67",11/03/2015
Commercial,The Barnet Group,Consultants Fees,60014860,THE BARNETGROUP LIMITED,"38,430.75",11/03/2015
Commercial,The Barnet Group,Grant Payments,60014818,THE BARNETGROUP LIMITED,"39,142.80",11/03/2015
Commercial,The Barnet Group,Grant Payments,60014874,THE BARNETGROUP LIMITED,"40,000.00",11/03/2015
Commercial,The Barnet Group,Legal and Court Fees,60013411,THE BARNETGROUP LIMITED,"32,300.00",05/03/2015
Commercial,The Barnet Group,Legal and Court Fees,60015185,THE BARNETGROUP LIMITED,"48,500.00",18/03/2015
Commercial,The Barnet Group,Legal and Court Fees,60015311,THE BARNETGROUP LIMITED,"38,850.00",18/03/2015
Commercial,The Barnet Group,Private Contractors - Third Pa,60013368,THE BARNETGROUP LIMITED,"17,443.81",06/03/2015
Commissioning,Commissioning,Building Repairs & Maintenance,60011665,RGE SERVICES,"1,002.49",03/03/2015
Commissioning,Commissioning,Building Repairs & Maintenance,60011739,RGE SERVICES,635.82,02/03/2015
Commissioning,Commissioning,Building Repairs & Maintenance,60011770,RGE SERVICES,503.55,03/03/2015
Commissioning,Commissioning,Building Repairs & Maintenance,60012590,S W BRUCE & CO LTD,"1,179.00",17/03/2015
Commissioning,Commissioning,Consultants Fees,60013295,MURPHY SURVEYS LIMITED,"4,425.00",19/03/2015
Commissioning,Commissioning,Discretionary awards,20018701,BARNET ASSOCIATION OF TAMIL ELDERS,"4,999.50",30/03/2015
Commissioning,Commissioning,Discretionary awards,20018677,BARNET COMMUNITY PROJECTS,"4,947.00",30/03/2015
Commissioning,Commissioning,Discretionary awards,20018678,BARNET ELIZABETHANS,"4,800.00",30/03/2015
Commissioning,Commissioning,Discretionary awards,20018702,COPPETTS WOOD,"4,358.00",30/03/2015
Commissioning,Commissioning,Discretionary awards,20018689,CRICKLEWOOD IMPROVEMENT PROGRAMME,"5,998.40",30/03/2015
Commissioning,Commissioning,Discretionary awards,20018725,CRICKLEWOOD IMPROVEMENT PROGRAMME,"9,999.00",31/03/2015
Commissioning,Commissioning,Discretionary awards,20018680,EAST BARNET COMMUNITY FESTIVAL,"1,300.00",30/03/2015
Commissioning,Commissioning,Discretionary awards,20018681,EAST BARNET COMMUNITY FESTIVAL,850,30/03/2015
Commissioning,Commissioning,Discretionary awards,20018503,EAST FINCHLEY COMMUNITY TRUST,"1,125.00",30/03/2015
Commissioning,Commissioning,Discretionary awards,20018686,EXPOSURE ORGANISATION LTD,"6,998.60",30/03/2015
Commissioning,Commissioning,Discretionary awards,20018696,FRIENDS OF CHILDS HILL PARK,"9,950.00",30/03/2015
Commissioning,Commissioning,Discretionary awards,20018692,FRIENDS OF EZRA,"4,500.00",30/03/2015
Commissioning,Commissioning,Discretionary awards,20018691,FRIENDS OF FRIARY PARK,"3,675.00",30/03/2015
Commissioning,Commissioning,Discretionary awards,20018697,FRIENDS OF TIFERES,"5,000.00",30/03/2015
Commissioning,Commissioning,Discretionary awards,20018684,HOME START BARNET,"5,999.40",30/03/2015
Commissioning,Commissioning,Discretionary awards,20018694,LEGADEL,"5,970.00",30/03/2015
Commissioning,Commissioning,Discretionary awards,20018682,LOVE BURNT OAK COMMUNITY RESOURCE & SUPP,"6,279.00",30/03/2015
Commissioning,Commissioning,Discretionary awards,20018703,MIGADEL EMUNAH LTD,"4,340.00",30/03/2015
Commissioning,Commissioning,Discretionary awards,20018704,MIGADEL EMUNAH LTD,"4,340.00",30/03/2015
Commissioning,Commissioning,Discretionary awards,20018723,NEW BARNET COMMUNITY ASSOCIATION,"4,350.00",31/03/2015
Commissioning,Commissioning,Discretionary awards,20018724,NORTH FINCHLEY TOWN TEAM,"9,999.00",31/03/2015
Commissioning,Commissioning,Discretionary awards,20018698,NUTMEG COMMUNITY,"3,804.00",30/03/2015
Commissioning,Commissioning,Discretionary awards,20018685,THE PEARS NATIONAL CENTRE FOR AUTISM,"2,500.00",30/03/2015
Commissioning,Commissioning,Discretionary awards,20018688,THE TRAVELLER MOVEMENT,"2,019.00",30/03/2015
Commissioning,Commissioning,Employee Expenses,60015148,GATENBY SANDERSON,"7,100.00",18/03/2015
Commissioning,Commissioning,Employee Expenses,60015164,GATENBY SANDERSON,"4,800.00",17/03/2015
Commissioning,Commissioning,Employee Expenses,60015249,GATENBY SANDERSON,"8,500.00",18/03/2015
Commissioning,Commissioning,Employee Expenses,60015262,GATENBY SANDERSON,"5,250.00",18/03/2015
Commissioning,Commissioning,Employee Expenses,60015283,GATENBY SANDERSON,"2,950.00",18/03/2015
Commissioning,Commissioning,Employee Expenses,60015292,GATENBY SANDERSON,"8,500.00",18/03/2015
Commissioning,Commissioning,Employee Expenses,60015306,GATENBY SANDERSON,"17,000.00",17/03/2015
Commissioning,Commissioning,Employee Expenses,60015315,GATENBY SANDERSON,"4,800.00",18/03/2015
Commissioning,Commissioning,Employee Expenses,60015318,GATENBY SANDERSON,"3,291.75",18/03/2015
Commissioning,Commissioning,Employee Expenses,60015322,GATENBY SANDERSON,"4,750.00",18/03/2015
Commissioning,Commissioning,Employee Expenses,60015331,GATENBY SANDERSON,"2,950.00",18/03/2015
Commissioning,Commissioning,Employee Expenses,60016394,GATENBY SANDERSON,"3,234.79",24/03/2015
Commissioning,Commissioning,Employee Expenses,60016402,GATENBY SANDERSON,"5,000.00",25/03/2015
Commissioning,Commissioning,Employee Expenses,60016447,GATENBY SANDERSON,"1,000.00",27/03/2015
Commissioning,Commissioning,Grant Payments,20017626,BARNET COMMUNITY PROJECTS,"2,395.00",06/03/2015
Commissioning,Commissioning,Grant Payments,20017700,BARNET SENIOR'S ASSEMBLY,"2,000.00",09/03/2015
Commissioning,Commissioning,Grant Payments,20018375,FRIENDS OF CHILDS HILL PARK,"7,500.00",25/03/2015
Commissioning,Commissioning,Grant Payments,20017692,FRIERN BARNET COMMUNITY LIBRARY,"1,668.00",09/03/2015
Commissioning,Commissioning,Grant Payments,20017382,SAAM THEATRE COMPANY,"1,620.00",02/03/2015
Commissioning,Commissioning,Other Agencies - Third Party P,60013988,FAMILY FUND TRADING LTD,"3,708.34",05/03/2015
Commissioning,Commissioning,Other Agencies - Third Party P,60014911,FAMILY FUND TRADING LTD,259,13/03/2015
Commissioning,Commissioning,Other Services,60009359,4PROJECTS LTD,"1,725.00",18/03/2015
Commissioning,Commissioning,Printing-Contract,10005918,LONDON LETTERBOX MARKETING,"6,682.50",26/03/2015
Commissioning,Commissioning,Printing-Contract,60012411,LONDON LETTERBOX MARKETING,"6,682.50",26/03/2015
Commissioning,Commissioning,Professional Services,20017743,GENERAL DYNAMICS INFORMATION TECHNOLOGY,"4,163.68",10/03/2015
Commissioning,Commissioning,Professional Services,20017746,GENERAL DYNAMICS INFORMATION TECHNOLOGY,"2,625.00",10/03/2015
Commissioning,Commissioning,Professional Services,20017747,GENERAL DYNAMICS INFORMATION TECHNOLOGY,"4,237.96",10/03/2015
Commissioning,Commissioning,Professional Services,20017749,GENERAL DYNAMICS INFORMATION TECHNOLOGY,750,10/03/2015
Commissioning,Commissioning,Professional Services,20017751,GENERAL DYNAMICS INFORMATION TECHNOLOGY,"4,154.12",10/03/2015
Commissioning,Commissioning,Professional Services,20017752,GENERAL DYNAMICS INFORMATION TECHNOLOGY,"4,066.04",11/03/2015
Commissioning,Commissioning,Professional Services,20017753,GENERAL DYNAMICS INFORMATION TECHNOLOGY,-554,10/03/2015
Commissioning,Commissioning,Professional Services,20017755,GENERAL DYNAMICS INFORMATION TECHNOLOGY,"-1,088.27",10/03/2015
Commissioning,Commissioning,Professional Services,60014490,GENERAL DYNAMICS INFORMATION TECHNOLOGY,"4,354.76",10/03/2015
Commissioning,Commissioning,Professional Services,60014579,GENERAL DYNAMICS INFORMATION TECHNOLOGY,375,23/03/2015
Commissioning,Commissioning,Professional Services,60014638,GENERAL DYNAMICS INFORMATION TECHNOLOGY,950,23/03/2015
Commissioning,Commissioning,Professional Services,60014443,RESEARCH FOR TODAY,"9,600.00",23/03/2015
Commissioning,Commissioning,Publications,60013224,REDACTED - PERSONAL DATA,300,02/03/2015
Commissioning,Commissioning,Rubbish Collection,60014519,EUNOMIA RESEARCH AND CONSULTING,"16,261.00",27/03/2015
Commissioning,Commissioning,Service Charges,60016313,MIDDLESEX UNIVERSITY,"2,553.07",23/03/2015
Commissioning,Commissioning,Software Licences & Support,60012647,DOTTED EYES LTD,"1,360.00",12/03/2015
Commissioning,Commissioning,Software Licences & Support,60012985,EXPERIAN LTD,"8,452.21",16/03/2015
Commissioning,Commissioning,Subscriptions,60012738,INFORMATION & RECORDS MANAGEMENT SO,300,02/03/2015
Commissioning,Commissioning,Training,60013923,CAPITA CONFERENCES,350,25/03/2015
Commissioning,Commissioning,Training,60009788,LOCAL PARTNERSHIPS LLP,"2,500.00",13/03/2015
Commissioning,Commissioning,Training,60014114,MEDIA FIRST LTD,"1,295.00",09/03/2015
Commissioning,Commissioning,Training,60016807,VBA PARTNERS LTD,795.6,26/03/2015
Commissioning,Commissioning,Ttl IT & Comms,60015260,CAPITA BUSINESS SERVICES LTD,"1,050.00",24/03/2015
Corporate Accounting,Corporate Accounting,Consultants Fees,20017975,REDACTED - PERSONAL DATA,250,16/03/2015
Corporate Accounting,Corporate Accounting,Fees and Charges,20017393,TFL,"100,000.00",02/03/2015
Corporate Accounting,Corporate Accounting,Fees and Charges,20018119,TFL,"202,100.65",20/03/2015
Corporate Accounting,Corporate Accounting,Government departments - Third,EBX0049954,GREATER LONDON AUTHORITY,"241,418.93",18/03/2015
Corporate Accounting,Corporate Accounting,Other Agencies - Third Party P,60011103,CITIBANK NA LONDON,583.1,17/03/2015
Corporate Accounting,Corporate Accounting,Other Agencies - Third Party P,60013749,CITIBANK NA LONDON,"1,882.82",03/03/2015
Corporate Accounting,Corporate Accounting,Other Agencies - Third Party P,60013782,CITIBANK NA LONDON,250,03/03/2015
Corporate Accounting,Corporate Accounting,Other Agencies - Third Party P,60013871,CITIBANK NA LONDON,264.7,03/03/2015
Corporate Accounting,Corporate Accounting,Other Agencies - Third Party P,60013881,CITIBANK NA LONDON,257.35,05/03/2015
Corporate Accounting,Corporate Accounting,Other Agencies - Third Party P,60013883,CITIBANK NA LONDON,"2,073.77",03/03/2015
Corporate Accounting,Corporate Accounting,Other Agencies - Third Party P,60013885,CITIBANK NA LONDON,320,03/03/2015
Corporate Accounting,Corporate Accounting,Other Agencies - Third Party P,60014426,CITIBANK NA LONDON,350,10/03/2015
Corporate Accounting,Corporate Accounting,Other Agencies - Third Party P,60014435,CITIBANK NA LONDON,309,10/03/2015
Corporate Accounting,Corporate Accounting,Other Agencies - Third Party P,60014437,CITIBANK NA LONDON,"1,491.80",10/03/2015
Corporate Accounting,Corporate Accounting,Other Agencies - Third Party P,60014474,CITIBANK NA LONDON,250,10/03/2015
Corporate Accounting,Corporate Accounting,Other Agencies - Third Party P,60014488,CITIBANK NA LONDON,505,10/03/2015
Corporate Accounting,Corporate Accounting,Other Agencies - Third Party P,60014838,CITIBANK NA LONDON,"9,160.35",13/03/2015
Corporate Accounting,Corporate Accounting,Other Agencies - Third Party P,60015873,CITIBANK NA LONDON,340,23/03/2015
Corporate Accounting,Corporate Accounting,Other Agencies - Third Party P,60016108,CITIBANK NA LONDON,"2,430.95",23/03/2015
Corporate Accounting,Corporate Accounting,Other Local Authorities - Thir,EBX0048749,GREATER LONDON AUTHORITY,"3,841,043.70",09/03/2015
Corporate Accounting,Corporate Accounting,Other Transfer Payments to Soc,20018102,BRITISH HEART FOUNDATION,680,20/03/2015
Corporate Accounting,Corporate Accounting,Other Transfer Payments to Soc,20018412,THE SHARE FOUNDATION,"3,800.00",26/03/2015
Delivery Units,Adults and Communities,Advertising,20017324,BARNET CITIZENS ADVICE BUREAU,"59,502.56",02/03/2015
Delivery Units,Adults and Communities,Building Repairs & Maintenance,60011554,C FRANKLIN LTD,495,24/03/2015
Delivery Units,Adults and Communities,Consultants Fees,60015975,VOICEABILITY,"2,456.00",23/03/2015
Delivery Units,Adults and Communities,Consultants Fees,60016844,VOICEABILITY,"1,304.00",31/03/2015
Delivery Units,Adults and Communities,Equipment and Materials Purcha,60012391,MEDEQUIP ASSISTIVE TECHNOLOGY LTD,"198,957.89",19/03/2015
Delivery Units,Adults and Communities,Equipment and Materials Purcha,60012781,MEDEQUIP ASSISTIVE TECHNOLOGY LTD,"1,187.52",24/03/2015
Delivery Units,Adults and Communities,Equipment and Materials Purcha,60014792,MEDEQUIP ASSISTIVE TECHNOLOGY LTD,"208,611.82",17/03/2015
Delivery Units,Adults and Communities,Equipment and Materials Purcha,60014872,MEDEQUIP ASSISTIVE TECHNOLOGY LTD,761.4,17/03/2015
Delivery Units,Adults and Communities,Equipment and Materials Purcha,60014882,MEDEQUIP ASSISTIVE TECHNOLOGY LTD,746.4,17/03/2015
Delivery Units,Adults and Communities,Equipment and Materials Purcha,60013675,OCS GROUP UK LIMITED,"46,225.00",17/03/2015
Delivery Units,Adults and Communities,Equipment and Materials Purcha,60014504,OCS GROUP UK LIMITED,"5,536.00",27/03/2015
Delivery Units,Adults and Communities,Equipment and Materials Purcha,60015960,OCS GROUP UK LIMITED,"46,225.00",27/03/2015
Delivery Units,Adults and Communities,Equipment and Materials Purcha,60011466,REDLAND HEALTHCARE LTD,"1,336.87",03/03/2015
Delivery Units,Adults and Communities,Equipment and Materials Purcha,60012741,THE BARNETGROUP LIMITED,"12,727.40",02/03/2015
Delivery Units,Adults and Communities,Equipment and Materials Purcha,60016073,THE BARNETGROUP LIMITED,"13,391.72",23/03/2015
Delivery Units,Adults and Communities,Equipment and Materials Repair,10006666,I D INTEGRATED SECURITY LTD,305,30/03/2015
Delivery Units,Adults and Communities,Equipment and Materials Repair,10006673,I D INTEGRATED SECURITY LTD,625,30/03/2015
Delivery Units,Adults and Communities,Equipment and Materials Repair,60004872,I D INTEGRATED SECURITY LTD,427.5,30/03/2015
Delivery Units,Adults and Communities,Equipment and Materials Repair,60007125,I D INTEGRATED SECURITY LTD,"1,332.24",30/03/2015
Delivery Units,Adults and Communities,Gas,10012075,BRITISH GAS BUSINESS,"1,359.04",12/03/2015
Delivery Units,Adults and Communities,Gas,60016518,BRITISH GAS BUSINESS(ELEC),"6,769.78",25/03/2015
Delivery Units,Adults and Communities,Grant Payments,20018465,AMWELL CONSTRUCTION LTD,921,26/03/2015
Delivery Units,Adults and Communities,Grant Payments,20017566,REDACTED - PERSONAL DATA,277.2,05/03/2015
Delivery Units,Adults and Communities,Grant Payments,20017567,REDACTED - PERSONAL DATA,300,05/03/2015
Delivery Units,Adults and Communities,Health authorities - Third Par,60014085,HERTFORDSHIRE PARTNERSHIP,"110,288.00",06/03/2015
Delivery Units,Adults and Communities,Miscellaneous Expenses,60014265,BRITISH TELECOMMUNICATIONS PLC,628.64,06/03/2015
Delivery Units,Adults and Communities,Other Agencies - Third Party P,30066449,AARON COURT CARE HOME,"2,001.92",03/03/2015
Delivery Units,Adults and Communities,Other Agencies - Third Party P,30068934,AARON COURT CARE HOME,"2,216.41",19/03/2015
Delivery Units,Adults and Communities,Other Agencies - Third Party P,30066145,ABBEY RAVENSCROFT PARK NURSING HOME,"2,800.00",02/03/2015
Delivery Units,Adults and Communities,Other Agencies - Third Party P,30066401,ABBEY RAVENSCROFT PARK NURSING HOME,"2,321.92",03/03/2015
Delivery Units,Adults and Communities,Other Agencies - Third Party P,30066402,ABBEY RAVENSCROFT PARK NURSING HOME,"2,321.92",03/03/2015
Delivery Units,Adults and Communities,Other Agencies - Third Party P,30066403,ABBEY RAVENSCROFT PARK NURSING HOME,"2,321.92",03/03/2015
Delivery Units,Adults and Communities,Other Agencies - Third Party P,30066404,ABBEY RAVENSCROFT PARK NURSING HOME,"2,400.00",03/03/2015
Delivery Units,Adults and Communities,Other Agencies - Third Party P,30066405,ABBEY RAVENSCROFT PARK NURSING HOME,"2,094.52",03/03/2015
Delivery Units,Adults and Communities,Other Agencies - Third Party P,30066406,ABBEY RAVENSCROFT PARK NURSING HOME,-495.8,03/03/2015
Delivery Units,Adults and Communities,Other Agencies - Third Party P,30066407,ABBEY RAVENSCROFT PARK NURSING HOME,"2,400.00",03/03/2015
Delivery Units,Adults and Communities,Other Agencies - Third Party P,30066408,ABBEY RAVENSCROFT PARK NURSING HOME,"2,094.52",03/03/2015
Delivery Units,Adults and Communities,Other Agencies - Third Party P,30066409,ABBEY RAVENSCROFT PARK NURSING HOME,"2,321.92",03/03/2015
Delivery Units,Adults and Communities,Other Agencies - Third Party P,30066410,ABBEY RAVENSCROFT PARK NURSING HOME,"2,321.92",03/03/2015
Delivery Units,Adults and Communities,Other Agencies - Third Party P,30066411,ABBEY RAVENSCROFT PARK NURSING HOME,"2,321.92",03/03/2015
Delivery Units,Adults and Communities,Other Agencies - Third Party P,30066412,ABBEY RAVENSCROFT PARK NURSING HOME,"2,321.92",03/03/2015
Delivery Units,Adults and Communities,Other Agencies - Third Party P,30066413,ABBEY RAVENSCROFT PARK NURSING HOME,"2,321.92",03/03/2015
Delivery Units,Adults and Communities,Other Agencies - Third Party P,30066414,ABBEY RAVENSCROFT PARK NURSING HOME,"2,321.92",03/03/2015
Delivery Units,Adults and Communities,Other Agencies - Third Party P,30066415,ABBEY RAVENSCROFT PARK NURSING HOME,"2,800.00",03/03/2015
Delivery Units,Adults and Communities,Other Agencies - Third Party P,30066857,ABBEY RAVENSCROFT PARK NURSING HOME,"2,600.00",05/03/2015
Delivery Units,Adults and Communities,Other Agencies - Third Party P,30066858,ABBEY RAVENSCROFT PARK NURSING HOME,"2,320.00",05/03/2015
Delivery Units,Adults and Communities,Other Agencies - Third Party P,30068093,ABBEY RAVENSCROFT PARK NURSING HOME,"-1,071.43",17/03/2015
Delivery Units,Adults and Communities,Other Agencies - Third Party P,30068094,ABBEY RAVENSCROFT PARK NURSING HOME,"-1,300.00",17/03/2015
Delivery Units,Adults and Communities,Other Agencies - Third Party P,30068095,ABBEY RAVENSCROFT PARK NURSING HOME,"2,570.70",17/03/2015
Delivery Units,Adults and Communities,Other Agencies - Third Party P,30068096,ABBEY RAVENSCROFT PARK NURSING HOME,"2,570.70",17/03/2015
Delivery Units,Adults and Communities,Other Agencies - Third Party P,30068097,ABBEY RAVENSCROFT PARK NURSING HOME,"2,570.70",17/03/2015
Delivery Units,Adults and Communities,Other Agencies - Third Party P,30068098,ABBEY RAVENSCROFT PARK NURSING HOME,"2,657.14",17/03/2015
Delivery Units,Adults and Communities,Other Agencies - Third Party P,30068099,ABBEY RAVENSCROFT PARK NURSING HOME,"2,318.93",17/03/2015
Delivery Units,Adults and Communities,Other Agencies - Third Party P,30068100,ABBEY RAVENSCROFT PARK NURSING HOME,-548.92,17/03/2015
Delivery Units,Adults and Communities,Other Agencies - Third Party P,30068101,ABBEY RAVENSCROFT PARK NURSING HOME,"2,657.14",17/03/2015
Delivery Units,Adults and Communities,Other Agencies - Third Party P,30068102,ABBEY RAVENSCROFT PARK NURSING HOME,"2,318.93",17/03/2015
Delivery Units,Adults and Communities,Other Agencies - Third Party P,30068103,ABBEY RAVENSCROFT PARK NURSING HOME,"2,570.70",17/03/2015
Delivery Units,Adults and Communities,Other Agencies - Third Party P,30068104,ABBEY RAVENSCROFT PARK NURSING HOME,"2,570.70",17/03/2015
Delivery Units,Adults and Communities,Other Agencies - Third Party P,30068105,ABBEY RAVENSCROFT PARK NURSING HOME,"2,570.70",17/03/2015
Delivery Units,Adults and Communities,Other Agencies - Third Party P,30068106,ABBEY RAVENSCROFT PARK NURSING HOME,"2,570.83",17/03/2015
Delivery Units,Adults and Communities,Other Agencies - Third Party P,30068107,ABBEY RAVENSCROFT PARK NURSING HOME,"-1,161.04",17/03/2015
Delivery Units,Adults and Communities,Other Agencies - Third Party P,30068108,ABBEY RAVENSCROFT PARK NURSING HOME,"2,570.70",17/03/2015
Delivery Units,Adults and Communities,Other Agencies - Third Party P,30068109,ABBEY RAVENSCROFT PARK NURSING HOME,"2,570.70",17/03/2015
Delivery Units,Adults and Communities,Other Agencies - Third Party P,30068110,ABBEY RAVENSCROFT PARK NURSING HOME,"2,570.70",17/03/2015
Delivery Units,Adults and Communities,Other Agencies - Third Party P,30068111,ABBEY RAVENSCROFT PARK NURSING HOME,"3,100.00",17/03/2015
Delivery Units,Adults and Communities,Other Agencies - Third Party P,30068112,ABBEY RAVENSCROFT PARK NURSING HOME,"3,100.00",17/03/2015
Delivery Units,Adults and Communities,Other Agencies - Third Party P,30068853,ABOUT ME CARE & SUPPORT LTD,"1,365.84",19/03/2015
Delivery Units,Adults and Communities,Other Agencies - Third Party P,30066231,ACTION ON HEARING LOSS,"1,489.20",02/03/2015
Delivery Units,Adults and Communities,Other Agencies - Third Party P,30066233,ACTION ON HEARING LOSS,"5,642.64",02/03/2015
Delivery Units,Adults and Communities,Other Agencies - Third Party P,30066234,ACTION ON HEARING LOSS,-362.8,02/03/2015
Delivery Units,Adults and Communities,Other Agencies - Third Party P,30068174,ACTION ON HEARING LOSS,"4,595.04",17/03/2015
Delivery Units,Adults and Communities,Other Agencies - Third Party P,30068175,ACTION ON HEARING LOSS,-362.8,17/03/2015
Delivery Units,Adults and Communities,Other Agencies - Third Party P,30069541,ACTION ON HEARING LOSS,"2,651.29",23/03/2015
Delivery Units,Adults and Communities,Other Agencies - Third Party P,30069542,ACTION ON HEARING LOSS,-431.63,23/03/2015
Delivery Units,Adults and Communities,Other Agencies - Third Party P,30069543,ACTION ON HEARING LOSS,"5,938.88",23/03/2015
Delivery Units,Adults and Communities,Other Agencies - Third Party P,30069544,ACTION ON HEARING LOSS,-972,23/03/2015
Delivery Units,Adults and Communities,Other Agencies - Third Party P,30069555,ACTION ON HEARING LOSS,"1,060.50",23/03/2015
Delivery Units,Adults and Communities,Other Agencies - Third Party P,30066839,AGUDAS ISRAEL HOUSING ASSCTN LTD,"1,600.20",06/03/2015
Delivery Units,Adults and Communities,Other Agencies - Third Party P,30067112,AGUDAS ISRAEL HOUSING ASSCTN LTD,"3,000.00",12/03/2015
Delivery Units,Adults and Communities,Other Agencies - Third Party P,30067113,AGUDAS ISRAEL HOUSING ASSCTN LTD,-495.8,12/03/2015
Delivery Units,Adults and Communities,Other Agencies - Third Party P,30067114,AGUDAS ISRAEL HOUSING ASSCTN LTD,"2,849.00",12/03/2015
Delivery Units,Adults and Communities,Other Agencies - Third Party P,30067115,AGUDAS ISRAEL HOUSING ASSCTN LTD,"3,800.00",12/03/2015
Delivery Units,Adults and Communities,Other Agencies - Third Party P,30067116,AGUDAS ISRAEL HOUSING ASSCTN LTD,"2,283.20",12/03/2015
Delivery Units,Adults and Communities,Other Agencies - Third Party P,30067945,AGUDAS ISRAEL HOUSING ASSCTN LTD,"3,321.43",19/03/2015
Delivery Units,Adults and Communities,Other Agencies - Third Party P,30067946,AGUDAS ISRAEL HOUSING ASSCTN LTD,-548.92,19/03/2015
Delivery Units,Adults and Communities,Other Agencies - Third Party P,30067947,AGUDAS ISRAEL HOUSING ASSCTN LTD,"3,154.25",19/03/2015
Delivery Units,Adults and Communities,Other Agencies - Third Party P,30067948,AGUDAS ISRAEL HOUSING ASSCTN LTD,"4,207.14",19/03/2015
Delivery Units,Adults and Communities,Other Agencies - Third Party P,30067949,AGUDAS ISRAEL HOUSING ASSCTN LTD,"2,527.83",19/03/2015
Delivery Units,Adults and Communities,Other Agencies - Third Party P,30066342,ALL ABOUT CARE,"1,827.48",03/03/2015
Delivery Units,Adults and Communities,Other Agencies - Third Party P,30066343,ALL ABOUT CARE,-319.4,03/03/2015
Delivery Units,Adults and Communities,Other Agencies - Third Party P,30068631,ALL ABOUT CARE,"2,023.28",30/03/2015
Delivery Units,Adults and Communities,Other Agencies - Third Party P,30068632,ALL ABOUT CARE,-353.62,30/03/2015
Delivery Units,Adults and Communities,Other Agencies - Third Party P,30069563,ALLIED HEALTHCARE LTD,"5,186.88",23/03/2015
Delivery Units,Adults and Communities,Other Agencies - Third Party P,30066434,ANCASTER COURT NURSING HOME,"2,321.92",03/03/2015
Delivery Units,Adults and Communities,Other Agencies - Third Party P,30066435,ANCASTER COURT NURSING HOME,"2,321.92",03/03/2015
Delivery Units,Adults and Communities,Other Agencies - Third Party P,30068130,ANCASTER COURT NURSING HOME,"2,570.70",17/03/2015
Delivery Units,Adults and Communities,Other Agencies - Third Party P,30068131,ANCASTER COURT NURSING HOME,"2,570.70",17/03/2015
Delivery Units,Adults and Communities,Other Agencies - Third Party P,30068858,ANCHOR TRUST,"2,232.64",19/03/2015
Delivery Units,Adults and Communities,Other Agencies - Third Party P,30068859,ANCHOR TRUST,"2,232.64",19/03/2015
Delivery Units,Adults and Communities,Other Agencies - Third Party P,30068220,APEX CARE HOME LTD,"3,732.80",17/03/2015
Delivery Units,Adults and Communities,Other Agencies - Third Party P,30068221,APEX CARE HOME LTD,-319.4,17/03/2015
Delivery Units,Adults and Communities,Other Agencies - Third Party P,30064926,ASHFIELDS RESIDENTIAL CARE HOME,"1,950.04",06/03/2015
Delivery Units,Adults and Communities,Other Agencies - Third Party P,30066204,ASHFIELDS RESIDENTIAL CARE HOME,"8,579.65",06/03/2015
Delivery Units,Adults and Communities,Other Agencies - Third Party P,30066815,ASHGALE HOUSE,"4,272.24",05/03/2015
Delivery Units,Adults and Communities,Other Agencies - Third Party P,30066816,ASHGALE HOUSE,-362.88,05/03/2015
Delivery Units,Adults and Communities,Other Agencies - Third Party P,30068028,ASHGALE HOUSE,"4,729.98",17/03/2015
Delivery Units,Adults and Communities,Other Agencies - Third Party P,30068029,ASHGALE HOUSE,-401.76,17/03/2015
Delivery Units,Adults and Communities,Other Agencies - Third Party P,30066867,ASHTON LODGE CARE CENTRE,"2,321.92",05/03/2015
Delivery Units,Adults and Communities,Other Agencies - Third Party P,30066869,ASHTON LODGE CARE CENTRE,"2,184.04",05/03/2015
Delivery Units,Adults and Communities,Other Agencies - Third Party P,30066870,ASHTON LODGE CARE CENTRE,"2,248.80",05/03/2015
Delivery Units,Adults and Communities,Other Agencies - Third Party P,30066871,ASHTON LODGE CARE CENTRE,-319.4,05/03/2015
Delivery Units,Adults and Communities,Other Agencies - Third Party P,30066879,ASHTON LODGE CARE CENTRE,"2,095.96",05/03/2015
Delivery Units,Adults and Communities,Other Agencies - Third Party P,30066882,ASHTON LODGE CARE CENTRE,"2,094.52",05/03/2015
Delivery Units,Adults and Communities,Other Agencies - Third Party P,30066883,ASHTON LODGE CARE CENTRE,-666.92,05/03/2015
Delivery Units,Adults and Communities,Other Agencies - Third Party P,30066896,ASHTON LODGE CARE CENTRE,"2,095.96",05/03/2015
Delivery Units,Adults and Communities,Other Agencies - Third Party P,30066897,ASHTON LODGE CARE CENTRE,-517.28,05/03/2015
Delivery Units,Adults and Communities,Other Agencies - Third Party P,30066916,ASHTON LODGE CARE CENTRE,"2,184.04",05/03/2015
Delivery Units,Adults and Communities,Other Agencies - Third Party P,30066920,ASHTON LODGE CARE CENTRE,"2,094.52",05/03/2015
Delivery Units,Adults and Communities,Other Agencies - Third Party P,30067356,ASHTON LODGE CARE CENTRE,"2,138.00",12/03/2015
Delivery Units,Adults and Communities,Other Agencies - Third Party P,30067375,ASHTON LODGE CARE CENTRE,"2,184.04",12/03/2015
Delivery Units,Adults and Communities,Other Agencies - Third Party P,30068203,ASHTON LODGE CARE CENTRE,"2,453.99",17/03/2015
Delivery Units,Adults and Communities,Other Agencies - Third Party P,30068204,ASHTON LODGE CARE CENTRE,-347.95,17/03/2015
Delivery Units,Adults and Communities,Other Agencies - Third Party P,30068935,ASHTON LODGE CARE CENTRE,"2,367.07",19/03/2015
Delivery Units,Adults and Communities,Other Agencies - Third Party P,30068938,ASHTON LODGE CARE CENTRE,"2,570.70",19/03/2015
Delivery Units,Adults and Communities,Other Agencies - Third Party P,30068939,ASHTON LODGE CARE CENTRE,"2,418.04",19/03/2015
Delivery Units,Adults and Communities,Other Agencies - Third Party P,30068949,ASHTON LODGE CARE CENTRE,"2,489.74",19/03/2015
Delivery Units,Adults and Communities,Other Agencies - Third Party P,30068950,ASHTON LODGE CARE CENTRE,-353.62,19/03/2015
Delivery Units,Adults and Communities,Other Agencies - Third Party P,30068964,ASHTON LODGE CARE CENTRE,"2,320.53",19/03/2015
Delivery Units,Adults and Communities,Other Agencies - Third Party P,30068976,ASHTON LODGE CARE CENTRE,"2,318.94",19/03/2015
Delivery Units,Adults and Communities,Other Agencies - Third Party P,30068977,ASHTON LODGE CARE CENTRE,-738.38,19/03/2015
Delivery Units,Adults and Communities,Other Agencies - Third Party P,30069000,ASHTON LODGE CARE CENTRE,"1,950.04",19/03/2015
Delivery Units,Adults and Communities,Other Agencies - Third Party P,30069091,ASHTON LODGE CARE CENTRE,"2,418.04",19/03/2015
Delivery Units,Adults and Communities,Other Agencies - Third Party P,30069095,ASHTON LODGE CARE CENTRE,"2,318.93",19/03/2015
Delivery Units,Adults and Communities,Other Agencies - Third Party P,30069103,ASHTON LODGE CARE CENTRE,"2,418.04",19/03/2015
Delivery Units,Adults and Communities,Other Agencies - Third Party P,30066459,ASPEN VILLAGES LTD,"2,001.92",03/03/2015
Delivery Units,Adults and Communities,Other Agencies - Third Party P,30066460,ASPEN VILLAGES LTD,"2,321.92",03/03/2015
Delivery Units,Adults and Communities,Other Agencies - Third Party P,30066461,ASPEN VILLAGES LTD,"3,000.00",03/03/2015
Delivery Units,Adults and Communities,Other Agencies - Third Party P,30066462,ASPEN VILLAGES LTD,"3,454.04",03/03/2015
Delivery Units,Adults and Communities,Other Agencies - Third Party P,30066463,ASPEN VILLAGES LTD,-319.4,03/03/2015
Delivery Units,Adults and Communities,Other Agencies - Third Party P,30068953,ASPEN VILLAGES LTD,"2,216.41",19/03/2015
Delivery Units,Adults and Communities,Other Agencies - Third Party P,30068954,ASPEN VILLAGES LTD,"2,570.70",19/03/2015
Delivery Units,Adults and Communities,Other Agencies - Third Party P,30068955,ASPEN VILLAGES LTD,"3,321.43",19/03/2015
Delivery Units,Adults and Communities,Other Agencies - Third Party P,30068956,ASPEN VILLAGES LTD,"3,824.11",19/03/2015
Delivery Units,Adults and Communities,Other Agencies - Third Party P,30068957,ASPEN VILLAGES LTD,-353.62,19/03/2015
Delivery Units,Adults and Communities,Other Agencies - Third Party P,30067127,AUTUMN GARDENS,"2,184.04",10/03/2015
Delivery Units,Adults and Communities,Other Agencies - Third Party P,30067128,AUTUMN GARDENS,"2,800.00",10/03/2015
Delivery Units,Adults and Communities,Other Agencies - Third Party P,30067129,AUTUMN GARDENS,"4,320.00",10/03/2015
Delivery Units,Adults and Communities,Other Agencies - Third Party P,30068748,AUTUMN GARDENS,"2,184.04",19/03/2015
Delivery Units,Adults and Communities,Other Agencies - Third Party P,30068749,AUTUMN GARDENS,"2,800.00",19/03/2015
Delivery Units,Adults and Communities,Other Agencies - Third Party P,30068750,AUTUMN GARDENS,"2,365.71",19/03/2015
Delivery Units,Adults and Communities,Other Agencies - Third Party P,30066859,AVERY LODGE,"2,001.92",06/03/2015
Delivery Units,Adults and Communities,Other Agencies - Third Party P,30066860,AVERY LODGE,-495.8,06/03/2015
Delivery Units,Adults and Communities,Other Agencies - Third Party P,30068126,AVERY LODGE,"2,216.41",17/03/2015
Delivery Units,Adults and Communities,Other Agencies - Third Party P,30068127,AVERY LODGE,-548.92,17/03/2015
Delivery Units,Adults and Communities,Other Agencies - Third Party P,20017485,B & M CARE,572.66,04/03/2015
Delivery Units,Adults and Communities,Other Agencies - Third Party P,30066205,B & M CARE,-786.5,02/03/2015
Delivery Units,Adults and Communities,Other Agencies - Third Party P,30066218,B & M CARE,"2,145.00",02/03/2015
Delivery Units,Adults and Communities,Other Agencies - Third Party P,30066219,B & M CARE,279.24,02/03/2015
Delivery Units,Adults and Communities,Other Agencies - Third Party P,30066220,B & M CARE,553.37,02/03/2015
Delivery Units,Adults and Communities,Other Agencies - Third Party P,30066221,B & M CARE,591.75,02/03/2015
Delivery Units,Adults and Communities,Other Agencies - Third Party P,30066744,B & M CARE,"2,001.92",04/03/2015
Delivery Units,Adults and Communities,Other Agencies - Third Party P,30066745,B & M CARE,"2,184.04",04/03/2015
Delivery Units,Adults and Communities,Other Agencies - Third Party P,30066746,B & M CARE,"2,184.00",04/03/2015
Delivery Units,Adults and Communities,Other Agencies - Third Party P,30066747,B & M CARE,-516.56,04/03/2015
Delivery Units,Adults and Communities,Other Agencies - Third Party P,30066875,B & M CARE,"1,560.00",05/03/2015
Delivery Units,Adults and Communities,Other Agencies - Third Party P,30066876,B & M CARE,"1,872.03",05/03/2015
Delivery Units,Adults and Communities,Other Agencies - Third Party P,30066877,B & M CARE,"2,184.04",05/03/2015
Delivery Units,Adults and Communities,Other Agencies - Third Party P,30068958,B & M CARE,"2,216.41",19/03/2015
Delivery Units,Adults and Communities,Other Agencies - Third Party P,30068959,B & M CARE,"2,418.04",19/03/2015
Delivery Units,Adults and Communities,Other Agencies - Third Party P,30068960,B & M CARE,"2,418.00",19/03/2015
Delivery Units,Adults and Communities,Other Agencies - Third Party P,30068961,B & M CARE,-571.91,19/03/2015
Delivery Units,Adults and Communities,Other Agencies - Third Party P,30068962,B & M CARE,"2,418.04",19/03/2015
Delivery Units,Adults and Communities,Other Agencies - Third Party P,30069716,B & M CARE,624.01,24/03/2015
Delivery Units,Adults and Communities,Other Agencies - Third Party P,30069717,B & M CARE,"2,418.04",24/03/2015
Delivery Units,Adults and Communities,Other Agencies - Third Party P,30069813,BARNET HOMES LIMITED,"13,002.96",24/03/2015
Delivery Units,Adults and Communities,Other Agencies - Third Party P,30066505,BARNET MENCAP,"17,935.19",03/03/2015
Delivery Units,Adults and Communities,Other Agencies - Third Party P,30068535,BARNET MENCAP,263.2,18/03/2015
Delivery Units,Adults and Communities,Other Agencies - Third Party P,30068951,BARNET MENCAP,296.1,19/03/2015
Delivery Units,Adults and Communities,Other Agencies - Third Party P,30067521,BAYTREE COMMUNITY CARE (LONDON) LTD,734.4,13/03/2015
Delivery Units,Adults and Communities,Other Agencies - Third Party P,30067522,BAYTREE COMMUNITY CARE (LONDON) LTD,"1,280.00",13/03/2015
Delivery Units,Adults and Communities,Other Agencies - Third Party P,30067523,BAYTREE COMMUNITY CARE (LONDON) LTD,734.4,13/03/2015
Delivery Units,Adults and Communities,Other Agencies - Third Party P,30067524,BAYTREE COMMUNITY CARE (LONDON) LTD,"1,280.00",16/03/2015
Delivery Units,Adults and Communities,Other Agencies - Third Party P,30066118,BENSLOW MANAGEMENT COMPANY LIMITED,"2,181.04",02/03/2015
Delivery Units,Adults and Communities,Other Agencies - Third Party P,30068059,BENSLOW MANAGEMENT COMPANY LIMITED,"2,418.04",17/03/2015
Delivery Units,Adults and Communities,Other Agencies - Third Party P,30066190,BIRCHWOOD GRANGE CARE HOME,"1,457.14",02/03/2015
Delivery Units,Adults and Communities,Other Agencies - Third Party P,30066191,BIRCHWOOD GRANGE CARE HOME,"2,657.14",02/03/2015
Delivery Units,Adults and Communities,Other Agencies - Third Party P,30066192,BIRCHWOOD GRANGE CARE HOME,770.28,02/03/2015
Delivery Units,Adults and Communities,Other Agencies - Third Party P,30066193,BIRCHWOOD GRANGE CARE HOME,"2,657.14",02/03/2015
Delivery Units,Adults and Communities,Other Agencies - Third Party P,30066194,BIRCHWOOD GRANGE CARE HOME,"2,653.20",02/03/2015
Delivery Units,Adults and Communities,Other Agencies - Third Party P,30066195,BIRCHWOOD GRANGE CARE HOME,"2,400.00",02/03/2015
Delivery Units,Adults and Communities,Other Agencies - Third Party P,30066196,BIRCHWOOD GRANGE CARE HOME,"2,396.44",02/03/2015
Delivery Units,Adults and Communities,Other Agencies - Third Party P,30066148,BRADBURY HOUSE ORGANISATION,"3,125.80",02/03/2015
Delivery Units,Adults and Communities,Other Agencies - Third Party P,30066149,BRADBURY HOUSE ORGANISATION,-319.4,02/03/2015
Delivery Units,Adults and Communities,Other Agencies - Third Party P,30068176,BRADBURY HOUSE ORGANISATION,"3,460.71",17/03/2015
Delivery Units,Adults and Communities,Other Agencies - Third Party P,30068177,BRADBURY HOUSE ORGANISATION,-353.62,17/03/2015
Delivery Units,Adults and Communities,Other Agencies - Third Party P,30067455,BROADREACH HOUSE,"3,066.43",13/03/2015
Delivery Units,Adults and Communities,Other Agencies - Third Party P,30067091,BROADWAY LODGE,"3,500.00",10/03/2015
Delivery Units,Adults and Communities,Other Agencies - Third Party P,30066310,BROOKDALE HEALTHCARE,"7,051.24",03/03/2015
Delivery Units,Adults and Communities,Other Agencies - Third Party P,30066312,BROOKDALE HEALTHCARE,"8,864.52",03/03/2015
Delivery Units,Adults and Communities,Other Agencies - Third Party P,30066315,BROOKDALE HEALTHCARE,"8,400.00",03/03/2015
Delivery Units,Adults and Communities,Other Agencies - Third Party P,30066316,BROOKDALE HEALTHCARE,"8,680.00",03/03/2015
Delivery Units,Adults and Communities,Other Agencies - Third Party P,30068564,BROOKDALE HEALTHCARE,"9,300.00",19/03/2015
Delivery Units,Adults and Communities,Other Agencies - Third Party P,30068565,BROOKDALE HEALTHCARE,"9,610.00",19/03/2015
Delivery Units,Adults and Communities,Other Agencies - Third Party P,30068566,BROOKDALE HEALTHCARE,"7,806.73",19/03/2015
Delivery Units,Adults and Communities,Other Agencies - Third Party P,30068568,BROOKDALE HEALTHCARE,"9,814.20",19/03/2015
Delivery Units,Adults and Communities,Other Agencies - Third Party P,30067629,BRUNSWICK SUPPORTED LIVING SERVICES,"1,321.60",16/03/2015
Delivery Units,Adults and Communities,Other Agencies - Third Party P,30067631,BRUNSWICK SUPPORTED LIVING SERVICES,"1,412.68",16/03/2015
Delivery Units,Adults and Communities,Other Agencies - Third Party P,30067632,BRUNSWICK SUPPORTED LIVING SERVICES,"1,942.84",16/03/2015
Delivery Units,Adults and Communities,Other Agencies - Third Party P,30067635,BRUNSWICK SUPPORTED LIVING SERVICES,"2,153.92",16/03/2015
Delivery Units,Adults and Communities,Other Agencies - Third Party P,30067638,BRUNSWICK SUPPORTED LIVING SERVICES,"1,400.00",16/03/2015
Delivery Units,Adults and Communities,Other Agencies - Third Party P,30069704,BULLSMOOR LODGE,633.5,27/03/2015
Delivery Units,Adults and Communities,Other Agencies - Third Party P,30063413,BUPA CARE HOMES,"-1,497.12",03/03/2015
Delivery Units,Adults and Communities,Other Agencies - Third Party P,30066225,BUPA CARE HOMES,500.48,02/03/2015
Delivery Units,Adults and Communities,Other Agencies - Third Party P,30066226,BUPA CARE HOMES,"5,000.00",02/03/2015
Delivery Units,Adults and Communities,Other Agencies - Third Party P,30066227,BUPA CARE HOMES,"2,184.04",02/03/2015
Delivery Units,Adults and Communities,Other Agencies - Third Party P,30066228,BUPA CARE HOMES,"2,001.92",02/03/2015
Delivery Units,Adults and Communities,Other Agencies - Third Party P,30066457,BUPA CARE HOMES,"2,321.92",03/03/2015
Delivery Units,Adults and Communities,Other Agencies - Third Party P,30066458,BUPA CARE HOMES,"2,321.92",03/03/2015
Delivery Units,Adults and Communities,Other Agencies - Third Party P,30066477,BUPA CARE HOMES,"2,001.92",03/03/2015
Delivery Units,Adults and Communities,Other Agencies - Third Party P,30066479,BUPA CARE HOMES,"2,094.52",03/03/2015
Delivery Units,Adults and Communities,Other Agencies - Third Party P,30066481,BUPA CARE HOMES,"2,943.44",03/03/2015
Delivery Units,Adults and Communities,Other Agencies - Third Party P,30066482,BUPA CARE HOMES,"2,943.44",03/03/2015
Delivery Units,Adults and Communities,Other Agencies - Third Party P,30066483,BUPA CARE HOMES,"3,000.00",03/03/2015
Delivery Units,Adults and Communities,Other Agencies - Third Party P,30066484,BUPA CARE HOMES,"3,000.00",03/03/2015
Delivery Units,Adults and Communities,Other Agencies - Third Party P,30066582,BUPA CARE HOMES,"4,374.00",03/03/2015
Delivery Units,Adults and Communities,Other Agencies - Third Party P,30066917,BUPA CARE HOMES,"2,094.52",06/03/2015
Delivery Units,Adults and Communities,Other Agencies - Third Party P,30066918,BUPA CARE HOMES,"2,094.52",06/03/2015
Delivery Units,Adults and Communities,Other Agencies - Third Party P,30067174,BUPA CARE HOMES,500.48,10/03/2015
Delivery Units,Adults and Communities,Other Agencies - Third Party P,30067362,BUPA CARE HOMES,500.48,12/03/2015
Delivery Units,Adults and Communities,Other Agencies - Third Party P,30067964,BUPA CARE HOMES,"1,920.82",17/03/2015
Delivery Units,Adults and Communities,Other Agencies - Third Party P,30067966,BUPA CARE HOMES,"2,094.52",17/03/2015
Delivery Units,Adults and Communities,Other Agencies - Third Party P,30067967,BUPA CARE HOMES,"2,094.52",17/03/2015
Delivery Units,Adults and Communities,Other Agencies - Third Party P,30067968,BUPA CARE HOMES,"2,094.52",17/03/2015
Delivery Units,Adults and Communities,Other Agencies - Third Party P,30067969,BUPA CARE HOMES,"2,094.52",17/03/2015
Delivery Units,Adults and Communities,Other Agencies - Third Party P,30067970,BUPA CARE HOMES,"2,641.08",17/03/2015
Delivery Units,Adults and Communities,Other Agencies - Third Party P,30067971,BUPA CARE HOMES,"2,079.28",17/03/2015
Delivery Units,Adults and Communities,Other Agencies - Third Party P,30068143,BUPA CARE HOMES,"2,570.70",17/03/2015
Delivery Units,Adults and Communities,Other Agencies - Third Party P,30068144,BUPA CARE HOMES,"2,570.70",17/03/2015
Delivery Units,Adults and Communities,Other Agencies - Third Party P,30068165,BUPA CARE HOMES,"2,318.93",17/03/2015
Delivery Units,Adults and Communities,Other Agencies - Third Party P,30068166,BUPA CARE HOMES,"3,258.81",17/03/2015
Delivery Units,Adults and Communities,Other Agencies - Third Party P,30068167,BUPA CARE HOMES,"3,258.81",17/03/2015
Delivery Units,Adults and Communities,Other Agencies - Third Party P,30068168,BUPA CARE HOMES,"3,321.43",17/03/2015
Delivery Units,Adults and Communities,Other Agencies - Third Party P,30068169,BUPA CARE HOMES,"3,321.43",17/03/2015
Delivery Units,Adults and Communities,Other Agencies - Third Party P,30068170,BUPA CARE HOMES,"2,418.04",17/03/2015
Delivery Units,Adults and Communities,Other Agencies - Third Party P,30068171,BUPA CARE HOMES,"2,216.41",17/03/2015
Delivery Units,Adults and Communities,Other Agencies - Third Party P,30068280,BUPA CARE HOMES,"2,318.93",17/03/2015
Delivery Units,Adults and Communities,Other Agencies - Third Party P,30068281,BUPA CARE HOMES,"2,318.93",17/03/2015
Delivery Units,Adults and Communities,Other Agencies - Third Party P,30068287,BUPA CARE HOMES,"4,842.64",17/03/2015
Delivery Units,Adults and Communities,Other Agencies - Third Party P,30068967,BUPA CARE HOMES,500.48,19/03/2015
Delivery Units,Adults and Communities,Other Agencies - Third Party P,30069537,BUPA CARE HOMES,780.01,27/03/2015
Delivery Units,Adults and Communities,Other Agencies - Third Party P,30069538,BUPA CARE HOMES,"1,716.03",27/03/2015
Delivery Units,Adults and Communities,Other Agencies - Third Party P,30069540,BUPA CARE HOMES,500.48,24/03/2015
Delivery Units,Adults and Communities,Other Agencies - Third Party P,30067346,BUPA NURSING HOMES LTD - ARKLEY,"1,604.52",12/03/2015
Delivery Units,Adults and Communities,Other Agencies - Third Party P,30067347,BUPA NURSING HOMES LTD - ARKLEY,"2,094.52",12/03/2015
Delivery Units,Adults and Communities,Other Agencies - Third Party P,30067348,BUPA NURSING HOMES LTD - ARKLEY,"2,094.52",12/03/2015
Delivery Units,Adults and Communities,Other Agencies - Third Party P,30067349,BUPA NURSING HOMES LTD - ARKLEY,"2,094.52",12/03/2015
Delivery Units,Adults and Communities,Other Agencies - Third Party P,30067350,BUPA NURSING HOMES LTD - ARKLEY,"2,094.52",12/03/2015
Delivery Units,Adults and Communities,Other Agencies - Third Party P,30067351,BUPA NURSING HOMES LTD - ARKLEY,598.43,12/03/2015
Delivery Units,Adults and Communities,Other Agencies - Third Party P,30067352,BUPA NURSING HOMES LTD - ARKLEY,"3,356.44",12/03/2015
Delivery Units,Adults and Communities,Other Agencies - Third Party P,30067353,BUPA NURSING HOMES LTD - ARKLEY,"2,094.52",12/03/2015
Delivery Units,Adults and Communities,Other Agencies - Third Party P,30067354,BUPA NURSING HOMES LTD - ARKLEY,"1,196.87",12/03/2015
Delivery Units,Adults and Communities,Other Agencies - Third Party P,30067355,BUPA NURSING HOMES LTD - ARKLEY,"1,570.89",12/03/2015
Delivery Units,Adults and Communities,Other Agencies - Third Party P,30067951,BUPA NURSING HOMES LTD - ARKLEY,"1,570.89",17/03/2015
Delivery Units,Adults and Communities,Other Agencies - Third Party P,30067952,BUPA NURSING HOMES LTD - ARKLEY,"1,857.14",17/03/2015
Delivery Units,Adults and Communities,Other Agencies - Third Party P,30067953,BUPA NURSING HOMES LTD - ARKLEY,"2,001.92",17/03/2015
Delivery Units,Adults and Communities,Other Agencies - Third Party P,30067954,BUPA NURSING HOMES LTD - ARKLEY,"1,000.96",17/03/2015
Delivery Units,Adults and Communities,Other Agencies - Third Party P,30066880,CAMBIAN BEECHES,"11,890.48",05/03/2015
Delivery Units,Adults and Communities,Other Agencies - Third Party P,30066881,CAMBIAN BEECHES,"11,890.48",05/03/2015
Delivery Units,Adults and Communities,Other Agencies - Third Party P,30068970,CAMBIAN BEECHES,"13,164.46",19/03/2015
Delivery Units,Adults and Communities,Other Agencies - Third Party P,30068971,CAMBIAN BEECHES,"13,164.46",19/03/2015
Delivery Units,Adults and Communities,Other Agencies - Third Party P,30066362,CAMPHILL DEVON COMMUNITY LIMITED,"4,508.00",03/03/2015
Delivery Units,Adults and Communities,Other Agencies - Third Party P,30068684,CAMPHILL DEVON COMMUNITY LIMITED,"4,508.00",19/03/2015
Delivery Units,Adults and Communities,Other Agencies - Third Party P,20018185,CANDLE COURT NURSING HOME,"20,897.28",23/03/2015
Delivery Units,Adults and Communities,Other Agencies - Third Party P,30066101,CANDLE COURT NURSING HOME,"3,400.00",02/03/2015
Delivery Units,Adults and Communities,Other Agencies - Third Party P,30068634,CANDLE COURT NURSING HOME,"3,764.29",19/03/2015
Delivery Units,Adults and Communities,Other Agencies - Third Party P,30068635,CANDLE COURT NURSING HOME,"2,570.70",19/03/2015
Delivery Units,Adults and Communities,Other Agencies - Third Party P,20017513,CARE ASSIST LIMITED,"3,800.00",04/03/2015
Delivery Units,Adults and Communities,Other Agencies - Third Party P,20017516,CARE ASSIST LIMITED,"3,800.00",04/03/2015
Delivery Units,Adults and Communities,Other Agencies - Third Party P,20018182,CARE ASSIST LIMITED,"4,207.14",23/03/2015
Delivery Units,Adults and Communities,Other Agencies - Third Party P,20018183,CARE ASSIST LIMITED,"4,207.14",23/03/2015
Delivery Units,Adults and Communities,Other Agencies - Third Party P,30069714,CARE UK COMMUNITY PARTNERSHIPS,"6,659.90",24/03/2015
Delivery Units,Adults and Communities,Other Agencies - Third Party P,30069624,CARE WORLDWIDE (LONDON) LTD,"3,745.70",24/03/2015
Delivery Units,Adults and Communities,Other Agencies - Third Party P,30069625,CARE WORLDWIDE (LONDON) LTD,"2,680.88",24/03/2015
Delivery Units,Adults and Communities,Other Agencies - Third Party P,30069626,CARE WORLDWIDE (LONDON) LTD,"3,936.46",24/03/2015
Delivery Units,Adults and Communities,Other Agencies - Third Party P,30069627,CARE WORLDWIDE (LONDON) LTD,"4,246.53",24/03/2015
Delivery Units,Adults and Communities,Other Agencies - Third Party P,30069628,CARE WORLDWIDE (LONDON) LTD,"2,685.98",24/03/2015
Delivery Units,Adults and Communities,Other Agencies - Third Party P,30069629,CARE WORLDWIDE (LONDON) LTD,"2,794.44",24/03/2015
Delivery Units,Adults and Communities,Other Agencies - Third Party P,30065659,CAREBASE BURNT OAK 2006 LIMITED,-598.43,03/03/2015
Delivery Units,Adults and Communities,Other Agencies - Third Party P,30066416,CAREBASE BURNT OAK 2006 LIMITED,"2,094.52",03/03/2015
Delivery Units,Adults and Communities,Other Agencies - Third Party P,30066417,CAREBASE BURNT OAK 2006 LIMITED,"2,321.92",03/03/2015
Delivery Units,Adults and Communities,Other Agencies - Third Party P,30066418,CAREBASE BURNT OAK 2006 LIMITED,"2,321.92",03/03/2015
Delivery Units,Adults and Communities,Other Agencies - Third Party P,30066419,CAREBASE BURNT OAK 2006 LIMITED,"2,338.00",03/03/2015
Delivery Units,Adults and Communities,Other Agencies - Third Party P,30066420,CAREBASE BURNT OAK 2006 LIMITED,"2,184.04",03/03/2015
Delivery Units,Adults and Communities,Other Agencies - Third Party P,30066421,CAREBASE BURNT OAK 2006 LIMITED,"2,321.92",03/03/2015
Delivery Units,Adults and Communities,Other Agencies - Third Party P,30066422,CAREBASE BURNT OAK 2006 LIMITED,"2,094.52",03/03/2015
Delivery Units,Adults and Communities,Other Agencies - Third Party P,30066423,CAREBASE BURNT OAK 2006 LIMITED,"2,079.28",03/03/2015
Delivery Units,Adults and Communities,Other Agencies - Third Party P,30066424,CAREBASE BURNT OAK 2006 LIMITED,"2,095.96",03/03/2015
Delivery Units,Adults and Communities,Other Agencies - Third Party P,30066425,CAREBASE BURNT OAK 2006 LIMITED,"2,321.92",03/03/2015
Delivery Units,Adults and Communities,Other Agencies - Third Party P,30066426,CAREBASE BURNT OAK 2006 LIMITED,"2,184.04",03/03/2015
Delivery Units,Adults and Communities,Other Agencies - Third Party P,30068113,CAREBASE BURNT OAK 2006 LIMITED,"2,318.93",17/03/2015
Delivery Units,Adults and Communities,Other Agencies - Third Party P,30068114,CAREBASE BURNT OAK 2006 LIMITED,"2,570.70",17/03/2015
Delivery Units,Adults and Communities,Other Agencies - Third Party P,30068115,CAREBASE BURNT OAK 2006 LIMITED,"2,570.70",17/03/2015
Delivery Units,Adults and Communities,Other Agencies - Third Party P,30068116,CAREBASE BURNT OAK 2006 LIMITED,"2,588.50",17/03/2015
Delivery Units,Adults and Communities,Other Agencies - Third Party P,30068117,CAREBASE BURNT OAK 2006 LIMITED,"2,418.04",17/03/2015
Delivery Units,Adults and Communities,Other Agencies - Third Party P,30068118,CAREBASE BURNT OAK 2006 LIMITED,"2,570.70",17/03/2015
Delivery Units,Adults and Communities,Other Agencies - Third Party P,30068119,CAREBASE BURNT OAK 2006 LIMITED,"2,318.93",17/03/2015
Delivery Units,Adults and Communities,Other Agencies - Third Party P,30068120,CAREBASE BURNT OAK 2006 LIMITED,"2,302.06",17/03/2015
Delivery Units,Adults and Communities,Other Agencies - Third Party P,30068121,CAREBASE BURNT OAK 2006 LIMITED,"2,320.53",17/03/2015
Delivery Units,Adults and Communities,Other Agencies - Third Party P,30068122,CAREBASE BURNT OAK 2006 LIMITED,"2,570.70",17/03/2015
Delivery Units,Adults and Communities,Other Agencies - Third Party P,30068123,CAREBASE BURNT OAK 2006 LIMITED,"2,418.04",17/03/2015
Delivery Units,Adults and Communities,Other Agencies - Third Party P,30069639,CAREBASE BURNT OAK 2006 LIMITED,"1,092.02",27/03/2015
Delivery Units,Adults and Communities,Other Agencies - Third Party P,30065804,CARETECH COMMUNITY SERVICES LTD,"-4,627.86",03/03/2015
Delivery Units,Adults and Communities,Other Agencies - Third Party P,30065819,CARETECH COMMUNITY SERVICES LTD,"4,627.86",03/03/2015
Delivery Units,Adults and Communities,Other Agencies - Third Party P,30066513,CARETECH COMMUNITY SERVICES LTD,"4,312.00",03/03/2015
Delivery Units,Adults and Communities,Other Agencies - Third Party P,30066514,CARETECH COMMUNITY SERVICES LTD,-319.4,03/03/2015
Delivery Units,Adults and Communities,Other Agencies - Third Party P,30066515,CARETECH COMMUNITY SERVICES LTD,"5,320.00",03/03/2015
Delivery Units,Adults and Communities,Other Agencies - Third Party P,30066516,CARETECH COMMUNITY SERVICES LTD,-319.4,03/03/2015
Delivery Units,Adults and Communities,Other Agencies - Third Party P,30066517,CARETECH COMMUNITY SERVICES LTD,"7,615.48",03/03/2015
Delivery Units,Adults and Communities,Other Agencies - Third Party P,30066518,CARETECH COMMUNITY SERVICES LTD,"6,009.88",03/03/2015
Delivery Units,Adults and Communities,Other Agencies - Third Party P,30066519,CARETECH COMMUNITY SERVICES LTD,-319.4,03/03/2015
Delivery Units,Adults and Communities,Other Agencies - Third Party P,30066520,CARETECH COMMUNITY SERVICES LTD,"4,180.00",03/03/2015
Delivery Units,Adults and Communities,Other Agencies - Third Party P,30066521,CARETECH COMMUNITY SERVICES LTD,"4,180.00",03/03/2015
Delivery Units,Adults and Communities,Other Agencies - Third Party P,30066522,CARETECH COMMUNITY SERVICES LTD,"5,917.24",03/03/2015
Delivery Units,Adults and Communities,Other Agencies - Third Party P,30066523,CARETECH COMMUNITY SERVICES LTD,-495.8,03/03/2015
Delivery Units,Adults and Communities,Other Agencies - Third Party P,30066524,CARETECH COMMUNITY SERVICES LTD,737.16,03/03/2015
Delivery Units,Adults and Communities,Other Agencies - Third Party P,30066525,CARETECH COMMUNITY SERVICES LTD,"4,196.88",03/03/2015
Delivery Units,Adults and Communities,Other Agencies - Third Party P,30066526,CARETECH COMMUNITY SERVICES LTD,"4,351.00",03/03/2015
Delivery Units,Adults and Communities,Other Agencies - Third Party P,30066527,CARETECH COMMUNITY SERVICES LTD,-319.4,03/03/2015
Delivery Units,Adults and Communities,Other Agencies - Third Party P,30066528,CARETECH COMMUNITY SERVICES LTD,652.68,03/03/2015
Delivery Units,Adults and Communities,Other Agencies - Third Party P,30066529,CARETECH COMMUNITY SERVICES LTD,"6,884.00",03/03/2015
Delivery Units,Adults and Communities,Other Agencies - Third Party P,30066530,CARETECH COMMUNITY SERVICES LTD,"4,180.16",03/03/2015
Delivery Units,Adults and Communities,Other Agencies - Third Party P,30066531,CARETECH COMMUNITY SERVICES LTD,"5,917.24",03/03/2015
Delivery Units,Adults and Communities,Other Agencies - Third Party P,30066532,CARETECH COMMUNITY SERVICES LTD,-495.8,03/03/2015
Delivery Units,Adults and Communities,Other Agencies - Third Party P,30066533,CARETECH COMMUNITY SERVICES LTD,737.16,03/03/2015
Delivery Units,Adults and Communities,Other Agencies - Third Party P,30066534,CARETECH COMMUNITY SERVICES LTD,"4,180.00",03/03/2015
Delivery Units,Adults and Communities,Other Agencies - Third Party P,30066535,CARETECH COMMUNITY SERVICES LTD,"6,009.88",03/03/2015
Delivery Units,Adults and Communities,Other Agencies - Third Party P,30066536,CARETECH COMMUNITY SERVICES LTD,-319.4,03/03/2015
Delivery Units,Adults and Communities,Other Agencies - Third Party P,30066537,CARETECH COMMUNITY SERVICES LTD,"6,582.40",03/03/2015
Delivery Units,Adults and Communities,Other Agencies - Third Party P,30066538,CARETECH COMMUNITY SERVICES LTD,-319.4,03/03/2015
Delivery Units,Adults and Communities,Other Agencies - Third Party P,30066539,CARETECH COMMUNITY SERVICES LTD,"4,180.00",03/03/2015
Delivery Units,Adults and Communities,Other Agencies - Third Party P,30066540,CARETECH COMMUNITY SERVICES LTD,"6,279.56",03/03/2015
Delivery Units,Adults and Communities,Other Agencies - Third Party P,30066541,CARETECH COMMUNITY SERVICES LTD,-319.4,03/03/2015
Delivery Units,Adults and Communities,Other Agencies - Third Party P,30066542,CARETECH COMMUNITY SERVICES LTD,"4,569.76",03/03/2015
Delivery Units,Adults and Communities,Other Agencies - Third Party P,30066543,CARETECH COMMUNITY SERVICES LTD,-319.4,03/03/2015
Delivery Units,Adults and Communities,Other Agencies - Third Party P,30066544,CARETECH COMMUNITY SERVICES LTD,982.84,03/03/2015
Delivery Units,Adults and Communities,Other Agencies - Third Party P,30066545,CARETECH COMMUNITY SERVICES LTD,"5,716.00",03/03/2015
Delivery Units,Adults and Communities,Other Agencies - Third Party P,30066546,CARETECH COMMUNITY SERVICES LTD,-319.4,03/03/2015
Delivery Units,Adults and Communities,Other Agencies - Third Party P,30066547,CARETECH COMMUNITY SERVICES LTD,"4,939.68",03/03/2015
Delivery Units,Adults and Communities,Other Agencies - Third Party P,30066548,CARETECH COMMUNITY SERVICES LTD,-319.4,03/03/2015
Delivery Units,Adults and Communities,Other Agencies - Third Party P,30066549,CARETECH COMMUNITY SERVICES LTD,"5,260.00",03/03/2015
Delivery Units,Adults and Communities,Other Agencies - Third Party P,30066550,CARETECH COMMUNITY SERVICES LTD,-438.4,03/03/2015
Delivery Units,Adults and Communities,Other Agencies - Third Party P,30066551,CARETECH COMMUNITY SERVICES LTD,"4,939.68",03/03/2015
Delivery Units,Adults and Communities,Other Agencies - Third Party P,30066552,CARETECH COMMUNITY SERVICES LTD,-319.4,03/03/2015
Delivery Units,Adults and Communities,Other Agencies - Third Party P,30066553,CARETECH COMMUNITY SERVICES LTD,"3,953.52",03/03/2015
Delivery Units,Adults and Communities,Other Agencies - Third Party P,30066554,CARETECH COMMUNITY SERVICES LTD,-319.4,03/03/2015
Delivery Units,Adults and Communities,Other Agencies - Third Party P,30066555,CARETECH COMMUNITY SERVICES LTD,"5,408.00",03/03/2015
Delivery Units,Adults and Communities,Other Agencies - Third Party P,30066556,CARETECH COMMUNITY SERVICES LTD,-319.4,03/03/2015
Delivery Units,Adults and Communities,Other Agencies - Third Party P,30066557,CARETECH COMMUNITY SERVICES LTD,"4,569.76",03/03/2015
Delivery Units,Adults and Communities,Other Agencies - Third Party P,30066558,CARETECH COMMUNITY SERVICES LTD,-495.8,03/03/2015
Delivery Units,Adults and Communities,Other Agencies - Third Party P,30066559,CARETECH COMMUNITY SERVICES LTD,982.84,03/03/2015
Delivery Units,Adults and Communities,Other Agencies - Third Party P,30066560,CARETECH COMMUNITY SERVICES LTD,"2,339.12",03/03/2015
Delivery Units,Adults and Communities,Other Agencies - Third Party P,30066561,CARETECH COMMUNITY SERVICES LTD,"4,180.00",03/03/2015
Delivery Units,Adults and Communities,Other Agencies - Third Party P,30066562,CARETECH COMMUNITY SERVICES LTD,"1,941.88",03/03/2015
Delivery Units,Adults and Communities,Other Agencies - Third Party P,30066563,CARETECH COMMUNITY SERVICES LTD,"4,320.00",03/03/2015
Delivery Units,Adults and Communities,Other Agencies - Third Party P,30066565,CARETECH COMMUNITY SERVICES LTD,"1,380.00",03/03/2015
Delivery Units,Adults and Communities,Other Agencies - Third Party P,30066566,CARETECH COMMUNITY SERVICES LTD,"6,388.00",03/03/2015
Delivery Units,Adults and Communities,Other Agencies - Third Party P,30066567,CARETECH COMMUNITY SERVICES LTD,-362.8,03/03/2015
Delivery Units,Adults and Communities,Other Agencies - Third Party P,30066585,CARETECH COMMUNITY SERVICES LTD,982.84,03/03/2015
Delivery Units,Adults and Communities,Other Agencies - Third Party P,30066911,CARETECH COMMUNITY SERVICES LTD,429.28,05/03/2015
Delivery Units,Adults and Communities,Other Agencies - Third Party P,30066912,CARETECH COMMUNITY SERVICES LTD,429.28,05/03/2015
Delivery Units,Adults and Communities,Other Agencies - Third Party P,30066913,CARETECH COMMUNITY SERVICES LTD,830.2,05/03/2015
Delivery Units,Adults and Communities,Other Agencies - Third Party P,30066914,CARETECH COMMUNITY SERVICES LTD,830.2,05/03/2015
Delivery Units,Adults and Communities,Other Agencies - Third Party P,30067219,CARETECH COMMUNITY SERVICES LTD,"6,551.23",31/03/2015
Delivery Units,Adults and Communities,Other Agencies - Third Party P,30067220,CARETECH COMMUNITY SERVICES LTD,-548.92,31/03/2015
Delivery Units,Adults and Communities,Other Agencies - Third Party P,30068000,CARETECH COMMUNITY SERVICES LTD,"5,686.96",17/03/2015
Delivery Units,Adults and Communities,Other Agencies - Third Party P,30069025,CARETECH COMMUNITY SERVICES LTD,"4,774.00",30/03/2015
Delivery Units,Adults and Communities,Other Agencies - Third Party P,30069026,CARETECH COMMUNITY SERVICES LTD,-353.62,30/03/2015
Delivery Units,Adults and Communities,Other Agencies - Third Party P,30069027,CARETECH COMMUNITY SERVICES LTD,"6,653.80",30/03/2015
Delivery Units,Adults and Communities,Other Agencies - Third Party P,30069028,CARETECH COMMUNITY SERVICES LTD,-353.62,30/03/2015
Delivery Units,Adults and Communities,Other Agencies - Third Party P,30069029,CARETECH COMMUNITY SERVICES LTD,"4,627.86",30/03/2015
Delivery Units,Adults and Communities,Other Agencies - Third Party P,30069030,CARETECH COMMUNITY SERVICES LTD,"4,627.86",30/03/2015
Delivery Units,Adults and Communities,Other Agencies - Third Party P,30069031,CARETECH COMMUNITY SERVICES LTD,"6,551.23",30/03/2015
Delivery Units,Adults and Communities,Other Agencies - Third Party P,30069032,CARETECH COMMUNITY SERVICES LTD,-548.92,30/03/2015
Delivery Units,Adults and Communities,Other Agencies - Third Party P,30069033,CARETECH COMMUNITY SERVICES LTD,816.14,30/03/2015
Delivery Units,Adults and Communities,Other Agencies - Third Party P,30069034,CARETECH COMMUNITY SERVICES LTD,"4,646.55",30/03/2015
Delivery Units,Adults and Communities,Other Agencies - Third Party P,30069035,CARETECH COMMUNITY SERVICES LTD,"4,817.18",30/03/2015
Delivery Units,Adults and Communities,Other Agencies - Third Party P,30069036,CARETECH COMMUNITY SERVICES LTD,-353.62,30/03/2015
Delivery Units,Adults and Communities,Other Agencies - Third Party P,30069037,CARETECH COMMUNITY SERVICES LTD,722.61,30/03/2015
Delivery Units,Adults and Communities,Other Agencies - Third Party P,30069038,CARETECH COMMUNITY SERVICES LTD,"7,621.57",30/03/2015
Delivery Units,Adults and Communities,Other Agencies - Third Party P,30069039,CARETECH COMMUNITY SERVICES LTD,"4,628.03",30/03/2015
Delivery Units,Adults and Communities,Other Agencies - Third Party P,30069040,CARETECH COMMUNITY SERVICES LTD,816.14,30/03/2015
Delivery Units,Adults and Communities,Other Agencies - Third Party P,30069041,CARETECH COMMUNITY SERVICES LTD,"4,627.86",30/03/2015
Delivery Units,Adults and Communities,Other Agencies - Third Party P,30069042,CARETECH COMMUNITY SERVICES LTD,"6,296.28",30/03/2015
Delivery Units,Adults and Communities,Other Agencies - Third Party P,30069043,CARETECH COMMUNITY SERVICES LTD,"6,653.80",30/03/2015
Delivery Units,Adults and Communities,Other Agencies - Third Party P,30069044,CARETECH COMMUNITY SERVICES LTD,-353.62,30/03/2015
Delivery Units,Adults and Communities,Other Agencies - Third Party P,30069045,CARETECH COMMUNITY SERVICES LTD,"7,287.66",30/03/2015
Delivery Units,Adults and Communities,Other Agencies - Third Party P,30069046,CARETECH COMMUNITY SERVICES LTD,-353.62,30/03/2015
Delivery Units,Adults and Communities,Other Agencies - Third Party P,30069047,CARETECH COMMUNITY SERVICES LTD,"4,627.86",30/03/2015
Delivery Units,Adults and Communities,Other Agencies - Third Party P,30069048,CARETECH COMMUNITY SERVICES LTD,919.15,30/03/2015
Delivery Units,Adults and Communities,Other Agencies - Third Party P,30069049,CARETECH COMMUNITY SERVICES LTD,"6,952.37",30/03/2015
Delivery Units,Adults and Communities,Other Agencies - Third Party P,30069050,CARETECH COMMUNITY SERVICES LTD,-353.62,30/03/2015
Delivery Units,Adults and Communities,Other Agencies - Third Party P,30069051,CARETECH COMMUNITY SERVICES LTD,"5,059.38",30/03/2015
Delivery Units,Adults and Communities,Other Agencies - Third Party P,30069052,CARETECH COMMUNITY SERVICES LTD,-353.62,30/03/2015
Delivery Units,Adults and Communities,Other Agencies - Third Party P,30069053,CARETECH COMMUNITY SERVICES LTD,"1,088.14",30/03/2015
Delivery Units,Adults and Communities,Other Agencies - Third Party P,30069054,CARETECH COMMUNITY SERVICES LTD,"6,328.43",30/03/2015
Delivery Units,Adults and Communities,Other Agencies - Third Party P,30069055,CARETECH COMMUNITY SERVICES LTD,-353.62,30/03/2015
Delivery Units,Adults and Communities,Other Agencies - Third Party P,30069056,CARETECH COMMUNITY SERVICES LTD,"5,468.93",30/03/2015
Delivery Units,Adults and Communities,Other Agencies - Third Party P,30069057,CARETECH COMMUNITY SERVICES LTD,-353.62,30/03/2015
Delivery Units,Adults and Communities,Other Agencies - Third Party P,30069058,CARETECH COMMUNITY SERVICES LTD,"5,823.57",30/03/2015
Delivery Units,Adults and Communities,Other Agencies - Third Party P,30069059,CARETECH COMMUNITY SERVICES LTD,-485.37,30/03/2015
Delivery Units,Adults and Communities,Other Agencies - Third Party P,30069060,CARETECH COMMUNITY SERVICES LTD,"5,468.93",30/03/2015
Delivery Units,Adults and Communities,Other Agencies - Third Party P,30069061,CARETECH COMMUNITY SERVICES LTD,-353.62,30/03/2015
Delivery Units,Adults and Communities,Other Agencies - Third Party P,30069062,CARETECH COMMUNITY SERVICES LTD,"1,088.14",30/03/2015
Delivery Units,Adults and Communities,Other Agencies - Third Party P,30069063,CARETECH COMMUNITY SERVICES LTD,"4,377.11",30/03/2015
Delivery Units,Adults and Communities,Other Agencies - Third Party P,30069064,CARETECH COMMUNITY SERVICES LTD,-353.62,30/03/2015
Delivery Units,Adults and Communities,Other Agencies - Third Party P,30069065,CARETECH COMMUNITY SERVICES LTD,"5,987.43",30/03/2015
Delivery Units,Adults and Communities,Other Agencies - Third Party P,30069066,CARETECH COMMUNITY SERVICES LTD,-353.62,30/03/2015
Delivery Units,Adults and Communities,Other Agencies - Third Party P,30069067,CARETECH COMMUNITY SERVICES LTD,"5,059.38",30/03/2015
Delivery Units,Adults and Communities,Other Agencies - Third Party P,30069068,CARETECH COMMUNITY SERVICES LTD,-548.92,30/03/2015
Delivery Units,Adults and Communities,Other Agencies - Third Party P,30069069,CARETECH COMMUNITY SERVICES LTD,"1,088.14",30/03/2015
Delivery Units,Adults and Communities,Other Agencies - Third Party P,30069070,CARETECH COMMUNITY SERVICES LTD,"2,589.74",30/03/2015
Delivery Units,Adults and Communities,Other Agencies - Third Party P,30069071,CARETECH COMMUNITY SERVICES LTD,"4,627.86",30/03/2015
Delivery Units,Adults and Communities,Other Agencies - Third Party P,30069072,CARETECH COMMUNITY SERVICES LTD,"2,149.94",30/03/2015
Delivery Units,Adults and Communities,Other Agencies - Third Party P,30069073,CARETECH COMMUNITY SERVICES LTD,"4,782.86",30/03/2015
Delivery Units,Adults and Communities,Other Agencies - Third Party P,30069075,CARETECH COMMUNITY SERVICES LTD,"1,527.86",30/03/2015
Delivery Units,Adults and Communities,Other Agencies - Third Party P,30069076,CARETECH COMMUNITY SERVICES LTD,"7,072.43",30/03/2015
Delivery Units,Adults and Communities,Other Agencies - Third Party P,30069077,CARETECH COMMUNITY SERVICES LTD,-401.67,30/03/2015
Delivery Units,Adults and Communities,Other Agencies - Third Party P,30069078,CARETECH COMMUNITY SERVICES LTD,"5,890.00",30/03/2015
Delivery Units,Adults and Communities,Other Agencies - Third Party P,30069079,CARETECH COMMUNITY SERVICES LTD,-353.62,30/03/2015
Delivery Units,Adults and Communities,Other Agencies - Third Party P,30069106,CARETECH COMMUNITY SERVICES LTD,"8,431.42",30/03/2015
Delivery Units,Adults and Communities,Other Agencies - Third Party P,30069565,CARETECH COMMUNITY SERVICES LTD,475.27,30/03/2015
Delivery Units,Adults and Communities,Other Agencies - Third Party P,30069566,CARETECH COMMUNITY SERVICES LTD,475.27,30/03/2015
Delivery Units,Adults and Communities,Other Agencies - Third Party P,30069567,CARETECH COMMUNITY SERVICES LTD,919.15,30/03/2015
Delivery Units,Adults and Communities,Other Agencies - Third Party P,30069783,CARETECH COMMUNITY SERVICES LTD,475.27,24/03/2015
Delivery Units,Adults and Communities,Other Agencies - Third Party P,30069784,CARETECH COMMUNITY SERVICES LTD,475.27,24/03/2015
Delivery Units,Adults and Communities,Other Agencies - Third Party P,30069785,CARETECH COMMUNITY SERVICES LTD,"1,088.14",24/03/2015
Delivery Units,Adults and Communities,Other Agencies - Third Party P,30066089,CARLTON COURT (TLC GROUP),"2,184.04",02/03/2015
Delivery Units,Adults and Communities,Other Agencies - Third Party P,30066090,CARLTON COURT (TLC GROUP),"2,094.52",02/03/2015
Delivery Units,Adults and Communities,Other Agencies - Third Party P,30066091,CARLTON COURT (TLC GROUP),"2,321.92",02/03/2015
Delivery Units,Adults and Communities,Other Agencies - Third Party P,30066093,CARLTON COURT (TLC GROUP),"-2,404.85",02/03/2015
Delivery Units,Adults and Communities,Other Agencies - Third Party P,30066094,CARLTON COURT (TLC GROUP),-663.24,02/03/2015
Delivery Units,Adults and Communities,Other Agencies - Third Party P,30066137,CARLTON COURT (TLC GROUP),"2,487.77",02/03/2015
Delivery Units,Adults and Communities,Other Agencies - Third Party P,30066146,CARLTON COURT (TLC GROUP),"2,144.91",02/03/2015
Delivery Units,Adults and Communities,Other Agencies - Third Party P,30066150,CARLTON COURT (TLC GROUP),"1,907.29",02/03/2015
Delivery Units,Adults and Communities,Other Agencies - Third Party P,30066151,CARLTON COURT (TLC GROUP),"1,404.03",02/03/2015
Delivery Units,Adults and Communities,Other Agencies - Third Party P,30066152,CARLTON COURT (TLC GROUP),936,02/03/2015
Delivery Units,Adults and Communities,Other Agencies - Third Party P,30066154,CARLTON COURT (TLC GROUP),"2,321.92",02/03/2015
Delivery Units,Adults and Communities,Other Agencies - Third Party P,30066155,CARLTON COURT (TLC GROUP),"2,184.04",02/03/2015
Delivery Units,Adults and Communities,Other Agencies - Third Party P,30066156,CARLTON COURT (TLC GROUP),"2,001.92",02/03/2015
Delivery Units,Adults and Communities,Other Agencies - Third Party P,30066157,CARLTON COURT (TLC GROUP),"2,184.04",02/03/2015
Delivery Units,Adults and Communities,Other Agencies - Third Party P,30066158,CARLTON COURT (TLC GROUP),"2,001.92",02/03/2015
Delivery Units,Adults and Communities,Other Agencies - Third Party P,30066159,CARLTON COURT (TLC GROUP),"3,800.00",02/03/2015
Delivery Units,Adults and Communities,Other Agencies - Third Party P,30066160,CARLTON COURT (TLC GROUP),"2,094.52",02/03/2015
Delivery Units,Adults and Communities,Other Agencies - Third Party P,30066161,CARLTON COURT (TLC GROUP),"2,321.92",02/03/2015
Delivery Units,Adults and Communities,Other Agencies - Third Party P,30066162,CARLTON COURT (TLC GROUP),"2,184.00",02/03/2015
Delivery Units,Adults and Communities,Other Agencies - Third Party P,30066163,CARLTON COURT (TLC GROUP),"2,321.92",02/03/2015
Delivery Units,Adults and Communities,Other Agencies - Third Party P,30066164,CARLTON COURT (TLC GROUP),"2,184.04",02/03/2015
Delivery Units,Adults and Communities,Other Agencies - Third Party P,30066165,CARLTON COURT (TLC GROUP),-495.8,02/03/2015
Delivery Units,Adults and Communities,Other Agencies - Third Party P,30066166,CARLTON COURT (TLC GROUP),"2,094.52",02/03/2015
Delivery Units,Adults and Communities,Other Agencies - Third Party P,30066167,CARLTON COURT (TLC GROUP),-569.44,02/03/2015
Delivery Units,Adults and Communities,Other Agencies - Third Party P,30066168,CARLTON COURT (TLC GROUP),"2,321.92",02/03/2015
Delivery Units,Adults and Communities,Other Agencies - Third Party P,30066169,CARLTON COURT (TLC GROUP),-503.24,02/03/2015
Delivery Units,Adults and Communities,Other Agencies - Third Party P,30066170,CARLTON COURT (TLC GROUP),"2,321.92",02/03/2015
Delivery Units,Adults and Communities,Other Agencies - Third Party P,30066171,CARLTON COURT (TLC GROUP),"2,094.52",02/03/2015
Delivery Units,Adults and Communities,Other Agencies - Third Party P,30066172,CARLTON COURT (TLC GROUP),"2,321.92",02/03/2015
Delivery Units,Adults and Communities,Other Agencies - Third Party P,30066173,CARLTON COURT (TLC GROUP),"2,321.92",02/03/2015
Delivery Units,Adults and Communities,Other Agencies - Third Party P,30066174,CARLTON COURT (TLC GROUP),"3,360.84",02/03/2015
Delivery Units,Adults and Communities,Other Agencies - Third Party P,30066175,CARLTON COURT (TLC GROUP),"2,321.92",02/03/2015
Delivery Units,Adults and Communities,Other Agencies - Third Party P,30066176,CARLTON COURT (TLC GROUP),"2,321.92",02/03/2015
Delivery Units,Adults and Communities,Other Agencies - Third Party P,30066177,CARLTON COURT (TLC GROUP),"2,094.52",02/03/2015
Delivery Units,Adults and Communities,Other Agencies - Third Party P,30066178,CARLTON COURT (TLC GROUP),"2,001.92",02/03/2015
Delivery Units,Adults and Communities,Other Agencies - Third Party P,30068578,CARLTON COURT (TLC GROUP),"2,570.70",19/03/2015
Delivery Units,Adults and Communities,Other Agencies - Third Party P,30068579,CARLTON COURT (TLC GROUP),"2,418.04",19/03/2015
Delivery Units,Adults and Communities,Other Agencies - Third Party P,30068580,CARLTON COURT (TLC GROUP),"2,216.41",19/03/2015
Delivery Units,Adults and Communities,Other Agencies - Third Party P,30068581,CARLTON COURT (TLC GROUP),"2,418.04",19/03/2015
Delivery Units,Adults and Communities,Other Agencies - Third Party P,30068582,CARLTON COURT (TLC GROUP),"2,216.41",19/03/2015
Delivery Units,Adults and Communities,Other Agencies - Third Party P,30068583,CARLTON COURT (TLC GROUP),"4,207.14",19/03/2015
Delivery Units,Adults and Communities,Other Agencies - Third Party P,30068584,CARLTON COURT (TLC GROUP),"2,318.93",19/03/2015
Delivery Units,Adults and Communities,Other Agencies - Third Party P,30068585,CARLTON COURT (TLC GROUP),"2,570.70",19/03/2015
Delivery Units,Adults and Communities,Other Agencies - Third Party P,30068586,CARLTON COURT (TLC GROUP),"2,418.00",19/03/2015
Delivery Units,Adults and Communities,Other Agencies - Third Party P,30068587,CARLTON COURT (TLC GROUP),"2,318.93",19/03/2015
Delivery Units,Adults and Communities,Other Agencies - Third Party P,30068588,CARLTON COURT (TLC GROUP),-630.45,19/03/2015
Delivery Units,Adults and Communities,Other Agencies - Third Party P,30068589,CARLTON COURT (TLC GROUP),"2,570.70",19/03/2015
Delivery Units,Adults and Communities,Other Agencies - Third Party P,30068590,CARLTON COURT (TLC GROUP),-557.16,19/03/2015
Delivery Units,Adults and Communities,Other Agencies - Third Party P,30068591,CARLTON COURT (TLC GROUP),"2,570.70",19/03/2015
Delivery Units,Adults and Communities,Other Agencies - Third Party P,30068592,CARLTON COURT (TLC GROUP),"2,318.93",19/03/2015
Delivery Units,Adults and Communities,Other Agencies - Third Party P,30068593,CARLTON COURT (TLC GROUP),"2,570.70",19/03/2015
Delivery Units,Adults and Communities,Other Agencies - Third Party P,30068594,CARLTON COURT (TLC GROUP),"3,720.93",19/03/2015
Delivery Units,Adults and Communities,Other Agencies - Third Party P,30068595,CARLTON COURT (TLC GROUP),"2,570.70",19/03/2015
Delivery Units,Adults and Communities,Other Agencies - Third Party P,30068596,CARLTON COURT (TLC GROUP),"2,570.70",19/03/2015
Delivery Units,Adults and Communities,Other Agencies - Third Party P,30068597,CARLTON COURT (TLC GROUP),"2,318.93",19/03/2015
Delivery Units,Adults and Communities,Other Agencies - Third Party P,30068598,CARLTON COURT (TLC GROUP),"2,216.41",19/03/2015
Delivery Units,Adults and Communities,Other Agencies - Third Party P,30068600,CARLTON COURT (TLC GROUP),"2,418.04",19/03/2015
Delivery Units,Adults and Communities,Other Agencies - Third Party P,30068601,CARLTON COURT (TLC GROUP),"2,318.93",19/03/2015
Delivery Units,Adults and Communities,Other Agencies - Third Party P,30068602,CARLTON COURT (TLC GROUP),"2,570.70",19/03/2015
Delivery Units,Adults and Communities,Other Agencies - Third Party P,30066856,CARMEN LODGE RESIDENTIAL HOME,"2,739.47",10/03/2015
Delivery Units,Adults and Communities,Other Agencies - Third Party P,30067135,CARMEN LODGE RESIDENTIAL HOME,"2,474.36",10/03/2015
Delivery Units,Adults and Communities,Other Agencies - Third Party P,30069502,CARTREF CARE HOME,"2,001.98",23/03/2015
Delivery Units,Adults and Communities,Other Agencies - Third Party P,30067107,CATHERINE LODGE,"2,184.04",10/03/2015
Delivery Units,Adults and Communities,Other Agencies - Third Party P,30067108,CATHERINE LODGE,"2,184.04",10/03/2015
Delivery Units,Adults and Communities,Other Agencies - Third Party P,30068643,CATHERINE LODGE,"2,184.04",19/03/2015
Delivery Units,Adults and Communities,Other Agencies - Third Party P,30068644,CATHERINE LODGE,"2,184.04",19/03/2015
Delivery Units,Adults and Communities,Other Agencies - Third Party P,30069291,CATHERINE LODGE,312,23/03/2015
Delivery Units,Adults and Communities,Other Agencies - Third Party P,30066444,CEDARS NURSING HOME,"2,129.96",03/03/2015
Delivery Units,Adults and Communities,Other Agencies - Third Party P,30066445,CEDARS NURSING HOME,"2,321.92",03/03/2015
Delivery Units,Adults and Communities,Other Agencies - Third Party P,30066446,CEDARS NURSING HOME,"2,094.52",03/03/2015
Delivery Units,Adults and Communities,Other Agencies - Third Party P,30066447,CEDARS NURSING HOME,"2,129.96",03/03/2015
Delivery Units,Adults and Communities,Other Agencies - Third Party P,30066736,CEDARS NURSING HOME,"2,321.92",04/03/2015
Delivery Units,Adults and Communities,Other Agencies - Third Party P,30066737,CEDARS NURSING HOME,"2,321.92",04/03/2015
Delivery Units,Adults and Communities,Other Agencies - Third Party P,30066738,CEDARS NURSING HOME,"2,321.92",04/03/2015
Delivery Units,Adults and Communities,Other Agencies - Third Party P,30066739,CEDARS NURSING HOME,"2,094.52",04/03/2015
Delivery Units,Adults and Communities,Other Agencies - Third Party P,30066740,CEDARS NURSING HOME,"2,321.92",04/03/2015
Delivery Units,Adults and Communities,Other Agencies - Third Party P,30066741,CEDARS NURSING HOME,"3,560.84",04/03/2015
Delivery Units,Adults and Communities,Other Agencies - Third Party P,30066866,CEDARS NURSING HOME,"2,321.92",05/03/2015
Delivery Units,Adults and Communities,Other Agencies - Third Party P,30068914,CEDARS NURSING HOME,"2,570.70",19/03/2015
Delivery Units,Adults and Communities,Other Agencies - Third Party P,30068915,CEDARS NURSING HOME,"2,570.70",19/03/2015
Delivery Units,Adults and Communities,Other Agencies - Third Party P,30068916,CEDARS NURSING HOME,"2,570.70",19/03/2015
Delivery Units,Adults and Communities,Other Agencies - Third Party P,30068917,CEDARS NURSING HOME,"2,318.93",19/03/2015
Delivery Units,Adults and Communities,Other Agencies - Third Party P,30068918,CEDARS NURSING HOME,"2,358.17",19/03/2015
Delivery Units,Adults and Communities,Other Agencies - Third Party P,30068919,CEDARS NURSING HOME,"2,570.70",19/03/2015
Delivery Units,Adults and Communities,Other Agencies - Third Party P,30068920,CEDARS NURSING HOME,"2,318.93",19/03/2015
Delivery Units,Adults and Communities,Other Agencies - Third Party P,30068921,CEDARS NURSING HOME,"2,570.70",19/03/2015
Delivery Units,Adults and Communities,Other Agencies - Third Party P,30068922,CEDARS NURSING HOME,"3,942.36",19/03/2015
Delivery Units,Adults and Communities,Other Agencies - Third Party P,30068923,CEDARS NURSING HOME,"2,358.17",19/03/2015
Delivery Units,Adults and Communities,Other Agencies - Third Party P,30069535,CEDARS NURSING HOME,"2,570.70",23/03/2015
Delivery Units,Adults and Communities,Other Agencies - Third Party P,30069705,CEDARS NURSING HOME,"2,318.93",24/03/2015
Delivery Units,Adults and Communities,Other Agencies - Third Party P,30069706,CEDARS NURSING HOME,"2,318.93",24/03/2015
Delivery Units,Adults and Communities,Other Agencies - Third Party P,30069707,CEDARS NURSING HOME,"2,244.13",24/03/2015
Delivery Units,Adults and Communities,Other Agencies - Third Party P,30069708,CEDARS NURSING HOME,"2,318.93",24/03/2015
Delivery Units,Adults and Communities,Other Agencies - Third Party P,30069709,CEDARS NURSING HOME,"2,244.13",24/03/2015
Delivery Units,Adults and Communities,Other Agencies - Third Party P,30069710,CEDARS NURSING HOME,"-1,570.89",24/03/2015
Delivery Units,Adults and Communities,Other Agencies - Third Party P,30069631,CENTRAL MIDDLESEX SKILLS,"1,085.52",24/03/2015
Delivery Units,Adults and Communities,Other Agencies - Third Party P,30069632,CENTRAL MIDDLESEX SKILLS,723.68,24/03/2015
Delivery Units,Adults and Communities,Other Agencies - Third Party P,30066098,CHARING GARDENS LTD,"1,919.00",02/03/2015
Delivery Units,Adults and Communities,Other Agencies - Third Party P,30068036,CHARING GARDENS LTD,"2,124.61",17/03/2015
Delivery Units,Adults and Communities,Other Agencies - Third Party P,30066840,CHATSWORTH CARE,"9,580.00",05/03/2015
Delivery Units,Adults and Communities,Other Agencies - Third Party P,30068705,CHATSWORTH CARE,"10,606.43",19/03/2015
Delivery Units,Adults and Communities,Other Agencies - Third Party P,30069315,CHATSWORTH CARE,"10,264.29",23/03/2015
Delivery Units,Adults and Communities,Other Agencies - Third Party P,30067863,CHEQUERS TRANSPORT LIMITED,488.8,17/03/2015
Delivery Units,Adults and Communities,Other Agencies - Third Party P,30067864,CHEQUERS TRANSPORT LIMITED,454.56,17/03/2015
Delivery Units,Adults and Communities,Other Agencies - Third Party P,30066847,CHOICE CARE GROUP,"7,891.24",05/03/2015
Delivery Units,Adults and Communities,Other Agencies - Third Party P,30066848,CHOICE CARE GROUP,-319.4,05/03/2015
Delivery Units,Adults and Communities,Other Agencies - Third Party P,30067119,CHOICE CARE GROUP,"8,736.73",10/03/2015
Delivery Units,Adults and Communities,Other Agencies - Third Party P,30067120,CHOICE CARE GROUP,-353.62,10/03/2015
Delivery Units,Adults and Communities,Other Agencies - Third Party P,30067264,CITY OF WESTMINSTER,"86,961.26",10/03/2015
Delivery Units,Adults and Communities,Other Agencies - Third Party P,30067265,CITY OF WESTMINSTER,"-4,162.70",10/03/2015
Delivery Units,Adults and Communities,Other Agencies - Third Party P,30069576,CITY OF WESTMINSTER,"87,780.00",23/03/2015
Delivery Units,Adults and Communities,Other Agencies - Third Party P,30069577,CITY OF WESTMINSTER,"-4,107.91",23/03/2015
Delivery Units,Adults and Communities,Other Agencies - Third Party P,30067166,CLARE HOUSE NURSING HOME,"2,094.52",10/03/2015
Delivery Units,Adults and Communities,Other Agencies - Third Party P,30066206,CLOVELLY HOUSE RESID. HOME LTD,"2,184.04",02/03/2015
Delivery Units,Adults and Communities,Other Agencies - Third Party P,30068134,CLOVELLY HOUSE RESID. HOME LTD,"2,600.00",17/03/2015
Delivery Units,Adults and Communities,Other Agencies - Third Party P,30068924,CLOVELLY HOUSE RESID. HOME LTD,"2,600.00",19/03/2015
Delivery Units,Adults and Communities,Other Agencies - Third Party P,30068925,CLOVELLY HOUSE RESID. HOME LTD,"2,184.04",19/03/2015
Delivery Units,Adults and Communities,Other Agencies - Third Party P,30068926,CLOVELLY HOUSE RESID. HOME LTD,-311.4,19/03/2015
Delivery Units,Adults and Communities,Other Agencies - Third Party P,30068927,CLOVELLY HOUSE RESID. HOME LTD,"2,184.04",19/03/2015
Delivery Units,Adults and Communities,Other Agencies - Third Party P,30068928,CLOVELLY HOUSE RESID. HOME LTD,"2,600.00",19/03/2015
Delivery Units,Adults and Communities,Other Agencies - Third Party P,30068929,CLOVELLY HOUSE RESID. HOME LTD,"2,184.04",19/03/2015
Delivery Units,Adults and Communities,Other Agencies - Third Party P,30068930,CLOVELLY HOUSE RESID. HOME LTD,"2,184.04",19/03/2015
Delivery Units,Adults and Communities,Other Agencies - Third Party P,30068931,CLOVELLY HOUSE RESID. HOME LTD,"2,184.04",19/03/2015
Delivery Units,Adults and Communities,Other Agencies - Third Party P,30068933,CLOVELLY HOUSE RESID. HOME LTD,-713.04,19/03/2015
Delivery Units,Adults and Communities,Other Agencies - Third Party P,30066345,COMPLETE CARE SERVICES LTD,"4,901.68",03/03/2015
Delivery Units,Adults and Communities,Other Agencies - Third Party P,30068041,COMPLETE CARE SERVICES LTD,"5,426.86",17/03/2015
Delivery Units,Adults and Communities,Other Agencies - Third Party P,30066264,CONNIFERS CARE LTD,"7,719.36",02/03/2015
Delivery Units,Adults and Communities,Other Agencies - Third Party P,30068210,CONNIFERS CARE LTD,"8,546.43",30/03/2015
Delivery Units,Adults and Communities,Other Agencies - Third Party P,20018150,CO-OPERATIVE FUNERALCARE,"2,759.60",20/03/2015
Delivery Units,Adults and Communities,Other Agencies - Third Party P,30066837,CRAEGMOOR,"3,420.84",05/03/2015
Delivery Units,Adults and Communities,Other Agencies - Third Party P,30066838,CRAEGMOOR,-251.4,05/03/2015
Delivery Units,Adults and Communities,Other Agencies - Third Party P,30068703,CRAEGMOOR,"3,787.36",19/03/2015
Delivery Units,Adults and Communities,Other Agencies - Third Party P,30068704,CRAEGMOOR,-278.34,19/03/2015
Delivery Units,Adults and Communities,Other Agencies - Third Party P,20017330,CRANSTOUN DRUG SERVICES,"1,253.57",02/03/2015
Delivery Units,Adults and Communities,Other Agencies - Third Party P,30067209,CRANSTOUN DRUG SERVICES,867.86,27/03/2015
Delivery Units,Adults and Communities,Other Agencies - Third Party P,30068674,CRESWICK HOUSE,"3,608.24",23/03/2015
Delivery Units,Adults and Communities,Other Agencies - Third Party P,30068675,CRESWICK HOUSE,-319.4,23/03/2015
Delivery Units,Adults and Communities,Other Agencies - Third Party P,30068676,CRESWICK HOUSE,"6,091.28",23/03/2015
Delivery Units,Adults and Communities,Other Agencies - Third Party P,30068677,CRESWICK HOUSE,-319.4,23/03/2015
Delivery Units,Adults and Communities,Other Agencies - Third Party P,30068678,CRESWICK HOUSE,"7,123.12",23/03/2015
Delivery Units,Adults and Communities,Other Agencies - Third Party P,30068693,CRESWICK HOUSE,"3,737.11",25/03/2015
Delivery Units,Adults and Communities,Other Agencies - Third Party P,30068694,CRESWICK HOUSE,-330.81,25/03/2015
Delivery Units,Adults and Communities,Other Agencies - Third Party P,30068695,CRESWICK HOUSE,"6,308.83",27/03/2015
Delivery Units,Adults and Communities,Other Agencies - Third Party P,30068696,CRESWICK HOUSE,-330.81,27/03/2015
Delivery Units,Adults and Communities,Other Agencies - Third Party P,30068697,CRESWICK HOUSE,"7,377.52",25/03/2015
Delivery Units,Adults and Communities,Other Agencies - Third Party P,30068275,CYGNET HEALTH CARE,"6,485.04",27/03/2015
Delivery Units,Adults and Communities,Other Agencies - Third Party P,30068276,CYGNET HEALTH CARE,-362.8,27/03/2015
Delivery Units,Adults and Communities,Other Agencies - Third Party P,30067526,DABB PAA,"1,092.96",13/03/2015
Delivery Units,Adults and Communities,Other Agencies - Third Party P,30066336,DANA CARE LIMITED,"4,472.12",03/03/2015
Delivery Units,Adults and Communities,Other Agencies - Third Party P,30066337,DANA CARE LIMITED,-319.4,03/03/2015
Delivery Units,Adults and Communities,Other Agencies - Third Party P,30066340,DANA CARE LIMITED,"9,124.00",03/03/2015
Delivery Units,Adults and Communities,Other Agencies - Third Party P,30066341,DANA CARE LIMITED,-319.4,03/03/2015
Delivery Units,Adults and Communities,Other Agencies - Third Party P,30066370,DANA CARE LIMITED,"7,384.84",03/03/2015
Delivery Units,Adults and Communities,Other Agencies - Third Party P,30066371,DANA CARE LIMITED,-319.4,03/03/2015
Delivery Units,Adults and Communities,Other Agencies - Third Party P,30066379,DANA CARE LIMITED,"8,944.00",03/03/2015
Delivery Units,Adults and Communities,Other Agencies - Third Party P,30069598,DANA CARE LIMITED,"4,951.27",24/03/2015
Delivery Units,Adults and Communities,Other Agencies - Third Party P,30069599,DANA CARE LIMITED,-353.62,24/03/2015
Delivery Units,Adults and Communities,Other Agencies - Third Party P,30069604,DANA CARE LIMITED,"10,101.57",24/03/2015
Delivery Units,Adults and Communities,Other Agencies - Third Party P,30069605,DANA CARE LIMITED,-353.62,24/03/2015
Delivery Units,Adults and Communities,Other Agencies - Third Party P,30069636,DANA CARE LIMITED,"8,176.07",24/03/2015
Delivery Units,Adults and Communities,Other Agencies - Third Party P,30069637,DANA CARE LIMITED,-353.62,24/03/2015
Delivery Units,Adults and Communities,Other Agencies - Third Party P,30069678,DANA CARE LIMITED,"9,902.29",24/03/2015
Delivery Units,Adults and Communities,Other Agencies - Third Party P,30067578,DEVELOPMENT AND LEARNING OPPORTUNIT,652.4,13/03/2015
Delivery Units,Adults and Communities,Other Agencies - Third Party P,30067579,DEVELOPMENT AND LEARNING OPPORTUNIT,500,13/03/2015
Delivery Units,Adults and Communities,Other Agencies - Third Party P,30069180,DEVELOPMENT AND LEARNING OPPORTUNIT,908.28,20/03/2015
Delivery Units,Adults and Communities,Other Agencies - Third Party P,30069181,DEVELOPMENT AND LEARNING OPPORTUNIT,"1,056.00",20/03/2015
Delivery Units,Adults and Communities,Other Agencies - Third Party P,30066508,DIMENSIONS UK,355.3,03/03/2015
Delivery Units,Adults and Communities,Other Agencies - Third Party P,30066509,DIMENSIONS UK,"1,196.80",03/03/2015
Delivery Units,Adults and Communities,Other Agencies - Third Party P,30066510,DIMENSIONS UK,"1,683.00",03/03/2015
Delivery Units,Adults and Communities,Other Agencies - Third Party P,30066511,DIMENSIONS UK,"1,570.80",03/03/2015
Delivery Units,Adults and Communities,Other Agencies - Third Party P,30067645,DIMENSIONS UK,"1,136.03",13/03/2015
Delivery Units,Adults and Communities,Other Agencies - Third Party P,30067799,DIMENSIONS UK,279.72,16/03/2015
Delivery Units,Adults and Communities,Other Agencies - Third Party P,30067800,DIMENSIONS UK,279.72,16/03/2015
Delivery Units,Adults and Communities,Other Agencies - Third Party P,30067801,DIMENSIONS UK,419.58,16/03/2015
Delivery Units,Adults and Communities,Other Agencies - Third Party P,30067803,DIMENSIONS UK,"2,128.00",16/03/2015
Delivery Units,Adults and Communities,Other Agencies - Third Party P,30067808,DIMENSIONS UK,"1,541.00",16/03/2015
Delivery Units,Adults and Communities,Other Agencies - Third Party P,30067987,DIMENSIONS UK,"7,950.68",17/03/2015
Delivery Units,Adults and Communities,Other Agencies - Third Party P,30067989,DIMENSIONS UK,965.6,17/03/2015
Delivery Units,Adults and Communities,Other Agencies - Third Party P,30067997,DIMENSIONS UK,"6,025.32",17/03/2015
Delivery Units,Adults and Communities,Other Agencies - Third Party P,30067998,DIMENSIONS UK,"4,495.76",17/03/2015
Delivery Units,Adults and Communities,Other Agencies - Third Party P,30067999,DIMENSIONS UK,"4,495.76",17/03/2015
Delivery Units,Adults and Communities,Other Agencies - Third Party P,30069733,DIMENSIONS UK,256.41,24/03/2015
Delivery Units,Adults and Communities,Other Agencies - Third Party P,30069734,DIMENSIONS UK,317.9,24/03/2015
Delivery Units,Adults and Communities,Other Agencies - Third Party P,30069737,DIMENSIONS UK,523.6,24/03/2015
Delivery Units,Adults and Communities,Other Agencies - Third Party P,30069738,DIMENSIONS UK,299.2,24/03/2015
Delivery Units,Adults and Communities,Other Agencies - Third Party P,30069739,DIMENSIONS UK,299.2,24/03/2015
Delivery Units,Adults and Communities,Other Agencies - Third Party P,30069741,DIMENSIONS UK,523.6,24/03/2015
Delivery Units,Adults and Communities,Other Agencies - Third Party P,30069742,DIMENSIONS UK,299.2,24/03/2015
Delivery Units,Adults and Communities,Other Agencies - Third Party P,30069743,DIMENSIONS UK,299.2,24/03/2015
Delivery Units,Adults and Communities,Other Agencies - Third Party P,30069744,DIMENSIONS UK,523.6,24/03/2015
Delivery Units,Adults and Communities,Other Agencies - Third Party P,30069745,DIMENSIONS UK,299.2,24/03/2015
Delivery Units,Adults and Communities,Other Agencies - Third Party P,30069746,DIMENSIONS UK,299.2,24/03/2015
Delivery Units,Adults and Communities,Other Agencies - Third Party P,30069747,DIMENSIONS UK,523.6,24/03/2015
Delivery Units,Adults and Communities,Other Agencies - Third Party P,30069748,DIMENSIONS UK,299.2,24/03/2015
Delivery Units,Adults and Communities,Other Agencies - Third Party P,30069749,DIMENSIONS UK,299.2,24/03/2015
Delivery Units,Adults and Communities,Other Agencies - Third Party P,30069751,DIMENSIONS UK,299.2,24/03/2015
Delivery Units,Adults and Communities,Other Agencies - Third Party P,30069752,DIMENSIONS UK,523.6,24/03/2015
Delivery Units,Adults and Communities,Other Agencies - Third Party P,30069753,DIMENSIONS UK,299.2,24/03/2015
Delivery Units,Adults and Communities,Other Agencies - Third Party P,30069754,DIMENSIONS UK,523.6,24/03/2015
Delivery Units,Adults and Communities,Other Agencies - Third Party P,30069755,DIMENSIONS UK,299.2,24/03/2015
Delivery Units,Adults and Communities,Other Agencies - Third Party P,30069756,DIMENSIONS UK,299.2,24/03/2015
Delivery Units,Adults and Communities,Other Agencies - Third Party P,30069758,DIMENSIONS UK,299.2,24/03/2015
Delivery Units,Adults and Communities,Other Agencies - Third Party P,30069759,DIMENSIONS UK,523.6,24/03/2015
Delivery Units,Adults and Communities,Other Agencies - Third Party P,30069760,DIMENSIONS UK,299.2,24/03/2015
Delivery Units,Adults and Communities,Other Agencies - Third Party P,30067359,DR FRENCH MEMORIAL HOME LTD,"1,014.02",12/03/2015
Delivery Units,Adults and Communities,Other Agencies - Third Party P,30068942,DR FRENCH MEMORIAL HOME LTD,"1,638.03",19/03/2015
Delivery Units,Adults and Communities,Other Agencies - Third Party P,30065700,EAST SUSSEX COUNTY COUNCIL,366.6,19/03/2015
Delivery Units,Adults and Communities,Other Agencies - Third Party P,30065701,EAST SUSSEX COUNTY COUNCIL,366.6,19/03/2015
Delivery Units,Adults and Communities,Other Agencies - Third Party P,30065702,EAST SUSSEX COUNTY COUNCIL,305.5,19/03/2015
Delivery Units,Adults and Communities,Other Agencies - Third Party P,30065703,EAST SUSSEX COUNTY COUNCIL,488.8,19/03/2015
Delivery Units,Adults and Communities,Other Agencies - Third Party P,30065704,EAST SUSSEX COUNTY COUNCIL,305.5,19/03/2015
Delivery Units,Adults and Communities,Other Agencies - Third Party P,30065706,EAST SUSSEX COUNTY COUNCIL,427.7,19/03/2015
Delivery Units,Adults and Communities,Other Agencies - Third Party P,30065707,EAST SUSSEX COUNTY COUNCIL,305.5,19/03/2015
Delivery Units,Adults and Communities,Other Agencies - Third Party P,30065708,EAST SUSSEX COUNTY COUNCIL,366.6,19/03/2015
Delivery Units,Adults and Communities,Other Agencies - Third Party P,30065710,EAST SUSSEX COUNTY COUNCIL,488.8,19/03/2015
Delivery Units,Adults and Communities,Other Agencies - Third Party P,20017866,EASTSIDE HOUSE RESIDENTIAL CARE HOM,"2,001.92",10/03/2015
Delivery Units,Adults and Communities,Other Agencies - Third Party P,30066325,EASTSIDE HOUSE RESIDENTIAL CARE HOM,"2,001.92",03/03/2015
Delivery Units,Adults and Communities,Other Agencies - Third Party P,30067176,EASTSIDE HOUSE RESIDENTIAL CARE HOM,"2,001.92",10/03/2015
Delivery Units,Adults and Communities,Other Agencies - Third Party P,30069623,ELEANOR PALMER TRUST NO 2 A/C.,546.01,24/03/2015
Delivery Units,Adults and Communities,Other Agencies - Third Party P,30066338,ELIZABETH FITZROY SUPPORT,"4,859.76",03/03/2015
Delivery Units,Adults and Communities,Other Agencies - Third Party P,30066339,ELIZABETH FITZROY SUPPORT,-319.4,03/03/2015
Delivery Units,Adults and Communities,Other Agencies - Third Party P,30066376,ELIZABETH FITZROY SUPPORT,"4,508.52",03/03/2015
Delivery Units,Adults and Communities,Other Agencies - Third Party P,30066377,ELIZABETH FITZROY SUPPORT,-319.4,03/03/2015
Delivery Units,Adults and Communities,Other Agencies - Third Party P,30068035,ELIZABETH FITZROY SUPPORT,-353.62,17/03/2015
Delivery Units,Adults and Communities,Other Agencies - Third Party P,30068067,ELIZABETH FITZROY SUPPORT,-353.62,17/03/2015
Delivery Units,Adults and Communities,Other Agencies - Third Party P,30066229,ELIZABETH HOUSE,"2,184.04",02/03/2015
Delivery Units,Adults and Communities,Other Agencies - Third Party P,30069227,ELIZABETH HOUSE,"10,560.00",20/03/2015
Delivery Units,Adults and Communities,Other Agencies - Third Party P,30069723,ELIZABETH HOUSE,"2,418.04",24/03/2015
Delivery Units,Adults and Communities,Other Agencies - Third Party P,30066865,ELM PARK LODGE,"3,520.71",06/03/2015
Delivery Units,Adults and Communities,Other Agencies - Third Party P,30066926,ELM PARK LODGE,"2,800.00",06/03/2015
Delivery Units,Adults and Communities,Other Agencies - Third Party P,30067363,ELM PARK LODGE,"4,718.81",13/03/2015
Delivery Units,Adults and Communities,Other Agencies - Third Party P,30067364,ELM PARK LODGE,"-1,168.67",13/03/2015
Delivery Units,Adults and Communities,Other Agencies - Third Party P,30067760,ELM PARK LODGE,890.4,20/03/2015
Delivery Units,Adults and Communities,Other Agencies - Third Party P,30067813,ELM PARK LODGE,"1,780.80",20/03/2015
Delivery Units,Adults and Communities,Other Agencies - Third Party P,30067814,ELM PARK LODGE,"1,780.80",13/03/2015
Delivery Units,Adults and Communities,Other Agencies - Third Party P,30068888,ELM PARK LODGE,"3,299.29",20/03/2015
Delivery Units,Adults and Communities,Other Agencies - Third Party P,30068901,ELM PARK LODGE,"3,166.43",20/03/2015
Delivery Units,Adults and Communities,Other Agencies - Third Party P,30068902,ELM PARK LODGE,-548.92,20/03/2015
Delivery Units,Adults and Communities,Other Agencies - Third Party P,30068975,ELM PARK LODGE,"3,612.87",20/03/2015
Delivery Units,Adults and Communities,Other Agencies - Third Party P,30068980,ELM PARK LODGE,"2,103.31",20/03/2015
Delivery Units,Adults and Communities,Other Agencies - Third Party P,30068981,ELM PARK LODGE,-353.58,20/03/2015
Delivery Units,Adults and Communities,Other Agencies - Third Party P,30068988,ELM PARK LODGE,"3,432.14",20/03/2015
Delivery Units,Adults and Communities,Other Agencies - Third Party P,30068989,ELM PARK LODGE,"2,161.85",20/03/2015
Delivery Units,Adults and Communities,Other Agencies - Third Party P,30069005,ELM PARK LODGE,"3,387.86",20/03/2015
Delivery Units,Adults and Communities,Other Agencies - Third Party P,30069008,ELM PARK LODGE,"3,210.71",20/03/2015
Delivery Units,Adults and Communities,Other Agencies - Third Party P,30069019,ELM PARK LODGE,"3,387.86",20/03/2015
Delivery Units,Adults and Communities,Other Agencies - Third Party P,30069088,ELM PARK LODGE,"2,103.31",20/03/2015
Delivery Units,Adults and Communities,Other Agencies - Third Party P,30069089,ELM PARK LODGE,-548.92,20/03/2015
Delivery Units,Adults and Communities,Other Agencies - Third Party P,30069090,ELM PARK LODGE,"3,455.61",20/03/2015
Delivery Units,Adults and Communities,Other Agencies - Third Party P,30069094,ELM PARK LODGE,"3,612.87",20/03/2015
Delivery Units,Adults and Communities,Other Agencies - Third Party P,30069558,ELM PARK LODGE,"3,299.29",20/03/2015
Delivery Units,Adults and Communities,Other Agencies - Third Party P,30067172,EMMAUS HOUSE,"2,184.04",10/03/2015
Delivery Units,Adults and Communities,Other Agencies - Third Party P,30066129,FERNBANK NURSING HOME.,"2,094.40",02/03/2015
Delivery Units,Adults and Communities,Other Agencies - Third Party P,30066130,FERNBANK NURSING HOME.,"2,094.40",02/03/2015
Delivery Units,Adults and Communities,Other Agencies - Third Party P,30066131,FERNBANK NURSING HOME.,"2,094.40",02/03/2015
Delivery Units,Adults and Communities,Other Agencies - Third Party P,30066132,FERNBANK NURSING HOME.,"2,094.40",02/03/2015
Delivery Units,Adults and Communities,Other Agencies - Third Party P,30066133,FERNBANK NURSING HOME.,"2,094.40",02/03/2015
Delivery Units,Adults and Communities,Other Agencies - Third Party P,30066134,FERNBANK NURSING HOME.,"2,094.40",02/03/2015
Delivery Units,Adults and Communities,Other Agencies - Third Party P,30066135,FERNBANK NURSING HOME.,"2,094.40",02/03/2015
Delivery Units,Adults and Communities,Other Agencies - Third Party P,30066136,FERNBANK NURSING HOME.,"2,321.76",02/03/2015
Delivery Units,Adults and Communities,Other Agencies - Third Party P,30068073,FERNBANK NURSING HOME.,"2,487.77",17/03/2015
Delivery Units,Adults and Communities,Other Agencies - Third Party P,30068838,FERNBANK NURSING HOME.,"2,318.80",19/03/2015
Delivery Units,Adults and Communities,Other Agencies - Third Party P,30068839,FERNBANK NURSING HOME.,"2,318.80",19/03/2015
Delivery Units,Adults and Communities,Other Agencies - Third Party P,30068840,FERNBANK NURSING HOME.,"2,318.80",19/03/2015
Delivery Units,Adults and Communities,Other Agencies - Third Party P,30068841,FERNBANK NURSING HOME.,"2,318.80",19/03/2015
Delivery Units,Adults and Communities,Other Agencies - Third Party P,30068842,FERNBANK NURSING HOME.,"2,318.80",19/03/2015
Delivery Units,Adults and Communities,Other Agencies - Third Party P,30068843,FERNBANK NURSING HOME.,"2,318.80",19/03/2015
Delivery Units,Adults and Communities,Other Agencies - Third Party P,30068844,FERNBANK NURSING HOME.,"2,318.80",19/03/2015
Delivery Units,Adults and Communities,Other Agencies - Third Party P,30068845,FERNBANK NURSING HOME.,"2,570.52",19/03/2015
Delivery Units,Adults and Communities,Other Agencies - Third Party P,20018228,FINBOND LIMITED,"2,657.14",24/03/2015
Delivery Units,Adults and Communities,Other Agencies - Third Party P,30068074,FINBOND LIMITED,"2,216.41",19/03/2015
Delivery Units,Adults and Communities,Other Agencies - Third Party P,30066267,FLAGSWAN TWO LTD,"2,780.87",02/03/2015
Delivery Units,Adults and Communities,Other Agencies - Third Party P,30067370,FLAGSWAN TWO LTD,"3,383.92",12/03/2015
Delivery Units,Adults and Communities,Other Agencies - Third Party P,30067984,FLAGSWAN TWO LTD,"3,056.44",17/03/2015
Delivery Units,Adults and Communities,Other Agencies - Third Party P,30068215,FLAGSWAN TWO LTD,"2,184.04",17/03/2015
Delivery Units,Adults and Communities,Other Agencies - Third Party P,30068216,FLAGSWAN TWO LTD,"2,300.00",17/03/2015
Delivery Units,Adults and Communities,Other Agencies - Third Party P,30069561,FLAGSWAN TWO LTD,"5,224.29",23/03/2015
Delivery Units,Adults and Communities,Other Agencies - Third Party P,30069562,FLAGSWAN TWO LTD,"2,546.43",23/03/2015
Delivery Units,Adults and Communities,Other Agencies - Third Party P,30067974,FOUR SEASONS HEALTH CARE,"2,090.12",17/03/2015
Delivery Units,Adults and Communities,Other Agencies - Third Party P,30067975,FOUR SEASONS HEALTH CARE,"2,317.52",17/03/2015
Delivery Units,Adults and Communities,Other Agencies - Third Party P,30068990,FOUR SEASONS HEALTH CARE,"1,519.94",19/03/2015
Delivery Units,Adults and Communities,Other Agencies - Third Party P,30068991,FOUR SEASONS HEALTH CARE,"1,820.91",19/03/2015
Delivery Units,Adults and Communities,Other Agencies - Third Party P,30068992,FOUR SEASONS HEALTH CARE,"2,090.12",19/03/2015
Delivery Units,Adults and Communities,Other Agencies - Third Party P,30068993,FOUR SEASONS HEALTH CARE,"2,317.52",19/03/2015
Delivery Units,Adults and Communities,Other Agencies - Third Party P,30068994,FOUR SEASONS HEALTH CARE,"2,094.52",19/03/2015
Delivery Units,Adults and Communities,Other Agencies - Third Party P,30068995,FOUR SEASONS HEALTH CARE,"2,090.12",19/03/2015
Delivery Units,Adults and Communities,Other Agencies - Third Party P,30069548,FOUR SEASONS HEALTH CARE,"2,447.76",23/03/2015
Delivery Units,Adults and Communities,Other Agencies - Third Party P,30069549,FOUR SEASONS HEALTH CARE,"2,090.12",23/03/2015
Delivery Units,Adults and Communities,Other Agencies - Third Party P,30069550,FOUR SEASONS HEALTH CARE,"2,090.12",23/03/2015
Delivery Units,Adults and Communities,Other Agencies - Third Party P,30069551,FOUR SEASONS HEALTH CARE,"2,127.92",23/03/2015
Delivery Units,Adults and Communities,Other Agencies - Third Party P,30069552,FOUR SEASONS HEALTH CARE,"2,317.52",23/03/2015
Delivery Units,Adults and Communities,Other Agencies - Third Party P,30069553,FOUR SEASONS HEALTH CARE,"2,090.13",23/03/2015
Delivery Units,Adults and Communities,Other Agencies - Third Party P,30069554,FOUR SEASONS HEALTH CARE,"2,090.12",23/03/2015
Delivery Units,Adults and Communities,Other Agencies - Third Party P,30069724,FOUR SEASONS HEALTH CARE,734.71,24/03/2015
Delivery Units,Adults and Communities,Other Agencies - Third Party P,30068057,FOUR SEASONS HEALTH CARE (NO.4) LTD,"9,519.00",17/03/2015
Delivery Units,Adults and Communities,Other Agencies - Third Party P,30065823,FREEWAYS TRUST LIMITED,"2,979.76",12/03/2015
Delivery Units,Adults and Communities,Other Agencies - Third Party P,30065824,FREEWAYS TRUST LIMITED,-890.2,12/03/2015
Delivery Units,Adults and Communities,Other Agencies - Third Party P,30068239,FREEWAYS TRUST LIMITED,"2,979.76",17/03/2015
Delivery Units,Adults and Communities,Other Agencies - Third Party P,30068240,FREEWAYS TRUST LIMITED,-890.2,17/03/2015
Delivery Units,Adults and Communities,Other Agencies - Third Party P,30067789,FREMANTLE TRUST,"4,287.13",16/03/2015
Delivery Units,Adults and Communities,Other Agencies - Third Party P,30067791,FREMANTLE TRUST,"20,809.44",16/03/2015
Delivery Units,Adults and Communities,Other Agencies - Third Party P,30067792,FREMANTLE TRUST,-727.2,16/03/2015
Delivery Units,Adults and Communities,Other Agencies - Third Party P,30067793,FREMANTLE TRUST,"30,780.63",16/03/2015
Delivery Units,Adults and Communities,Other Agencies - Third Party P,30067794,FREMANTLE TRUST,"-1,991.10",16/03/2015
Delivery Units,Adults and Communities,Other Agencies - Third Party P,30069559,FREMANTLE TRUST,"2,236.44",23/03/2015
Delivery Units,Adults and Communities,Other Agencies - Third Party P,30069702,FREMANTLE TRUST,"-3,000.00",24/03/2015
Delivery Units,Adults and Communities,Other Agencies - Third Party P,30069715,FREMANTLE TRUST,"7,188.78",24/03/2015
Delivery Units,Adults and Communities,Other Agencies - Third Party P,30069789,FREMANTLE TRUST,"3,000.00",24/03/2015
Delivery Units,Adults and Communities,Other Agencies - Third Party P,30066115,FRIARY LODGE,"2,184.04",03/03/2015
Delivery Units,Adults and Communities,Other Agencies - Third Party P,30066119,FRIARY LODGE,"2,184.04",03/03/2015
Delivery Units,Adults and Communities,Other Agencies - Third Party P,30066179,FRIARY LODGE,"2,001.92",03/03/2015
Delivery Units,Adults and Communities,Other Agencies - Third Party P,30066186,FRIERN RESIDENTIAL CARE HOME,"1,899.76",02/03/2015
Delivery Units,Adults and Communities,Other Agencies - Third Party P,30066216,FRIERN RESIDENTIAL CARE HOME,"1,138.40",02/03/2015
Delivery Units,Adults and Communities,Other Agencies - Third Party P,30066217,FRIERN RESIDENTIAL CARE HOME,-495.8,02/03/2015
Delivery Units,Adults and Communities,Other Agencies - Third Party P,30066247,FRIERN RESIDENTIAL CARE HOME,"2,001.92",02/03/2015
Delivery Units,Adults and Communities,Other Agencies - Third Party P,30066248,FRIERN RESIDENTIAL CARE HOME,-495.8,02/03/2015
Delivery Units,Adults and Communities,Other Agencies - Third Party P,30066261,FRIERN RESIDENTIAL CARE HOME,"1,899.76",02/03/2015
Delivery Units,Adults and Communities,Other Agencies - Third Party P,30066262,FRIERN RESIDENTIAL CARE HOME,-319.4,02/03/2015
Delivery Units,Adults and Communities,Other Agencies - Third Party P,30066275,FRIERN RESIDENTIAL CARE HOME,"1,234.48",02/03/2015
Delivery Units,Adults and Communities,Other Agencies - Third Party P,30066276,FRIERN RESIDENTIAL CARE HOME,-362.8,02/03/2015
Delivery Units,Adults and Communities,Other Agencies - Third Party P,30066297,FRIERN RESIDENTIAL CARE HOME,"2,001.92",02/03/2015
Delivery Units,Adults and Communities,Other Agencies - Third Party P,30066298,FRIERN RESIDENTIAL CARE HOME,-495.8,02/03/2015
Delivery Units,Adults and Communities,Other Agencies - Third Party P,30068132,FRIERN RESIDENTIAL CARE HOME,"2,103.30",17/03/2015
Delivery Units,Adults and Communities,Other Agencies - Third Party P,30068159,FRIERN RESIDENTIAL CARE HOME,"1,260.37",17/03/2015
Delivery Units,Adults and Communities,Other Agencies - Third Party P,30068160,FRIERN RESIDENTIAL CARE HOME,-548.92,17/03/2015
Delivery Units,Adults and Communities,Other Agencies - Third Party P,30068183,FRIERN RESIDENTIAL CARE HOME,"2,216.41",17/03/2015
Delivery Units,Adults and Communities,Other Agencies - Third Party P,30068184,FRIERN RESIDENTIAL CARE HOME,-548.92,17/03/2015
Delivery Units,Adults and Communities,Other Agencies - Third Party P,30068208,FRIERN RESIDENTIAL CARE HOME,"2,103.30",17/03/2015
Delivery Units,Adults and Communities,Other Agencies - Third Party P,30068209,FRIERN RESIDENTIAL CARE HOME,-353.62,17/03/2015
Delivery Units,Adults and Communities,Other Agencies - Third Party P,30068217,FRIERN RESIDENTIAL CARE HOME,"1,366.74",17/03/2015
Delivery Units,Adults and Communities,Other Agencies - Third Party P,30068218,FRIERN RESIDENTIAL CARE HOME,-401.67,17/03/2015
Delivery Units,Adults and Communities,Other Agencies - Third Party P,30068277,FRIERN RESIDENTIAL CARE HOME,"2,216.41",17/03/2015
Delivery Units,Adults and Communities,Other Agencies - Third Party P,30068278,FRIERN RESIDENTIAL CARE HOME,-548.92,17/03/2015
Delivery Units,Adults and Communities,Other Agencies - Third Party P,30067963,GENTLE HANDS CARE AGENCY,"1,400.00",17/03/2015
Delivery Units,Adults and Communities,Other Agencies - Third Party P,30066084,GLEBELANDS,"12,000.00",02/03/2015
Delivery Units,Adults and Communities,Other Agencies - Third Party P,30068936,GLENHOLME PSYCHIATRIC AFTER CARE HO,"4,097.05",19/03/2015
Delivery Units,Adults and Communities,Other Agencies - Third Party P,30069001,GLENHOLME PSYCHIATRIC AFTER CARE HO,"3,986.16",19/03/2015
Delivery Units,Adults and Communities,Other Agencies - Third Party P,30069105,GLENHOLME PSYCHIATRIC AFTER CARE HO,"4,207.14",19/03/2015
Delivery Units,Adults and Communities,Other Agencies - Third Party P,30069711,GLENHOLME PSYCHIATRIC AFTER CARE HO,"3,700.56",24/03/2015
Delivery Units,Adults and Communities,Other Agencies - Third Party P,30069728,GLENHOLME PSYCHIATRIC AFTER CARE HO,"3,600.40",24/03/2015
Delivery Units,Adults and Communities,Other Agencies - Third Party P,30069788,GLENHOLME PSYCHIATRIC AFTER CARE HO,"3,800.00",24/03/2015
Delivery Units,Adults and Communities,Other Agencies - Third Party P,30066125,GLOUCESTERSHIRE GROUP HOMES,"3,783.75",02/03/2015
Delivery Units,Adults and Communities,Other Agencies - Third Party P,30066126,GLOUCESTERSHIRE GROUP HOMES,-735.6,02/03/2015
Delivery Units,Adults and Communities,Other Agencies - Third Party P,30068814,GLOUCESTERSHIRE GROUP HOMES,"4,189.16",19/03/2015
Delivery Units,Adults and Communities,Other Agencies - Third Party P,30068815,GLOUCESTERSHIRE GROUP HOMES,-814.41,19/03/2015
Delivery Units,Adults and Communities,Other Agencies - Third Party P,30067123,GRATWICK HOUSE CARE HOME,"2,001.92",10/03/2015
Delivery Units,Adults and Communities,Other Agencies - Third Party P,30067124,GRATWICK HOUSE CARE HOME,-487.8,10/03/2015
Delivery Units,Adults and Communities,Other Agencies - Third Party P,30066366,GREENFIELDS RESIDENTIAL HOME,"2,001.92",03/03/2015
Delivery Units,Adults and Communities,Other Agencies - Third Party P,30066367,GREENFIELDS RESIDENTIAL HOME,-769.2,03/03/2015
Delivery Units,Adults and Communities,Other Agencies - Third Party P,30068714,GREENFIELDS RESIDENTIAL HOME,"2,216.41",19/03/2015
Delivery Units,Adults and Communities,Other Agencies - Third Party P,30068715,GREENFIELDS RESIDENTIAL HOME,-851.61,19/03/2015
Delivery Units,Adults and Communities,Other Agencies - Third Party P,30068032,H.C.S. (ENFIELD) LTD,"5,271.77",17/03/2015
Delivery Units,Adults and Communities,Other Agencies - Third Party P,30068033,H.C.S. (ENFIELD) LTD,-353.62,17/03/2015
Delivery Units,Adults and Communities,Other Agencies - Third Party P,30066474,HALLMARK CARE (KINGS LYNN) LTD,"2,610.60",03/03/2015
Delivery Units,Adults and Communities,Other Agencies - Third Party P,30067187,HARDEN,"4,343.12",10/03/2015
Delivery Units,Adults and Communities,Other Agencies - Third Party P,30067633,HARTWIG CARE LIMITED,"1,022.94",13/03/2015
Delivery Units,Adults and Communities,Other Agencies - Third Party P,30067634,HARTWIG CARE LIMITED,"1,277.63",13/03/2015
Delivery Units,Adults and Communities,Other Agencies - Third Party P,30065712,HENRY NIHILL HOUSE,"2,321.92",03/03/2015
Delivery Units,Adults and Communities,Other Agencies - Third Party P,30065713,HENRY NIHILL HOUSE,"1,421.28",03/03/2015
Delivery Units,Adults and Communities,Other Agencies - Third Party P,30067150,HENRY NIHILL HOUSE,"2,321.92",10/03/2015
Delivery Units,Adults and Communities,Other Agencies - Third Party P,30067151,HENRY NIHILL HOUSE,"2,001.92",10/03/2015
Delivery Units,Adults and Communities,Other Agencies - Third Party P,30067152,HENRY NIHILL HOUSE,-495.8,10/03/2015
Delivery Units,Adults and Communities,Other Agencies - Third Party P,30068603,HENRY NIHILL HOUSE,"2,321.92",24/03/2015
Delivery Units,Adults and Communities,Other Agencies - Third Party P,30069595,HENRY NIHILL HOUSE,"2,321.92",27/03/2015
Delivery Units,Adults and Communities,Other Agencies - Third Party P,30069622,HILLGREEN CARE LTD,"7,093.24",24/03/2015
Delivery Units,Adults and Communities,Other Agencies - Third Party P,30067131,HILLVIEW COURT NURSING HOME,"4,200.00",10/03/2015
Delivery Units,Adults and Communities,Other Agencies - Third Party P,30067132,HILLVIEW COURT NURSING HOME,-319.4,10/03/2015
Delivery Units,Adults and Communities,Other Agencies - Third Party P,30066453,HILTON LODGE LTD.,"2,184.04",03/03/2015
Delivery Units,Adults and Communities,Other Agencies - Third Party P,30066454,HILTON LODGE LTD.,-581.32,03/03/2015
Delivery Units,Adults and Communities,Other Agencies - Third Party P,30066455,HILTON LODGE LTD.,"2,184.04",03/03/2015
Delivery Units,Adults and Communities,Other Agencies - Third Party P,30066456,HILTON LODGE LTD.,-783.2,03/03/2015
Delivery Units,Adults and Communities,Other Agencies - Third Party P,30066494,HILTON LODGE LTD.,"2,184.04",03/03/2015
Delivery Units,Adults and Communities,Other Agencies - Third Party P,30066495,HILTON LODGE LTD.,"2,184.04",03/03/2015
Delivery Units,Adults and Communities,Other Agencies - Third Party P,30066496,HILTON LODGE LTD.,"2,256.04",03/03/2015
Delivery Units,Adults and Communities,Other Agencies - Third Party P,30066501,HILTON LODGE LTD.,"2,184.04",03/03/2015
Delivery Units,Adults and Communities,Other Agencies - Third Party P,30066502,HILTON LODGE LTD.,"2,184.04",03/03/2015
Delivery Units,Adults and Communities,Other Agencies - Third Party P,30066578,HILTON LODGE LTD.,"2,184.04",03/03/2015
Delivery Units,Adults and Communities,Other Agencies - Third Party P,30066580,HILTON LODGE LTD.,"2,184.04",03/03/2015
Delivery Units,Adults and Communities,Other Agencies - Third Party P,30068139,HILTON LODGE LTD.,"2,184.04",17/03/2015
Delivery Units,Adults and Communities,Other Agencies - Third Party P,30068140,HILTON LODGE LTD.,-581.32,17/03/2015
Delivery Units,Adults and Communities,Other Agencies - Third Party P,30068141,HILTON LODGE LTD.,"2,184.04",17/03/2015
Delivery Units,Adults and Communities,Other Agencies - Third Party P,30068142,HILTON LODGE LTD.,-783.2,17/03/2015
Delivery Units,Adults and Communities,Other Agencies - Third Party P,30068197,HILTON LODGE LTD.,"2,184.04",17/03/2015
Delivery Units,Adults and Communities,Other Agencies - Third Party P,30068201,HILTON LODGE LTD.,"2,184.04",17/03/2015
Delivery Units,Adults and Communities,Other Agencies - Third Party P,30068202,HILTON LODGE LTD.,"2,256.04",17/03/2015
Delivery Units,Adults and Communities,Other Agencies - Third Party P,30068211,HILTON LODGE LTD.,"2,184.04",17/03/2015
Delivery Units,Adults and Communities,Other Agencies - Third Party P,30068212,HILTON LODGE LTD.,"2,184.04",17/03/2015
Delivery Units,Adults and Communities,Other Agencies - Third Party P,30068282,HILTON LODGE LTD.,"2,184.04",17/03/2015
Delivery Units,Adults and Communities,Other Agencies - Third Party P,30068286,HILTON LODGE LTD.,"2,184.04",17/03/2015
Delivery Units,Adults and Communities,Other Agencies - Third Party P,30069539,HILTON LODGE LTD.,"3,042.06",23/03/2015
Delivery Units,Adults and Communities,Other Agencies - Third Party P,30066919,HOLLY HOUSE,"3,434.75",05/03/2015
Delivery Units,Adults and Communities,Other Agencies - Third Party P,30068012,HOLLY HOUSE,"1,748.60",17/03/2015
Delivery Units,Adults and Communities,Other Agencies - Third Party P,30066244,HOLLY HOUSE RESIDENTIAL CARE HOME,"3,400.00",02/03/2015
Delivery Units,Adults and Communities,Other Agencies - Third Party P,30066279,HOLLY HOUSE RESIDENTIAL CARE HOME,"3,192.96",02/03/2015
Delivery Units,Adults and Communities,Other Agencies - Third Party P,30069547,HOLLY HOUSE RESIDENTIAL CARE HOME,"3,764.28",27/03/2015
Delivery Units,Adults and Communities,Other Agencies - Third Party P,30069564,HOLLY HOUSE RESIDENTIAL CARE HOME,"3,535.06",25/03/2015
Delivery Units,Adults and Communities,Other Agencies - Third Party P,30068878,HOME FARM TRUST LTD,"8,034.76",19/03/2015
Delivery Units,Adults and Communities,Other Agencies - Third Party P,30068879,HOME FARM TRUST LTD,-319.4,19/03/2015
Delivery Units,Adults and Communities,Other Agencies - Third Party P,30068882,HOME FARM TRUST LTD,"2,657.40",19/03/2015
Delivery Units,Adults and Communities,Other Agencies - Third Party P,30068883,HOME FARM TRUST LTD,-319.4,19/03/2015
Delivery Units,Adults and Communities,Other Agencies - Third Party P,30066302,HOME FROM HOME CARE LTD,"9,769.00",02/03/2015
Delivery Units,Adults and Communities,Other Agencies - Third Party P,30066303,HOME FROM HOME CARE LTD,-350.6,02/03/2015
Delivery Units,Adults and Communities,Other Agencies - Third Party P,30069574,HOME FROM HOME CARE LTD,"9,769.00",23/03/2015
Delivery Units,Adults and Communities,Other Agencies - Third Party P,30069575,HOME FROM HOME CARE LTD,-350.6,23/03/2015
Delivery Units,Adults and Communities,Other Agencies - Third Party P,30069192,HOUSING 21 (BARNET),"2,752.97",20/03/2015
Delivery Units,Adults and Communities,Other Agencies - Third Party P,30069193,HOUSING 21 (BARNET),"2,839.38",20/03/2015
Delivery Units,Adults and Communities,Other Agencies - Third Party P,30069194,HOUSING 21 (BARNET),"2,863.81",20/03/2015
Delivery Units,Adults and Communities,Other Agencies - Third Party P,30066579,HUSKARDS NEW CARE LTD,"2,002.00",03/03/2015
Delivery Units,Adults and Communities,Other Agencies - Third Party P,30068283,HUSKARDS NEW CARE LTD,"2,216.50",17/03/2015
Delivery Units,Adults and Communities,Other Agencies - Third Party P,30068336,INDEPENDENCE HOMES LIMITED,"5,400.00",18/03/2015
Delivery Units,Adults and Communities,Other Agencies - Third Party P,30068337,INDEPENDENCE HOMES LIMITED,"2,900.00",18/03/2015
Delivery Units,Adults and Communities,Other Agencies - Third Party P,30066803,INDIVIDUALISED CARE LIMITED,912,05/03/2015
Delivery Units,Adults and Communities,Other Agencies - Third Party P,30066804,INDIVIDUALISED CARE LIMITED,"2,400.00",05/03/2015
Delivery Units,Adults and Communities,Other Agencies - Third Party P,30066805,INDIVIDUALISED CARE LIMITED,700,05/03/2015
Delivery Units,Adults and Communities,Other Agencies - Third Party P,30066806,INDIVIDUALISED CARE LIMITED,"1,000.00",05/03/2015
Delivery Units,Adults and Communities,Other Agencies - Third Party P,30066807,INDIVIDUALISED CARE LIMITED,800,05/03/2015
Delivery Units,Adults and Communities,Other Agencies - Third Party P,30066808,INDIVIDUALISED CARE LIMITED,700,05/03/2015
Delivery Units,Adults and Communities,Other Agencies - Third Party P,30066809,INDIVIDUALISED CARE LIMITED,500,05/03/2015
Delivery Units,Adults and Communities,Other Agencies - Third Party P,30066810,INDIVIDUALISED CARE LIMITED,800,05/03/2015
Delivery Units,Adults and Communities,Other Agencies - Third Party P,30066811,INDIVIDUALISED CARE LIMITED,712,05/03/2015
Delivery Units,Adults and Communities,Other Agencies - Third Party P,30066812,INDIVIDUALISED CARE LIMITED,700,05/03/2015
Delivery Units,Adults and Communities,Other Agencies - Third Party P,30066814,INDIVIDUALISED CARE LIMITED,255,05/03/2015
Delivery Units,Adults and Communities,Other Agencies - Third Party P,30067012,INDIVIDUALISED CARE LIMITED,"2,000.00",06/03/2015
Delivery Units,Adults and Communities,Other Agencies - Third Party P,30067015,INDIVIDUALISED CARE LIMITED,700,06/03/2015
Delivery Units,Adults and Communities,Other Agencies - Third Party P,30067016,INDIVIDUALISED CARE LIMITED,344,06/03/2015
Delivery Units,Adults and Communities,Other Agencies - Third Party P,30067017,INDIVIDUALISED CARE LIMITED,300,06/03/2015
Delivery Units,Adults and Communities,Other Agencies - Third Party P,30067019,INDIVIDUALISED CARE LIMITED,812,06/03/2015
Delivery Units,Adults and Communities,Other Agencies - Third Party P,30067020,INDIVIDUALISED CARE LIMITED,300,06/03/2015
Delivery Units,Adults and Communities,Other Agencies - Third Party P,30067021,INDIVIDUALISED CARE LIMITED,300,06/03/2015
Delivery Units,Adults and Communities,Other Agencies - Third Party P,30067023,INDIVIDUALISED CARE LIMITED,255,06/03/2015
Delivery Units,Adults and Communities,Other Agencies - Third Party P,30067024,INDIVIDUALISED CARE LIMITED,400,06/03/2015
Delivery Units,Adults and Communities,Other Agencies - Third Party P,30067025,INDIVIDUALISED CARE LIMITED,684,06/03/2015
Delivery Units,Adults and Communities,Other Agencies - Third Party P,30067026,INDIVIDUALISED CARE LIMITED,600,06/03/2015
Delivery Units,Adults and Communities,Other Agencies - Third Party P,30067027,INDIVIDUALISED CARE LIMITED,600,06/03/2015
Delivery Units,Adults and Communities,Other Agencies - Third Party P,30067028,INDIVIDUALISED CARE LIMITED,600,06/03/2015
Delivery Units,Adults and Communities,Other Agencies - Third Party P,30067029,INDIVIDUALISED CARE LIMITED,300,06/03/2015
Delivery Units,Adults and Communities,Other Agencies - Third Party P,30067035,INDIVIDUALISED CARE LIMITED,"1,360.00",06/03/2015
Delivery Units,Adults and Communities,Other Agencies - Third Party P,30067036,INDIVIDUALISED CARE LIMITED,316,06/03/2015
Delivery Units,Adults and Communities,Other Agencies - Third Party P,30067037,INDIVIDUALISED CARE LIMITED,"1,000.00",06/03/2015
Delivery Units,Adults and Communities,Other Agencies - Third Party P,30067442,INDIVIDUALISED CARE LIMITED,560,13/03/2015
Delivery Units,Adults and Communities,Other Agencies - Third Party P,30069225,INDIVIDUALISED CARE LIMITED,255,23/03/2015
Delivery Units,Adults and Communities,Other Agencies - Third Party P,30068709,INSIGHT SPECIALIST BEHAVIOURAL,"5,944.08",19/03/2015
Delivery Units,Adults and Communities,Other Agencies - Third Party P,30069316,INSIGHT SPECIALIST BEHAVIOURAL,"5,944.08",23/03/2015
Delivery Units,Adults and Communities,Other Agencies - Third Party P,30067121,IVER HOUSE LTD,"3,776.90",10/03/2015
Delivery Units,Adults and Communities,Other Agencies - Third Party P,30067122,IVER HOUSE LTD,-362.8,10/03/2015
Delivery Units,Adults and Communities,Other Agencies - Third Party P,30069602,IVER HOUSE LTD,"3,514.28",24/03/2015
Delivery Units,Adults and Communities,Other Agencies - Third Party P,30069603,IVER HOUSE LTD,-362.8,24/03/2015
Delivery Units,Adults and Communities,Other Agencies - Third Party P,30066819,JANITH HOMES LTD,"2,393.72",05/03/2015
Delivery Units,Adults and Communities,Other Agencies - Third Party P,30066820,JANITH HOMES LTD,-319.48,05/03/2015
Delivery Units,Adults and Communities,Other Agencies - Third Party P,30068625,JANITH HOMES LTD,"2,650.19",19/03/2015
Delivery Units,Adults and Communities,Other Agencies - Third Party P,30068626,JANITH HOMES LTD,-353.71,19/03/2015
Delivery Units,Adults and Communities,Other Agencies - Third Party P,20017727,JEMINI RESPONSE,"9,100.00",10/03/2015
Delivery Units,Adults and Communities,Other Agencies - Third Party P,30067088,JEMINI RESPONSE,"9,100.00",10/03/2015
Delivery Units,Adults and Communities,Other Agencies - Third Party P,30067141,JEWISH CARE,"-2,293.24",10/03/2015
Delivery Units,Adults and Communities,Other Agencies - Third Party P,30067142,JEWISH CARE,"-13,392.00",10/03/2015
Delivery Units,Adults and Communities,Other Agencies - Third Party P,30067143,JEWISH CARE,"1,556.13",10/03/2015
Delivery Units,Adults and Communities,Other Agencies - Third Party P,30067147,JEWISH CARE,"1,228.52",10/03/2015
Delivery Units,Adults and Communities,Other Agencies - Third Party P,30067334,JEWISH CARE,"1,146.62",12/03/2015
Delivery Units,Adults and Communities,Other Agencies - Third Party P,30067335,JEWISH CARE,"2,327.21",12/03/2015
Delivery Units,Adults and Communities,Other Agencies - Third Party P,30067336,JEWISH CARE,"1,719.93",12/03/2015
Delivery Units,Adults and Communities,Other Agencies - Third Party P,30067338,JEWISH CARE,573.31,12/03/2015
Delivery Units,Adults and Communities,Other Agencies - Third Party P,30067339,JEWISH CARE,"1,099.62",12/03/2015
Delivery Units,Adults and Communities,Other Agencies - Third Party P,30067340,JEWISH CARE,"1,638.03",12/03/2015
Delivery Units,Adults and Communities,Other Agencies - Third Party P,30067342,JEWISH CARE,"2,702.75",12/03/2015
Delivery Units,Adults and Communities,Other Agencies - Third Party P,30067343,JEWISH CARE,"-2,620.84",12/03/2015
Delivery Units,Adults and Communities,Other Agencies - Third Party P,30067942,JEWISH CARE,"3,800.00",19/03/2015
Delivery Units,Adults and Communities,Other Agencies - Third Party P,30067943,JEWISH CARE,"1,146.62",19/03/2015
Delivery Units,Adults and Communities,Other Agencies - Third Party P,30068077,JEWISH CARE,"2,102.00",17/03/2015
Delivery Units,Adults and Communities,Other Agencies - Third Party P,30068078,JEWISH CARE,"3,200.00",17/03/2015
Delivery Units,Adults and Communities,Other Agencies - Third Party P,30068087,JEWISH CARE,"2,199.24",17/03/2015
Delivery Units,Adults and Communities,Other Agencies - Third Party P,30068088,JEWISH CARE,"3,360.00",17/03/2015
Delivery Units,Adults and Communities,Other Agencies - Third Party P,30068089,JEWISH CARE,-319.4,17/03/2015
Delivery Units,Adults and Communities,Other Agencies - Third Party P,30068091,JEWISH CARE,"2,133.84",17/03/2015
Delivery Units,Adults and Communities,Other Agencies - Third Party P,30068092,JEWISH CARE,-495.8,17/03/2015
Delivery Units,Adults and Communities,Other Agencies - Third Party P,30068854,JEWISH CARE,"2,293.24",19/03/2015
Delivery Units,Adults and Communities,Other Agencies - Third Party P,30068855,JEWISH CARE,"-1,392.32",19/03/2015
Delivery Units,Adults and Communities,Other Agencies - Third Party P,30069494,JEWISH CARE,-343.23,23/03/2015
Delivery Units,Adults and Communities,Other Agencies - Third Party P,30069496,JEWISH CARE,"1,051.00",23/03/2015
Delivery Units,Adults and Communities,Other Agencies - Third Party P,30069497,JEWISH CARE,"-1,310.42",23/03/2015
Delivery Units,Adults and Communities,Other Agencies - Third Party P,30069498,JEWISH CARE,"1,228.52",23/03/2015
Delivery Units,Adults and Communities,Other Agencies - Third Party P,30067071,JIGSAW CREATIVE CARE LIMITED,"2,998.68",09/03/2015
Delivery Units,Adults and Communities,Other Agencies - Third Party P,30067072,JIGSAW CREATIVE CARE LIMITED,"1,412.00",09/03/2015
Delivery Units,Adults and Communities,Other Agencies - Third Party P,30067073,JIGSAW CREATIVE CARE LIMITED,"2,783.00",09/03/2015
Delivery Units,Adults and Communities,Other Agencies - Third Party P,30067451,JIGSAW CREATIVE CARE LIMITED,"2,998.68",13/03/2015
Delivery Units,Adults and Communities,Other Agencies - Third Party P,30067452,JIGSAW CREATIVE CARE LIMITED,"1,412.00",13/03/2015
Delivery Units,Adults and Communities,Other Agencies - Third Party P,30067454,JIGSAW CREATIVE CARE LIMITED,"2,783.00",13/03/2015
Delivery Units,Adults and Communities,Other Agencies - Third Party P,30069256,JIGSAW CREATIVE CARE LIMITED,"1,412.00",23/03/2015
Delivery Units,Adults and Communities,Other Agencies - Third Party P,30069257,JIGSAW CREATIVE CARE LIMITED,"2,783.00",23/03/2015
Delivery Units,Adults and Communities,Other Agencies - Third Party P,30066311,KEMBLE HOUSE,"8,743.56",03/03/2015
Delivery Units,Adults and Communities,Other Agencies - Third Party P,30066313,KEMBLE HOUSE,"3,015.88",03/03/2015
Delivery Units,Adults and Communities,Other Agencies - Third Party P,30066314,KEMBLE HOUSE,"7,400.12",03/03/2015
Delivery Units,Adults and Communities,Other Agencies - Third Party P,30068563,KEMBLE HOUSE,"8,192.99",19/03/2015
Delivery Units,Adults and Communities,Other Agencies - Third Party P,30068567,KEMBLE HOUSE,"9,680.37",19/03/2015
Delivery Units,Adults and Communities,Other Agencies - Third Party P,30068569,KEMBLE HOUSE,"3,339.01",19/03/2015
Delivery Units,Adults and Communities,Other Agencies - Third Party P,30067225,KENWARD TRUST,"2,480.00",12/03/2015
Delivery Units,Adults and Communities,Other Agencies - Third Party P,30067972,KIRKLEY MANOR,"2,001.92",17/03/2015
Delivery Units,Adults and Communities,Other Agencies - Third Party P,30067973,KIRKLEY MANOR,-495.8,17/03/2015
Delivery Units,Adults and Communities,Other Agencies - Third Party P,30067494,KISHARON DAY SCHOOL,"1,464.03",13/03/2015
Delivery Units,Adults and Communities,Other Agencies - Third Party P,30067495,KISHARON DAY SCHOOL,"4,260.72",13/03/2015
Delivery Units,Adults and Communities,Other Agencies - Third Party P,30067496,KISHARON DAY SCHOOL,"2,144.10",13/03/2015
Delivery Units,Adults and Communities,Other Agencies - Third Party P,30067497,KISHARON DAY SCHOOL,"2,284.24",13/03/2015
Delivery Units,Adults and Communities,Other Agencies - Third Party P,30067498,KISHARON DAY SCHOOL,"1,373.49",13/03/2015
Delivery Units,Adults and Communities,Other Agencies - Third Party P,30067499,KISHARON DAY SCHOOL,794.08,13/03/2015
Delivery Units,Adults and Communities,Other Agencies - Third Party P,30067500,KISHARON DAY SCHOOL,381.54,13/03/2015
Delivery Units,Adults and Communities,Other Agencies - Third Party P,30067501,KISHARON DAY SCHOOL,"1,373.49",13/03/2015
Delivery Units,Adults and Communities,Other Agencies - Third Party P,30067502,KISHARON DAY SCHOOL,397.11,13/03/2015
Delivery Units,Adults and Communities,Other Agencies - Third Party P,30067503,KISHARON DAY SCHOOL,"1,679.87",13/03/2015
Delivery Units,Adults and Communities,Other Agencies - Third Party P,30067504,KISHARON DAY SCHOOL,"1,340.18",13/03/2015
Delivery Units,Adults and Communities,Other Agencies - Third Party P,30067505,KISHARON DAY SCHOOL,"1,241.16",13/03/2015
Delivery Units,Adults and Communities,Other Agencies - Third Party P,30067506,KISHARON DAY SCHOOL,"1,369.23",13/03/2015
Delivery Units,Adults and Communities,Other Agencies - Third Party P,30067507,KISHARON DAY SCHOOL,"1,133.60",13/03/2015
Delivery Units,Adults and Communities,Other Agencies - Third Party P,30067508,KISHARON DAY SCHOOL,"1,373.68",13/03/2015
Delivery Units,Adults and Communities,Other Agencies - Third Party P,30067509,KISHARON DAY SCHOOL,733.72,13/03/2015
Delivery Units,Adults and Communities,Other Agencies - Third Party P,30067511,KISHARON DAY SCHOOL,"1,275.96",13/03/2015
Delivery Units,Adults and Communities,Other Agencies - Third Party P,30067873,KISHARON DAY SCHOOL,"2,798.24",17/03/2015
Delivery Units,Adults and Communities,Other Agencies - Third Party P,30067874,KISHARON DAY SCHOOL,-319.4,17/03/2015
Delivery Units,Adults and Communities,Other Agencies - Third Party P,30067875,KISHARON DAY SCHOOL,"4,556.08",17/03/2015
Delivery Units,Adults and Communities,Other Agencies - Third Party P,30067876,KISHARON DAY SCHOOL,-319.4,17/03/2015
Delivery Units,Adults and Communities,Other Agencies - Third Party P,30067877,KISHARON DAY SCHOOL,"2,798.24",17/03/2015
Delivery Units,Adults and Communities,Other Agencies - Third Party P,30067878,KISHARON DAY SCHOOL,-319.4,17/03/2015
Delivery Units,Adults and Communities,Other Agencies - Third Party P,30067879,KISHARON DAY SCHOOL,"2,798.24",17/03/2015
Delivery Units,Adults and Communities,Other Agencies - Third Party P,30067880,KISHARON DAY SCHOOL,-319.4,17/03/2015
Delivery Units,Adults and Communities,Other Agencies - Third Party P,30068730,KISHARON DAY SCHOOL,686.88,19/03/2015
Delivery Units,Adults and Communities,Other Agencies - Third Party P,30068731,KISHARON DAY SCHOOL,686.88,19/03/2015
Delivery Units,Adults and Communities,Other Agencies - Third Party P,30068732,KISHARON DAY SCHOOL,686.88,19/03/2015
Delivery Units,Adults and Communities,Other Agencies - Third Party P,30068733,KISHARON DAY SCHOOL,686.88,19/03/2015
Delivery Units,Adults and Communities,Other Agencies - Third Party P,30066428,LANGDON COMMUNITY LTD,"2,403.92",03/03/2015
Delivery Units,Adults and Communities,Other Agencies - Third Party P,30066429,LANGDON COMMUNITY LTD,"2,979.20",03/03/2015
Delivery Units,Adults and Communities,Other Agencies - Third Party P,30066438,LANGDON COMMUNITY LTD,"1,276.80",03/03/2015
Delivery Units,Adults and Communities,Other Agencies - Third Party P,30066440,LANGDON COMMUNITY LTD,956.38,03/03/2015
Delivery Units,Adults and Communities,Other Agencies - Third Party P,30066448,LANGDON COMMUNITY LTD,"3,144.56",03/03/2015
Delivery Units,Adults and Communities,Other Agencies - Third Party P,30066475,LANGDON COMMUNITY LTD,"3,411.49",03/03/2015
Delivery Units,Adults and Communities,Other Agencies - Third Party P,30066480,LANGDON COMMUNITY LTD,"1,763.20",03/03/2015
Delivery Units,Adults and Communities,Other Agencies - Third Party P,30066485,LANGDON COMMUNITY LTD,425.6,03/03/2015
Delivery Units,Adults and Communities,Other Agencies - Third Party P,30066487,LANGDON COMMUNITY LTD,"1,772.32",03/03/2015
Delivery Units,Adults and Communities,Other Agencies - Third Party P,30066497,LANGDON COMMUNITY LTD,"2,097.60",03/03/2015
Delivery Units,Adults and Communities,Other Agencies - Third Party P,30066498,LANGDON COMMUNITY LTD,"5,002.64",03/03/2015
Delivery Units,Adults and Communities,Other Agencies - Third Party P,30066504,LANGDON COMMUNITY LTD,"2,128.00",03/03/2015
Delivery Units,Adults and Communities,Other Agencies - Third Party P,30066581,LANGDON COMMUNITY LTD,"1,315.12",03/03/2015
Delivery Units,Adults and Communities,Other Agencies - Third Party P,30066583,LANGDON COMMUNITY LTD,608,03/03/2015
Delivery Units,Adults and Communities,Other Agencies - Third Party P,30066584,LANGDON COMMUNITY LTD,"1,064.00",03/03/2015
Delivery Units,Adults and Communities,Other Agencies - Third Party P,30068515,LANGDON COMMUNITY LTD,"25,037.60",18/03/2015
Delivery Units,Adults and Communities,Other Agencies - Third Party P,30068516,LANGDON COMMUNITY LTD,851.2,18/03/2015
Delivery Units,Adults and Communities,Other Agencies - Third Party P,30068517,LANGDON COMMUNITY LTD,851.2,18/03/2015
Delivery Units,Adults and Communities,Other Agencies - Third Party P,30068518,LANGDON COMMUNITY LTD,851.2,18/03/2015
Delivery Units,Adults and Communities,Other Agencies - Third Party P,30068519,LANGDON COMMUNITY LTD,851.2,18/03/2015
Delivery Units,Adults and Communities,Other Agencies - Third Party P,30068520,LANGDON COMMUNITY LTD,851.2,18/03/2015
Delivery Units,Adults and Communities,Other Agencies - Third Party P,30068521,LANGDON COMMUNITY LTD,851.2,18/03/2015
Delivery Units,Adults and Communities,Other Agencies - Third Party P,30068522,LANGDON COMMUNITY LTD,851.2,18/03/2015
Delivery Units,Adults and Communities,Other Agencies - Third Party P,30068523,LANGDON COMMUNITY LTD,851.2,18/03/2015
Delivery Units,Adults and Communities,Other Agencies - Third Party P,30068524,LANGDON COMMUNITY LTD,851.2,18/03/2015
Delivery Units,Adults and Communities,Other Agencies - Third Party P,30068525,LANGDON COMMUNITY LTD,851.2,18/03/2015
Delivery Units,Adults and Communities,Other Agencies - Third Party P,30068526,LANGDON COMMUNITY LTD,851.2,18/03/2015
Delivery Units,Adults and Communities,Other Agencies - Third Party P,30068528,LANGDON COMMUNITY LTD,"2,403.92",18/03/2015
Delivery Units,Adults and Communities,Other Agencies - Third Party P,30068536,LANGDON COMMUNITY LTD,"1,276.80",18/03/2015
Delivery Units,Adults and Communities,Other Agencies - Third Party P,30068537,LANGDON COMMUNITY LTD,956.38,18/03/2015
Delivery Units,Adults and Communities,Other Agencies - Third Party P,30068539,LANGDON COMMUNITY LTD,"3,144.56",18/03/2015
Delivery Units,Adults and Communities,Other Agencies - Third Party P,30068542,LANGDON COMMUNITY LTD,"3,411.49",18/03/2015
Delivery Units,Adults and Communities,Other Agencies - Third Party P,30068545,LANGDON COMMUNITY LTD,"1,763.20",18/03/2015
Delivery Units,Adults and Communities,Other Agencies - Third Party P,30068546,LANGDON COMMUNITY LTD,425.6,18/03/2015
Delivery Units,Adults and Communities,Other Agencies - Third Party P,30068547,LANGDON COMMUNITY LTD,"1,772.32",18/03/2015
Delivery Units,Adults and Communities,Other Agencies - Third Party P,30068552,LANGDON COMMUNITY LTD,"2,097.60",18/03/2015
Delivery Units,Adults and Communities,Other Agencies - Third Party P,30068553,LANGDON COMMUNITY LTD,"5,002.64",18/03/2015
Delivery Units,Adults and Communities,Other Agencies - Third Party P,30068555,LANGDON COMMUNITY LTD,"2,128.00",18/03/2015
Delivery Units,Adults and Communities,Other Agencies - Third Party P,30068556,LANGDON COMMUNITY LTD,"1,315.12",18/03/2015
Delivery Units,Adults and Communities,Other Agencies - Third Party P,30068557,LANGDON COMMUNITY LTD,608,18/03/2015
Delivery Units,Adults and Communities,Other Agencies - Third Party P,30068558,LANGDON COMMUNITY LTD,"1,064.00",18/03/2015
Delivery Units,Adults and Communities,Other Agencies - Third Party P,30068866,LANGDON COMMUNITY LTD,851.2,19/03/2015
Delivery Units,Adults and Communities,Other Agencies - Third Party P,30068867,LANGDON COMMUNITY LTD,"2,979.20",19/03/2015
Delivery Units,Adults and Communities,Other Agencies - Third Party P,30066892,LEEMING BAR CARE HOME,"1,751.64",05/03/2015
Delivery Units,Adults and Communities,Other Agencies - Third Party P,30068185,LEEMING BAR CARE HOME,"1,939.32",17/03/2015
Delivery Units,Adults and Communities,Other Agencies - Third Party P,30067872,LEO BAECK HOUSING ASSOC. LTD,"6,434.73",19/03/2015
Delivery Units,Adults and Communities,Other Agencies - Third Party P,30067941,LEO BAECK HOUSING ASSOC. LTD,"7,020.00",19/03/2015
Delivery Units,Adults and Communities,Other Agencies - Third Party P,30067961,LEO BAECK HOUSING ASSOC. LTD,"6,434.73",19/03/2015
Delivery Units,Adults and Communities,Other Agencies - Third Party P,30067962,LEO BAECK HOUSING ASSOC. LTD,"6,434.73",19/03/2015
Delivery Units,Adults and Communities,Other Agencies - Third Party P,30066285,LEWIS.W.HAMMERSON MEMORIAL HOME,"2,001.92",02/03/2015
Delivery Units,Adults and Communities,Other Agencies - Third Party P,30066286,LEWIS.W.HAMMERSON MEMORIAL HOME,"2,001.92",02/03/2015
Delivery Units,Adults and Communities,Other Agencies - Third Party P,30066287,LEWIS.W.HAMMERSON MEMORIAL HOME,-818.24,02/03/2015
Delivery Units,Adults and Communities,Other Agencies - Third Party P,30066288,LEWIS.W.HAMMERSON MEMORIAL HOME,"2,001.92",02/03/2015
Delivery Units,Adults and Communities,Other Agencies - Third Party P,30066289,LEWIS.W.HAMMERSON MEMORIAL HOME,-491.36,02/03/2015
Delivery Units,Adults and Communities,Other Agencies - Third Party P,30066290,LEWIS.W.HAMMERSON MEMORIAL HOME,"2,001.92",02/03/2015
Delivery Units,Adults and Communities,Other Agencies - Third Party P,30066291,LEWIS.W.HAMMERSON MEMORIAL HOME,"2,001.92",02/03/2015
Delivery Units,Adults and Communities,Other Agencies - Third Party P,30068229,LEWIS.W.HAMMERSON MEMORIAL HOME,"2,216.41",17/03/2015
Delivery Units,Adults and Communities,Other Agencies - Third Party P,30068230,LEWIS.W.HAMMERSON MEMORIAL HOME,-905.91,17/03/2015
Delivery Units,Adults and Communities,Other Agencies - Third Party P,30068231,LEWIS.W.HAMMERSON MEMORIAL HOME,"2,216.41",17/03/2015
Delivery Units,Adults and Communities,Other Agencies - Third Party P,30068235,LEWIS.W.HAMMERSON MEMORIAL HOME,"2,216.41",17/03/2015
Delivery Units,Adults and Communities,Other Agencies - Third Party P,30068236,LEWIS.W.HAMMERSON MEMORIAL HOME,"2,216.42",17/03/2015
Delivery Units,Adults and Communities,Other Agencies - Third Party P,30068237,LEWIS.W.HAMMERSON MEMORIAL HOME,-544.01,17/03/2015
Delivery Units,Adults and Communities,Other Agencies - Third Party P,30068238,LEWIS.W.HAMMERSON MEMORIAL HOME,"2,216.41",17/03/2015
Delivery Units,Adults and Communities,Other Agencies - Third Party P,30066251,LIFESTYLE CARE 2011 PLC,"2,138.00",02/03/2015
Delivery Units,Adults and Communities,Other Agencies - Third Party P,30066489,LIFESTYLE CARE PLC,"2,094.52",03/03/2015
Delivery Units,Adults and Communities,Other Agencies - Third Party P,30066490,LIFESTYLE CARE PLC,"2,094.52",03/03/2015
Delivery Units,Adults and Communities,Other Agencies - Third Party P,30066491,LIFESTYLE CARE PLC,"2,321.64",03/03/2015
Delivery Units,Adults and Communities,Other Agencies - Third Party P,30066492,LIFESTYLE CARE PLC,"2,547.75",03/03/2015
Delivery Units,Adults and Communities,Other Agencies - Third Party P,30066493,LIFESTYLE CARE PLC,"2,094.52",03/03/2015
Delivery Units,Adults and Communities,Other Agencies - Third Party P,30066893,LIFESTYLE CARE PLC,"2,321.64",05/03/2015
Delivery Units,Adults and Communities,Other Agencies - Third Party P,30068187,LIFESTYLE CARE PLC,"2,318.93",17/03/2015
Delivery Units,Adults and Communities,Other Agencies - Third Party P,30068188,LIFESTYLE CARE PLC,"2,318.93",17/03/2015
Delivery Units,Adults and Communities,Other Agencies - Third Party P,30068189,LIFESTYLE CARE PLC,"2,318.93",17/03/2015
Delivery Units,Adults and Communities,Other Agencies - Third Party P,30068190,LIFESTYLE CARE PLC,"2,570.39",17/03/2015
Delivery Units,Adults and Communities,Other Agencies - Third Party P,30068191,LIFESTYLE CARE PLC,"2,570.39",17/03/2015
Delivery Units,Adults and Communities,Other Agencies - Third Party P,30068192,LIFESTYLE CARE PLC,"2,318.94",17/03/2015
Delivery Units,Adults and Communities,Other Agencies - Third Party P,30068194,LIFESTYLE CARE PLC,"2,318.93",17/03/2015
Delivery Units,Adults and Communities,Other Agencies - Third Party P,30067765,LIFEWAYS,"3,145.24",16/03/2015
Delivery Units,Adults and Communities,Other Agencies - Third Party P,30067766,LIFEWAYS,"6,930.00",16/03/2015
Delivery Units,Adults and Communities,Other Agencies - Third Party P,30067768,LIFEWAYS,"5,037.40",16/03/2015
Delivery Units,Adults and Communities,Other Agencies - Third Party P,30067769,LIFEWAYS,"5,943.00",16/03/2015
Delivery Units,Adults and Communities,Other Agencies - Third Party P,30067775,LIFEWAYS,"3,656.00",16/03/2015
Delivery Units,Adults and Communities,Other Agencies - Third Party P,30067776,LIFEWAYS,"5,766.44",16/03/2015
Delivery Units,Adults and Communities,Other Agencies - Third Party P,30067777,LIFEWAYS,"4,828.24",16/03/2015
Delivery Units,Adults and Communities,Other Agencies - Third Party P,30067796,LIFEWAYS,"2,377.20",16/03/2015
Delivery Units,Adults and Communities,Other Agencies - Third Party P,30068666,LILAS HOUSE,"2,574.32",23/03/2015
Delivery Units,Adults and Communities,Other Agencies - Third Party P,30068667,LILAS HOUSE,-319.4,23/03/2015
Delivery Units,Adults and Communities,Other Agencies - Third Party P,30068685,LILAS HOUSE,"2,666.26",25/03/2015
Delivery Units,Adults and Communities,Other Agencies - Third Party P,30068686,LILAS HOUSE,-330.81,25/03/2015
Delivery Units,Adults and Communities,Other Agencies - Third Party P,30065110,LIONCARE LIMITED,"4,696.36",12/03/2015
Delivery Units,Adults and Communities,Other Agencies - Third Party P,30067516,LIONCARE LIMITED,"4,011.15",30/03/2015
Delivery Units,Adults and Communities,Other Agencies - Third Party P,30066441,LIVABILITY,"2,400.00",03/03/2015
Delivery Units,Adults and Communities,Other Agencies - Third Party P,30066442,LIVABILITY,"3,672.00",03/03/2015
Delivery Units,Adults and Communities,Other Agencies - Third Party P,30066443,LIVABILITY,-319.4,03/03/2015
Delivery Units,Adults and Communities,Other Agencies - Third Party P,30066500,LIVABILITY,"4,891.20",03/03/2015
Delivery Units,Adults and Communities,Other Agencies - Third Party P,30066862,LIVABILITY,"3,189.32",05/03/2015
Delivery Units,Adults and Communities,Other Agencies - Third Party P,30066863,LIVABILITY,-495.8,05/03/2015
Delivery Units,Adults and Communities,Other Agencies - Third Party P,30066864,LIVABILITY,"3,424.00",05/03/2015
Delivery Units,Adults and Communities,Other Agencies - Third Party P,30066898,LIVABILITY,"5,279.24",05/03/2015
Delivery Units,Adults and Communities,Other Agencies - Third Party P,30068903,LIVABILITY,"3,189.32",19/03/2015
Delivery Units,Adults and Communities,Other Agencies - Third Party P,30068904,LIVABILITY,-495.8,19/03/2015
Delivery Units,Adults and Communities,Other Agencies - Third Party P,30068905,LIVABILITY,"3,424.00",19/03/2015
Delivery Units,Adults and Communities,Other Agencies - Third Party P,30068906,LIVABILITY,"3,672.00",19/03/2015
Delivery Units,Adults and Communities,Other Agencies - Third Party P,30068907,LIVABILITY,-319.4,19/03/2015
Delivery Units,Adults and Communities,Other Agencies - Third Party P,30069004,LIVABILITY,"5,279.24",19/03/2015
Delivery Units,Adults and Communities,Other Agencies - Third Party P,20018181,LONDON BOROUGH OF HARROW,"31,342.18",23/03/2015
Delivery Units,Adults and Communities,Other Agencies - Third Party P,30066364,LONG FURROWS RESIDENTIAL CARE HOME,"3,831.56",03/03/2015
Delivery Units,Adults and Communities,Other Agencies - Third Party P,30066365,LONG FURROWS RESIDENTIAL CARE HOME,-495.8,03/03/2015
Delivery Units,Adults and Communities,Other Agencies - Third Party P,30068711,LONG FURROWS RESIDENTIAL CARE HOME,"4,242.08",19/03/2015
Delivery Units,Adults and Communities,Other Agencies - Third Party P,30068712,LONG FURROWS RESIDENTIAL CARE HOME,-548.92,19/03/2015
Delivery Units,Adults and Communities,Other Agencies - Third Party P,30066894,M D HOMES,"3,200.00",05/03/2015
Delivery Units,Adults and Communities,Other Agencies - Third Party P,30067366,M D HOMES,"3,428.57",12/03/2015
Delivery Units,Adults and Communities,Other Agencies - Third Party P,30068996,M D HOMES,"3,542.86",19/03/2015
Delivery Units,Adults and Communities,Other Agencies - Third Party P,30068001,MACINTYRE CARE,"4,015.72",17/03/2015
Delivery Units,Adults and Communities,Other Agencies - Third Party P,30068002,MACINTYRE CARE,-319.4,17/03/2015
Delivery Units,Adults and Communities,Other Agencies - Third Party P,30068003,MACINTYRE CARE,"2,332.48",17/03/2015
Delivery Units,Adults and Communities,Other Agencies - Third Party P,30068004,MACINTYRE CARE,-319.4,17/03/2015
Delivery Units,Adults and Communities,Other Agencies - Third Party P,30068005,MACINTYRE CARE,750.4,17/03/2015
Delivery Units,Adults and Communities,Other Agencies - Third Party P,30068006,MACINTYRE CARE,"3,812.84",17/03/2015
Delivery Units,Adults and Communities,Other Agencies - Third Party P,30068007,MACINTYRE CARE,-319.4,17/03/2015
Delivery Units,Adults and Communities,Other Agencies - Third Party P,30068008,MACINTYRE CARE,"3,570.16",17/03/2015
Delivery Units,Adults and Communities,Other Agencies - Third Party P,30068009,MACINTYRE CARE,-319.4,17/03/2015
Delivery Units,Adults and Communities,Other Agencies - Third Party P,30068010,MACINTYRE CARE,"2,326.48",17/03/2015
Delivery Units,Adults and Communities,Other Agencies - Third Party P,30068011,MACINTYRE CARE,-319.4,17/03/2015
Delivery Units,Adults and Communities,Other Agencies - Third Party P,30067373,MADELAYNE COURT,"2,001.92",12/03/2015
Delivery Units,Adults and Communities,Other Agencies - Third Party P,30067110,MAISON MOTI LTD,"3,400.00",10/03/2015
Delivery Units,Adults and Communities,Other Agencies - Third Party P,30067111,MAISON MOTI LTD,"3,260.00",10/03/2015
Delivery Units,Adults and Communities,Other Agencies - Third Party P,30067493,MAISON MOTI LTD,"1,642.48",13/03/2015
Delivery Units,Adults and Communities,Other Agencies - Third Party P,30067517,MAISON MOTI LTD,"2,240.00",13/03/2015
Delivery Units,Adults and Communities,Other Agencies - Third Party P,30067518,MAISON MOTI LTD,"2,500.00",13/03/2015
Delivery Units,Adults and Communities,Other Agencies - Third Party P,30067519,MAISON MOTI LTD,"2,440.00",13/03/2015
Delivery Units,Adults and Communities,Other Agencies - Third Party P,30067520,MAISON MOTI LTD,"2,440.00",13/03/2015
Delivery Units,Adults and Communities,Other Agencies - Third Party P,30067529,MAISON MOTI LTD,"1,026.00",13/03/2015
Delivery Units,Adults and Communities,Other Agencies - Third Party P,30067640,MAISON MOTI LTD,343.4,13/03/2015
Delivery Units,Adults and Communities,Other Agencies - Third Party P,30068668,MANDELA HOUSE,"4,050.36",23/03/2015
Delivery Units,Adults and Communities,Other Agencies - Third Party P,30068669,MANDELA HOUSE,-319.4,23/03/2015
Delivery Units,Adults and Communities,Other Agencies - Third Party P,30068683,MANDELA HOUSE,"3,541.84",23/03/2015
Delivery Units,Adults and Communities,Other Agencies - Third Party P,30068687,MANDELA HOUSE,"4,195.02",25/03/2015
Delivery Units,Adults and Communities,Other Agencies - Third Party P,30068688,MANDELA HOUSE,-330.81,25/03/2015
Delivery Units,Adults and Communities,Other Agencies - Third Party P,30068702,MANDELA HOUSE,"3,668.33",25/03/2015
Delivery Units,Adults and Communities,Other Agencies - Third Party P,30066284,MARLBOROUGH HOUSE,"3,569.04",02/03/2015
Delivery Units,Adults and Communities,Other Agencies - Third Party P,30068226,MARLBOROUGH HOUSE,"3,951.44",17/03/2015
Delivery Units,Adults and Communities,Other Agencies - Third Party P,30068550,MARRILYNE LODGE,"2,554.16",18/03/2015
Delivery Units,Adults and Communities,Other Agencies - Third Party P,30068551,MARRILYNE LODGE,"2,235.12",18/03/2015
Delivery Units,Adults and Communities,Other Agencies - Third Party P,30068734,MARYVILLE CARE HOME,"2,318.93",19/03/2015
Delivery Units,Adults and Communities,Other Agencies - Third Party P,30068735,MARYVILLE CARE HOME,-548.92,19/03/2015
Delivery Units,Adults and Communities,Other Agencies - Third Party P,30068736,MARYVILLE CARE HOME,"2,512.73",19/03/2015
Delivery Units,Adults and Communities,Other Agencies - Third Party P,30068737,MARYVILLE CARE HOME,-548.92,19/03/2015
Delivery Units,Adults and Communities,Other Agencies - Third Party P,30066503,MAYFIELD ADULT SERVICES,"8,920.00",03/03/2015
Delivery Units,Adults and Communities,Other Agencies - Third Party P,30068213,MAYFIELD ADULT SERVICES,"9,557.14",17/03/2015
Delivery Units,Adults and Communities,Other Agencies - Third Party P,30069007,MAYFIELD ADULT SERVICES,"9,875.71",19/03/2015
Delivery Units,Adults and Communities,Other Agencies - Third Party P,30066372,MEADOWBANK TRUST,"2,889.80",03/03/2015
Delivery Units,Adults and Communities,Other Agencies - Third Party P,30066373,MEADOWBANK TRUST,-319.4,03/03/2015
Delivery Units,Adults and Communities,Other Agencies - Third Party P,30068060,MEADOWBANK TRUST,"3,199.42",17/03/2015
Delivery Units,Adults and Communities,Other Agencies - Third Party P,30068061,MEADOWBANK TRUST,-353.62,17/03/2015
Delivery Units,Adults and Communities,Other Agencies - Third Party P,30066742,MEERA NURSING HOME LIMITED,"2,590.32",04/03/2015
Delivery Units,Adults and Communities,Other Agencies - Third Party P,30066743,MEERA NURSING HOME LIMITED,-495.8,04/03/2015
Delivery Units,Adults and Communities,Other Agencies - Third Party P,30066861,MEERA NURSING HOME LIMITED,"2,094.52",05/03/2015
Delivery Units,Adults and Communities,Other Agencies - Third Party P,30066878,MEERA NURSING HOME LIMITED,"2,094.52",05/03/2015
Delivery Units,Adults and Communities,Other Agencies - Third Party P,30066884,MEERA NURSING HOME LIMITED,"2,096.00",05/03/2015
Delivery Units,Adults and Communities,Other Agencies - Third Party P,30066904,MEERA NURSING HOME LIMITED,"2,094.52",05/03/2015
Delivery Units,Adults and Communities,Other Agencies - Third Party P,30066906,MEERA NURSING HOME LIMITED,"2,094.52",05/03/2015
Delivery Units,Adults and Communities,Other Agencies - Third Party P,30066907,MEERA NURSING HOME LIMITED,"2,286.44",05/03/2015
Delivery Units,Adults and Communities,Other Agencies - Third Party P,30066908,MEERA NURSING HOME LIMITED,"2,094.52",05/03/2015
Delivery Units,Adults and Communities,Other Agencies - Third Party P,30066909,MEERA NURSING HOME LIMITED,"2,095.96",05/03/2015
Delivery Units,Adults and Communities,Other Agencies - Third Party P,30066910,MEERA NURSING HOME LIMITED,"2,094.52",05/03/2015
Delivery Units,Adults and Communities,Other Agencies - Third Party P,30066915,MEERA NURSING HOME LIMITED,"2,094.52",05/03/2015
Delivery Units,Adults and Communities,Other Agencies - Third Party P,30068897,MEERA NURSING HOME LIMITED,"2,318.93",19/03/2015
Delivery Units,Adults and Communities,Other Agencies - Third Party P,30068943,MEERA NURSING HOME LIMITED,"2,867.85",19/03/2015
Delivery Units,Adults and Communities,Other Agencies - Third Party P,30068944,MEERA NURSING HOME LIMITED,-548.92,19/03/2015
Delivery Units,Adults and Communities,Other Agencies - Third Party P,30068963,MEERA NURSING HOME LIMITED,"2,318.93",19/03/2015
Delivery Units,Adults and Communities,Other Agencies - Third Party P,30068984,MEERA NURSING HOME LIMITED,"2,320.57",19/03/2015
Delivery Units,Adults and Communities,Other Agencies - Third Party P,30069006,MEERA NURSING HOME LIMITED,"2,318.93",19/03/2015
Delivery Units,Adults and Communities,Other Agencies - Third Party P,30069012,MEERA NURSING HOME LIMITED,"2,318.93",19/03/2015
Delivery Units,Adults and Communities,Other Agencies - Third Party P,30069021,MEERA NURSING HOME LIMITED,"2,531.42",19/03/2015
Delivery Units,Adults and Communities,Other Agencies - Third Party P,30069022,MEERA NURSING HOME LIMITED,"2,318.93",19/03/2015
Delivery Units,Adults and Communities,Other Agencies - Third Party P,30069023,MEERA NURSING HOME LIMITED,"2,320.53",19/03/2015
Delivery Units,Adults and Communities,Other Agencies - Third Party P,30069024,MEERA NURSING HOME LIMITED,"2,318.93",19/03/2015
Delivery Units,Adults and Communities,Other Agencies - Third Party P,30069087,MEERA NURSING HOME LIMITED,"2,318.93",19/03/2015
Delivery Units,Adults and Communities,Other Agencies - Third Party P,30067185,METHODIST HOMES FOR THE AGED,"2,001.92",10/03/2015
Delivery Units,Adults and Communities,Other Agencies - Third Party P,30067208,METHODIST HOMES FOR THE AGED,"2,500.00",10/03/2015
Delivery Units,Adults and Communities,Other Agencies - Third Party P,30067262,METHODIST HOMES FOR THE AGED,"2,321.92",10/03/2015
Delivery Units,Adults and Communities,Other Agencies - Third Party P,30067263,METHODIST HOMES FOR THE AGED,-495.8,10/03/2015
Delivery Units,Adults and Communities,Other Agencies - Third Party P,30066304,MILBURY,"6,235.00",02/03/2015
Delivery Units,Adults and Communities,Other Agencies - Third Party P,30066305,MILBURY,-319.4,02/03/2015
Delivery Units,Adults and Communities,Other Agencies - Third Party P,30069098,MILBURY,"6,235.00",19/03/2015
Delivery Units,Adults and Communities,Other Agencies - Third Party P,30069099,MILBURY,-319.4,19/03/2015
Delivery Units,Adults and Communities,Other Agencies - Third Party P,30067761,ML HOMES LTD,"1,740.00",13/03/2015
Delivery Units,Adults and Communities,Other Agencies - Third Party P,30067762,ML HOMES LTD,"2,118.36",13/03/2015
Delivery Units,Adults and Communities,Other Agencies - Third Party P,30067763,ML HOMES LTD,"1,433.56",20/03/2015
Delivery Units,Adults and Communities,Other Agencies - Third Party P,30067764,ML HOMES LTD,"1,751.16",13/03/2015
Delivery Units,Adults and Communities,Other Agencies - Third Party P,30067782,ML HOMES LTD,"2,118.36",13/03/2015
Delivery Units,Adults and Communities,Other Agencies - Third Party P,30067783,ML HOMES LTD,"1,955.84",13/03/2015
Delivery Units,Adults and Communities,Other Agencies - Third Party P,30067784,ML HOMES LTD,"1,417.24",13/03/2015
Delivery Units,Adults and Communities,Other Agencies - Third Party P,30067785,ML HOMES LTD,"1,428.68",13/03/2015
Delivery Units,Adults and Communities,Other Agencies - Third Party P,30067786,ML HOMES LTD,"1,765.80",13/03/2015
Delivery Units,Adults and Communities,Other Agencies - Third Party P,30067787,ML HOMES LTD,"1,751.16",13/03/2015
Delivery Units,Adults and Communities,Other Agencies - Third Party P,30067795,ML HOMES LTD,"1,767.40",13/03/2015
Delivery Units,Adults and Communities,Other Agencies - Third Party P,30067812,ML HOMES LTD,"1,780.00",13/03/2015
Delivery Units,Adults and Communities,Other Agencies - Third Party P,30066432,NAS SERVICES LTD,"3,666.96",03/03/2015
Delivery Units,Adults and Communities,Other Agencies - Third Party P,30066433,NAS SERVICES LTD,-319.4,03/03/2015
Delivery Units,Adults and Communities,Other Agencies - Third Party P,30068885,NAS SERVICES LTD,"3,666.96",19/03/2015
Delivery Units,Adults and Communities,Other Agencies - Third Party P,30068886,NAS SERVICES LTD,-319.4,19/03/2015
Delivery Units,Adults and Communities,Other Agencies - Third Party P,30069533,NAS SERVICES LTD,"2,035.64",23/03/2015
Delivery Units,Adults and Communities,Other Agencies - Third Party P,30069534,NAS SERVICES LTD,"2,035.64",23/03/2015
Delivery Units,Adults and Communities,Other Agencies - Third Party P,30066212,NAZARETH HOUSE,"2,001.92",02/03/2015
Delivery Units,Adults and Communities,Other Agencies - Third Party P,30066213,NAZARETH HOUSE,"1,656.97",02/03/2015
Delivery Units,Adults and Communities,Other Agencies - Third Party P,30066464,NAZARETH HOUSE,"2,001.92",03/03/2015
Delivery Units,Adults and Communities,Other Agencies - Third Party P,30066465,NAZARETH HOUSE,"2,650.40",03/03/2015
Delivery Units,Adults and Communities,Other Agencies - Third Party P,30066466,NAZARETH HOUSE,"2,184.04",03/03/2015
Delivery Units,Adults and Communities,Other Agencies - Third Party P,30066467,NAZARETH HOUSE,"2,001.92",03/03/2015
Delivery Units,Adults and Communities,Other Agencies - Third Party P,30066468,NAZARETH HOUSE,-495.8,03/03/2015
Delivery Units,Adults and Communities,Other Agencies - Third Party P,30066469,NAZARETH HOUSE,"2,001.96",03/03/2015
Delivery Units,Adults and Communities,Other Agencies - Third Party P,30066470,NAZARETH HOUSE,"-1,048.64",03/03/2015
Delivery Units,Adults and Communities,Other Agencies - Third Party P,30066471,NAZARETH HOUSE,"2,001.92",03/03/2015
Delivery Units,Adults and Communities,Other Agencies - Third Party P,30066472,NAZARETH HOUSE,"2,001.56",03/03/2015
Delivery Units,Adults and Communities,Other Agencies - Third Party P,30068146,NAZARETH HOUSE,"2,001.92",17/03/2015
